Trans No.,Service Area Categorisation,Service Division Categorisation,Responsible Unit,Unit Code,Expenses Type,Expenses Sub Type,Expense Code,Narrative,Amount,Invoice Date,Cap/Rev,Supplier Name
1,Central Services,Corporate Mangmt not separated,Chief Exec's Office,A01001,Supplies & Services           ,Grants and Subscriptions      ,DJ04,Subscriptions                           ,"32,734.00",22/04/2015,R,LONDON COUNCILS               
2,Central Services,Corporate Mangmt not separated,Chief Exec's Office,A01001,Supplies & Services           ,Grants and Subscriptions      ,DJ04,Subscriptions                           ,"109,739.00",22/04/2015,R,LONDON COUNCILS               
3,Central Services,SupS Chief Execs,Local Involvement Network,A01039,Third Party Payments          ,Private Contractors           ,EH10,Contract Payments                       ,652,31/03/2015,R,VOICEABILITY                  
4,Cultural Env Reg&Plan Services,Comm Safety (Crime Reduction),CCTV,A01200,Supplies & Services           ,Services                      ,DF57,Consulting Engineers Fees               ,"2,786.73",01/05/2015,R,GLOBAL MSC SECURITY LTD       
5,Cultural Env Reg&Plan Services,Comm Safety (Crime Reduction),CCTV,A01200,Supplies & Services           ,Services                      ,DF57,Consulting Engineers Fees               ,"2,500.00",01/05/2015,R,GLOBAL MSC SECURITY LTD       
6,Cultural Env Reg&Plan Services,Comm Safety (Crime Reduction),CCTV,A01200,Supplies & Services           ,Comms and Computing           ,DG01,Communications                          ,800,01/03/2015,R,VIRGIN MEDIA PAYMENTS LTD     
7,Central Services,SupS Chief Execs,NON-STATUTORY MARKETING & COMM,A02019,Supplies & Services           ,Services                      ,DF02,Misc Advertising/Publicity              ,"1,200.00",28/03/2015,R,WANDSWORTH COUNCIL            
8,Central Services,SupS Chief Execs,NON-STATUTORY MARKETING & COMM,A02019,Supplies & Services           ,Services                      ,DF02,Misc Advertising/Publicity              ,857.13,24/05/2015,R,NEWSQUEST (LONDON)LTD         
9,Central Services,SupS Chief Execs,NON-STATUTORY MARKETING & COMM,A02019,Supplies & Services           ,Services                      ,DF02,Misc Advertising/Publicity              ,752.5,29/04/2015,R,JCDECAUX UNITED KINGDOM       
10,Central Services,SupS Chief Execs,NON-STATUTORY MARKETING & COMM,A02019,Supplies & Services           ,Services                      ,DF02,Misc Advertising/Publicity              ,537.5,29/04/2015,R,JCDECAUX UNITED KINGDOM       
11,Central Services,SupS Chief Execs,NON-STATUTORY MARKETING & COMM,A02019,Supplies & Services           ,Services                      ,DF02,Misc Advertising/Publicity              ,767.5,29/04/2015,R,JCDECAUX UNITED KINGDOM       
12,Central Services,SupS Chief Execs,NON-STATUTORY MARKETING & COMM,A02019,Supplies & Services           ,Services                      ,DF02,Misc Advertising/Publicity              ,571.42,26/04/2015,R,NEWSQUEST (LONDON)LTD         
13,Central Services,SupS Chief Execs,NON-STATUTORY MARKETING & COMM,A02019,Supplies & Services           ,Services                      ,DF02,Misc Advertising/Publicity              ,537.5,29/04/2015,R,JCDECAUX UNITED KINGDOM       
14,Central Services,SupS Chief Execs,NON-STATUTORY MARKETING & COMM,A02019,Supplies & Services           ,Services                      ,DF02,Misc Advertising/Publicity              ,537.5,29/04/2015,R,JCDECAUX UNITED KINGDOM       
15,Central Services,SupS Chief Execs,NON-STATUTORY MARKETING & COMM,A02019,Supplies & Services           ,Services                      ,DF35,Graphic Design                          ,522.5,02/04/2015,R,DOMINO 4 LIMITED              
16,Central Services,SupS Chief Execs,NON-STATUTORY MARKETING & COMM,A02019,Supplies & Services           ,Services                      ,DF35,Graphic Design                          ,"1,650.00",30/03/2015,R,TA2                           
17,Central Services,SupS Chief Execs,NON-STATUTORY MARKETING & COMM,A02019,Supplies & Services           ,Services                      ,DF35,Graphic Design                          ,"1,950.00",30/03/2015,R,TA2                           
18,Central Services,SupS Chief Execs,NON-STATUTORY MARKETING & COMM,A02019,Supplies & Services           ,Services                      ,DF35,Graphic Design                          ,"4,800.00",13/05/2015,R,THE BIG IDEA 
19,Central Services,SupS Chief Execs,NON-STATUTORY MARKETING & COMM,A02019,Supplies & Services           ,Services                      ,DF35,Graphic Design                          ,"6,800.00",26/03/2015,R,THE BIG IDEA 
20,Central Services,SupS Chief Execs,Democratic Services,A02023,Transport Related Expenditure ,Direct Transport Costs        ,CA50,Mayoral Exps Car                        ,620,06/05/2015,R,MORDEN TYRE SERVICES LTD      
21,Central Services,SupS Chief Execs,Democratic Services,A02023,Supplies & Services           ,Expenses                      ,DH79,INCOMING MAYOR (MAY-MARCH)              ,"2,000.00",13/05/2015,R,GOSTO FINO PORTUGAL PATISSERIE
22,Central Services,SupS Chief Execs,Democratic Services,A02023,Supplies & Services           ,Grants and Subscriptions      ,DJ04,Subscriptions                           ,"2,100.00",20/05/2015,R,INFORMATION COMMISSIONER      
23,Central Services,SupS Chief Execs,Press and Public Relations.,A02026,Supplies & Services           ,Services                      ,DF02,Misc Advertising/Publicity              ,537.5,03/03/2015,R,JCDECAUX UNITED KINGDOM       
24,CS -Oth Operating Inc & Expend,T/A Corporate Services,Prtng Jobs - Ext Agncy,A03041,Supplies & Services           ,Prntng Stnry Gen Off Exp      ,DE01,External Printing                       ,513,30/04/2015,R,TAURUS PRINT & DESIGN LTD     
25,CS -Oth Operating Inc & Expend,T/A Corporate Services,PrintUnit-HighVolPhtcopying,A03042,Supplies & Services           ,Prntng Stnry Gen Off Exp      ,DE03,Stationery                              ,528,23/04/2015,R,ENCORE ENVELOPES LIMITED      
26,CS -Oth Operating Inc & Expend,T/A Corporate Services,PrintUnit-HighVolPhtcopying,A03042,Supplies & Services           ,Prntng Stnry Gen Off Exp      ,DE03,Stationery                              ,528,23/04/2015,R,ENCORE ENVELOPES LIMITED      
27,CS -Oth Operating Inc & Expend,T/A Corporate Services,Translation Services,A04060,Supplies & Services           ,Prntng Stnry Gen Off Exp      ,DE06,MULTI-FUNCTIONAL PRINTERS               ,"2,650.73",01/04/2015,R,OCE (UK) LTD                  
28,CS -Oth Operating Inc & Expend,T/A Corporate Services,Translation Services,A04060,Supplies & Services           ,Services                      ,DF45,Payment of Sessional Workers            ,"1,251.00",20/04/2015,R,REDACTED     
29,Central Services,SupS Comm and Member Services,COMMERICIAL SERVICES,A04085,Employees                     ,Direct Employee Expenses      ,AA17,Agency Staff & Casual Paymts            ,"3,390.00",29/04/2015,R,HAYS RECRUITING EXPERTS       
30,Central Services,SupS Comm and Member Services,COMMERICIAL SERVICES,A04085,Employees                     ,Direct Employee Expenses      ,AA17,Agency Staff & Casual Paymts            ,"1,356.00",14/05/2015,R,HAYS RECRUITING EXPERTS       
31,Central Services,SupS Comm and Member Services,COMMERICIAL SERVICES,A04085,Employees                     ,Direct Employee Expenses      ,AA17,Agency Staff & Casual Paymts            ,"3,390.00",06/05/2015,R,HAYS RECRUITING EXPERTS       
32,Central Services,SupS Comm and Member Services,COMMERICIAL SERVICES,A04085,Employees                     ,Direct Employee Expenses      ,AA17,Agency Staff & Casual Paymts            ,"10,014.48",27/04/2015,R,V4 SERVICES LIMITED           
33,Central Services,SupS Comm and Member Services,COMMERICIAL SERVICES,A04085,Employees                     ,Direct Employee Expenses      ,AA17,Agency Staff & Casual Paymts            ,"3,390.00",22/04/2015,R,HAYS RECRUITING EXPERTS       
34,Highways & Transport Services,On-street parking,Blue Badge Service,A04088,Supplies & Services           ,Services                      ,DF14,Doctors and Other Fees                  ,600,18/05/2015,R,LLOYDS TSB COMMERCIAL FINANCE 
35,Highways & Transport Services,On-street parking,Blue Badge Service,A04088,Supplies & Services           ,Comms and Computing           ,DG15,Network Maintenance                     ,"1,233.37",01/05/2015,R,NORTHGATE INFORMATION SOLUTION
36,Central Services,SupS Health & Safety,Learning and Development,B06146,Employees                     ,Indirect Employee Expenses    ,AB57,EXTERNAL TRAINING COSTS                 ,550,09/05/2015,R,MSH TRAINING & CONSULTANCY LTD
37,Central Services,SupS Health & Safety,Learning and Development,B06146,Employees                     ,Indirect Employee Expenses    ,AB57,EXTERNAL TRAINING COSTS                 ,830,27/04/2015,R,MAYBO                         
38,Central Services,SupS Health & Safety,Learning and Development,B06146,Employees                     ,Indirect Employee Expenses    ,AB57,EXTERNAL TRAINING COSTS                 ,975,06/05/2015,R,MEDI AID(UK) LTD              
39,Central Services,SupS Health & Safety,Learning and Development,B06146,Employees                     ,Indirect Employee Expenses    ,AB57,EXTERNAL TRAINING COSTS                 ,"1,275.00",22/05/2015,R,UNIVERSITY OF BIRMINGHAM      
40,Central Services,SupS Health & Safety,Learning and Development,B06146,Employees                     ,Indirect Employee Expenses    ,AB57,EXTERNAL TRAINING COSTS                 ,"2,550.00",20/01/2015,R,OPM                           
41,Central Services,SupS Health & Safety,Learning and Development,B06146,Employees                     ,Indirect Employee Expenses    ,AB57,EXTERNAL TRAINING COSTS                 ,500,31/03/2015,R,HAPPY                         
42,Central Services,SupS Health & Safety,Learning and Development,B06146,Employees                     ,Indirect Employee Expenses    ,AB57,EXTERNAL TRAINING COSTS                 ,"2,500.00",06/01/2015,R,SOUTH THAMES COLLEGE          
43,Central Services,SupS Health & Safety,Learning and Development,B06146,Employees                     ,Indirect Employee Expenses    ,AB57,EXTERNAL TRAINING COSTS                 ,830,24/04/2015,R,MAYBO                         
44,Central Services,SupS Health & Safety,Learning and Development,B06146,Employees                     ,Indirect Employee Expenses    ,AB57,EXTERNAL TRAINING COSTS                 ,830,24/04/2015,R,MAYBO                         
135,,,Parks Bin Finance Lease                 ,CE003EA,Vehicles Plant Equipment and Machinery,,D3,Equipment                               ,"27,300.00",28/03/2015,C,MACQUARIE EQUIP FINANCE (UK)LT
136,,,Parks Investment                        ,CE013SA,New Construction Conversion and Renovation,,B4,Contractor - Site works                 ,"4,744.00",01/05/2015,C,REDDINGTON & SONS             
137,,,Parks Investment                        ,CE013SA,New Construction Conversion and Renovation,,B4,Contractor - Site works                 ,"5,050.00",24/03/2015,C,REDACTED     
138,,,Parks Investment                        ,CE013SA,New Construction Conversion and Renovation,,B4,Contractor - Site works                 ,"1,700.00",18/12/2014,C,JUST METAL UK LTD             
139,,,Surface Water Drainage                  ,CE024FA,New Construction Conversion and Renovation,,B4,Contractor - Site works                 ,"2,550.07",08/05/2015,C,FM CONWAY LTD                 
140,,,Repairs to Footways                     ,CE029FA,New Construction Conversion and Renovation,,B4,Contractor - Site works                 ,"15,041.90",08/05/2015,C,FM CONWAY LTD                 
141,,,Repairs to Footways                     ,CE029FA,New Construction Conversion and Renovation,,B4,Contractor - Site works                 ,"3,851.82",08/05/2015,C,FM CONWAY LTD                 
142,,,Leisure Centre Plant & Machine          ,CE038MA,Vehicles Plant Equipment and Machinery,,D3,Equipment                               ,"2,200.00",20/05/2015,C,SRK ENGINES                   
143,,,Morden Leisure Centre                   ,CE045AA,New Construction Conversion and Renovation,,B1,Consultants Fees D&S Structure          ,"4,000.00",30/04/2015,C,SWEETT (UK) LIMITED           
144,,,Street Tree Programme                   ,CE067FA,New Construction Conversion and Renovation,,B5,Suppliers - Site works                  ,"4,621.97",11/05/2015,C,BARKLANDS TREE SPECIALISTS    
145,,,Accesibility Programme                  ,CE104FD,New Construction Conversion and Renovation,,B2,Site Surveys D&S Structure              ,850,13/05/2015,C,TRAFFICWATCH (UK) LTD.        
146,,,A298/A238 Strategic Corridor            ,CE104FQ,New Construction Conversion and Renovation,,B4,Contractor - Site works                 ,"17,000.00",08/05/2015,C,FM CONWAY LTD                 
147,,,Improved parking- shop parades          ,CE132FA,New Construction Conversion and Renovation,,B5,Suppliers - Site works                  ,"10,236.00",27/04/2015,C,PARKEON LTD                   
148,,,Civic Centre- Upgrading lifts           ,CF001AL,New Construction Conversion and Renovation,,B4,Contractor - Site works                 ,"11,214.75",15/05/2015,C,AXIS ELEVATORS LTD            
149,,,B631 - Solar PV Raynes Prk Pav          ,CF003BE,New Construction Conversion and Renovation,,B4,Contractor - Site works                 ,"16,000.00",01/05/2015,C,LENGUARD LIMITED              
150,,,Raynes Park Sports Pavilion             ,CS003CA,New Construction Conversion and Renovation,,B4,Contractor - Site works                 ,"25,257.46",01/05/2015,C,LENGUARD LIMITED              
151,,,Hillcross School Expansion              ,CS020AC,New Construction Conversion and Renovation,,B1,Consultants Fees D&S Structure          ,"1,925.00",28/04/2015,C,STACE LLP                     
152,,,Hillcross School Expansion              ,CS020AC,New Construction Conversion and Renovation,,B4,Contractor - Site works                 ,"305,856.65",28/04/2015,C,MANSELL CONSTRUCTION SERVICES 
153,,,Hillcross School Expansion              ,CS020AC,New Construction Conversion and Renovation,,B4,Contractor - Site works                 ,"24,942.83",20/05/2015,C,MANSELL CONSTRUCTION SERVICES 
154,,,Merton Abbey Temp Accomodation          ,CS022AC,New Construction Conversion and Renovation,,B4,Contractor - Site works                 ,"291,103.22",22/04/2015,C,MANSELL CONSTRUCTION SERVICES 
155,,,Pelham School Expansion                 ,CS023AC,New Construction Conversion and Renovation,,B1,Consultants Fees D&S Structure          ,"1,975.00",28/04/2015,C,STACE LLP                     
156,,,Pelham School Expansion                 ,CS023AC,New Construction Conversion and Renovation,,B1,Consultants Fees D&S Structure          ,"7,213.00",30/04/2015,C,HAVERSTOCK ASSOCIATES LLP     
157,,,Pelham School Expansion                 ,CS023AC,New Construction Conversion and Renovation,,B4,Contractor - Site works                 ,"182,728.45",05/05/2015,C,MANSELL CONSTRUCTION SERVICES 
158,,,Cricket Green Site                      ,CS027AE,New Construction Conversion and Renovation,,B1,Consultants Fees D&S Structure          ,"4,500.00",11/05/2015,C,NPS PROPERTY CONSULTANTS LTD  
159,,,Dundonald expansion                     ,CS031AC,New Construction Conversion and Renovation,,B1,Consultants Fees D&S Structure          ,"8,634.00",30/04/2015,C,HAVERSTOCK ASSOCIATES LLP     
160,,,Dundonald expansion                     ,CS031AC,New Construction Conversion and Renovation,,B1,Consultants Fees D&S Structure          ,"1,570.00",30/04/2015,C,SYNERGY CPC LLP               
161,,,Dundonald expansion                     ,CS031AC,New Construction Conversion and Renovation,,B6,Other Costs - Site works                ,"1,616.00",15/05/2015,C,ACTIVE SECURITY GROUP         
162,,,Poplar Permanent Expansion              ,CS034AB,New Construction Conversion and Renovation,,B4,Contractor - Site works                 ,"202,463.20",23/04/2015,C,MANSELL CONSTRUCTION SERVICES 
163,,,Singlegate expansion                    ,CS049AA,New Construction Conversion and Renovation,,B4,Contractor - Site works                 ,"368,104.31",22/04/2015,C,MANSELL CONSTRUCTION SERVICES 
164,,,Singlegate expansion                    ,CS049AA,Vehicles Plant Equipment and Machinery,,D3,Equipment                               ,"26,012.65",24/04/2015,C,WICKSTEED LEISURE LTD         
165,,,Wimbledon Park expansion                ,CS050AA,New Construction Conversion and Renovation,,B4,Contractor - Site works                 ,"6,854.00",27/04/2015,C,KELLY CONTRACTORS UK LTD      
166,,,Perseid                                 ,CS092AA,New Construction Conversion and Renovation,,B1,Consultants Fees D&S Structure          ,"2,406.14",11/05/2015,C,NPS PROPERTY CONSULTANTS LTD  
167,,,Perseid                                 ,CS092AA,New Construction Conversion and Renovation,,B4,Contractor - Site works                 ,"130,614.61",19/05/2015,C,R DURTNELL & SONS LTD         
168,,,Perseid                                 ,CS092AA,New Construction Conversion and Renovation,,B4,Contractor - Site works                 ,"92,407.70",30/04/2015,C,R DURTNELL & SONS LTD         
169,,,Disaster recovery                       ,CT003EA,Vehicles Plant Equipment and Machinery,,D3,Equipment                               ,"5,194.97",27/04/2015,C,NEC (UK) LTD                  
170,,,Disaster recovery                       ,CT003EA,Vehicles Plant Equipment and Machinery,,D3,Equipment                               ,515.64,23/04/2015,C,VIRGIN MEDIA BUSINESS         
171,,,Disaster recovery                       ,CT003EA,Vehicles Plant Equipment and Machinery,,D3,Equipment                               ,"20,110.11",23/04/2015,C,VIRGIN MEDIA BUSINESS         
172,,,Disaster recovery                       ,CT003EA,Vehicles Plant Equipment and Machinery,,D3,Equipment                               ,"4,125.15",23/04/2015,C,VIRGIN MEDIA BUSINESS         
173,,,Disaster recovery                       ,CT003EA,Other Capital Expenditure,,E3,Miscellaneous Capital Expendit          ,"2,844.00",14/05/2015,C,CIVICA UK LIMITED             
174,,,IT Equipment                            ,CT006EA,Vehicles Plant Equipment and Machinery,,D3,Equipment                               ,"6,000.60",14/05/2015,C,XMA LIMITED                   
175,,,IT Equipment                            ,CT006EA,Other Capital Expenditure,,E3,Miscellaneous Capital Expendit          ,"10,800.00",22/04/2015,C,INSIGHT DIRECT (UK) LTD       
176,,,IT Equipment                            ,CT006EA,Other Capital Expenditure,,E3,Miscellaneous Capital Expendit          ,"2,000.00",28/04/2015,C,CIVICA SERVICES LTD           
177,,,Data Labling                            ,CT023NA,Vehicles Plant Equipment and Machinery,,D5,Software                                ,"4,000.00",01/05/2015,C,APPERCEPTION                  
178,,,Data Labling                            ,CT023NA,Vehicles Plant Equipment and Machinery,,D5,Software                                ,"8,000.00",30/03/2015,C,APPERCEPTION                  
179,Central Services,Council tax collection,Local Taxation Services,E02100,Supplies & Services           ,Comms and Computing           ,DG09,Computer Purchases - Misc               ,950,05/05/2015,R,CIVICA UK LIMITED             
180,Central Services,Council tax collection,Local Taxation Services,E02100,Supplies & Services           ,Comms and Computing           ,DG09,Computer Purchases - Misc               ,725,19/05/2015,R,MAG:NET SOLUTIONS             
181,Central Services,Council tax collection,Local Taxation Bailiffs,E02101,Supplies & Services           ,Services                      ,DF18,Bailiffs' fees                          ,517.45,30/04/2015,R,HPI LIMITED                   
182,Central Services,Council tax collection,Sutton Shared Bailiffs Service          ,E02102,Third Party Payments          ,Other Local Authorities       ,EB01,Payments to OLAs                        ,"25,379.64",26/05/2015,R,LONDON BOROUGH OF SUTTON      
183,Housing Services,HB Administration,Benefits Administration,E02120,Supplies & Services           ,Comms and Computing           ,DG09,Computer Purchases - Misc               ,623.58,14/05/2015,R,CIVICA UK LIMITED             
184,Central Services,SupS Payroll,Payroll,E02140,Third Party Payments          ,Private Contractors           ,EH10,Contract Payments                       ,"1,942.50",22/04/2015,R,LONDON BOROUGH OF SUTTON      
185,Central Services,SupS Facilities,Post Room,E02220,Supplies & Services           ,Comms and Computing           ,DG04,Postage - General                       ,697.47,27/04/2015,R,STREETWISE COURIERS           
186,Central Services,SupS Facilities,Post Room,E02220,Supplies & Services           ,Comms and Computing           ,DG04,Postage - General                       ,829.87,07/04/2015,R,STREETWISE COURIERS           
187,Central Services,SupS Facilities,Post Room,E02220,Supplies & Services           ,Comms and Computing           ,DG04,Postage - General                       ,"1,038.01",31/03/2015,R,ADDISON LEE LTD               
188,Central Services,SupS Facilities,Post Room,E02220,Supplies & Services           ,Comms and Computing           ,DG04,Postage - General                       ,"2,255.01",30/04/2015,R,ADDISON LEE LTD               
189,Central Services,SupS Facilities,Post Room,E02220,Supplies & Services           ,Comms and Computing           ,DG04,Postage - General                       ,648.01,05/05/2015,R,STREETWISE COURIERS           
190,Central Services,SupS Facilities,Post Room,E02220,Supplies & Services           ,Comms and Computing           ,DG04,Postage - General                       ,849.8,20/04/2015,R,STREETWISE COURIERS           
191,Central Services,SupS Facilities,Post Room,E02220,Supplies & Services           ,Comms and Computing           ,DG04,Postage - General                       ,509.87,13/04/2015,R,STREETWISE COURIERS           
192,Central Services,SupS Facilities,Post Room,E02220,Supplies & Services           ,Comms and Computing           ,DG04,Postage - General                       ,588.8,31/03/2014,R,PARKER CARS LTD               
193,Central Services,SupS Facilities,Post Room,E02220,Supplies & Services           ,Comms and Computing           ,DG04,Postage - General                       ,"1,540.84",12/05/2015,R,STREETWISE COURIERS           
194,Central Services,SupS Facilities,Security Services,E02221,Employees                     ,Direct Employee Expenses      ,AA17,Agency Staff & Casual Paymts            ,"1,978.90",01/05/2015,R,REDACTED     
195,Central Services,SupS Facilities,Security Services,E02221,Employees                     ,Direct Employee Expenses      ,AA17,Agency Staff & Casual Paymts            ,"1,675.64",01/05/2015,R,REDACTED     
196,Central Services,SupS Facilities,Security Services,E02221,Employees                     ,Direct Employee Expenses      ,AA17,Agency Staff & Casual Paymts            ,"1,415.63",01/05/2015,R,REDACTED     
197,Central Services,SupS Facilities,Security Services,E02221,Employees                     ,Direct Employee Expenses      ,AA17,Agency Staff & Casual Paymts            ,"1,665.36",01/05/2015,R,REDACTED     
198,Central Services,SupS Facilities,Security Services,E02221,Employees                     ,Direct Employee Expenses      ,AA17,Agency Staff & Casual Paymts            ,"1,670.50",01/05/2015,R,REDACTED     
199,Central Services,SupS Facilities,Civic Centre,E02222,Premises Related Expenditure  ,RepairsAlterations&MtceOfBldgs,BA05,DDM - Electrical                        ,525,13/05/2015,R,AXIS ELEVATORS LTD            
200,Central Services,SupS Facilities,Civic Centre,E02222,Premises Related Expenditure  ,RepairsAlterations&MtceOfBldgs,BA29,BUILD MAINT MGT FEES                    ,"3,117.97",12/03/2015,R,SALTASH ENTERPRISES LTD       
201,Central Services,SupS Facilities,Civic Centre,E02222,Premises Related Expenditure  ,RepairsAlterations&MtceOfBldgs,BA29,BUILD MAINT MGT FEES                    ,785,07/05/2015,R,MORTON FAIRVIEW ELEC SERVICES 
202,Central Services,SupS Facilities,Civic Centre,E02222,Premises Related Expenditure  ,RepairsAlterations&MtceOfBldgs,BA29,BUILD MAINT MGT FEES                    ,"4,349.00",21/04/2015,R,BROXAP LIMITED                
203,Central Services,SupS Facilities,Facilities,E02231,Premises Related Expenditure  ,RepairsAlterations&MtceOfBldgs,BA02,ENERGY CONSERVATION                     ,"2,816.00",25/03/2015,R,ENERGY SAVING LIGHTING (UK) LT
204,Central Services,SupS Facilities,Facilities,E02231,Premises Related Expenditure  ,RepairsAlterations&MtceOfBldgs,BA02,ENERGY CONSERVATION                     ,"4,713.60",13/03/2015,R,ENERGY SAVING LIGHTING (UK) LT
205,Central Services,SupS Facilities,Facilities,E02231,Premises Related Expenditure  ,RepairsAlterations&MtceOfBldgs,BA02,ENERGY CONSERVATION                     ,"1,680.00",27/04/2015,R,STARK SOFTWARE INTERNATIONAL  
206,Central Services,SupS Facilities,Facilities,E02231,Supplies & Services           ,Comms and Computing           ,DG09,Computer Purchases - Misc               ,"1,547.08",13/05/2015,R,SPECIALIST COMPUTER CENT. PLC 
207,Central Services,SupS Facilities,Corporate Services Buildings,E02240,Premises Related Expenditure  ,RepairsAlterations&MtceOfBldgs,BA01,DDM - General Building                  ,"1,050.00",24/04/2015,R,KH FLOORING LTD               
208,Central Services,SupS Facilities,Corporate Services Buildings,E02240,Premises Related Expenditure  ,RepairsAlterations&MtceOfBldgs,BA02,Energy Conservation                     ,"35,415.57",12/03/2015,R,ENERGY SAVING LIGHTING (UK) LT
209,Central Services,SupS Facilities,Corporate Services Buildings,E02240,Premises Related Expenditure  ,RepairsAlterations&MtceOfBldgs,BA03,DDM - Mechanical                        ,"1,465.00",19/05/2015,R,AXIS ELEVATORS LTD            
210,Central Services,SupS Facilities,Corporate Services Buildings,E02240,Premises Related Expenditure  ,RepairsAlterations&MtceOfBldgs,BA03,DDM - Mechanical                        ,525,08/05/2015,R,AXIS ELEVATORS LTD            
211,Central Services,SupS Facilities,Corporate Services Buildings,E02240,Premises Related Expenditure  ,RepairsAlterations&MtceOfBldgs,BA03,DDM - Mechanical                        ,"1,614.00",19/05/2015,R,AXIS ELEVATORS LTD            
212,Central Services,SupS Facilities,Corporate Services Buildings,E02240,Premises Related Expenditure  ,RepairsAlterations&MtceOfBldgs,BA03,DDM - Mechanical                        ,"2,010.00",23/04/2015,R,AXIS ELEVATORS LTD            
213,Central Services,SupS Facilities,Corporate Services Buildings,E02240,Premises Related Expenditure  ,RepairsAlterations&MtceOfBldgs,BA05,DDM - Electrical                        ,"1,150.00",14/05/2015,R,EDMUNDSON ELECTRICAL LTD      
214,Central Services,SupS Facilities,Corporate Services Buildings,E02240,Premises Related Expenditure  ,RepairsAlterations&MtceOfBldgs,BA05,DDM - Electrical                        ,873.75,08/05/2015,R,AXIS ELEVATORS LTD            
215,Central Services,SupS Facilities,Corporate Services Buildings,E02240,Premises Related Expenditure  ,RepairsAlterations&MtceOfBldgs,BA06,Repairs & Maintenance General           ,540,22/04/2015,R,SUNA SUPPLIES LTD.            
216,Central Services,SupS Facilities,Corporate Services Buildings,E02240,Premises Related Expenditure  ,RepairsAlterations&MtceOfBldgs,BA06,Repairs & Maintenance General           ,590,29/04/2015,R,SUNA SUPPLIES LTD.            
217,Central Services,SupS Facilities,Corporate Services Buildings,E02240,Premises Related Expenditure  ,RepairsAlterations&MtceOfBldgs,BA29,Build Maint Mgt Fees                    ,"2,518.61",16/01/2015,R,EUROPA NATIONWIDE TECH.SER.LTD
218,Central Services,SupS Facilities,Corporate Services Buildings,E02240,Premises Related Expenditure  ,RepairsAlterations&MtceOfBldgs,BA29,Build Maint Mgt Fees                    ,"2,518.61",15/09/2014,R,EUROPA NATIONWIDE TECH.SER.LTD
219,Childrens & Education Services,Strategic Management,PDC,E02254,Premises Related Expenditure  ,Energy Costs                  ,BB02,Electricity                             ,642.3,01/05/2015,R,SCOTTISHPOWER                 
220,Childrens & Education Services,Strategic Management,PDC,E02254,Premises Related Expenditure  ,Cleaning and Domestic Supplies,BH03,Cleaning Services                       ,"2,397.51",30/04/2015,R,JULIUS RUTHERFOORD & CO LTD   
221,Childrens & Education Services,Strategic Management,CSF Buildings,E02256,Premises Related Expenditure  ,RepairsAlterations&MtceOfBldgs,BA05,DDM - Electrical                        ,756.69,20/04/2015,R,EUROPA NATIONWIDE TECH.SER.LTD
222,Adult Social Care,OP 65 & Over Day Care,Pollards Hill Day Centre,E02270,Premises Related Expenditure  ,Cleaning and Domestic Supplies,BH01,Cleaning Materials                      ,504,12/05/2015,R,GREENHAM TRADING LTD          
223,Adult Social Care,OP 65 & Over Day Care,Pollards Hill Day Centre,E02270,Premises Related Expenditure  ,Cleaning and Domestic Supplies,BH01,Cleaning Materials                      ,504,20/05/2015,R,GREENHAM                      
224,Adult Social Care,OP 65 & Over Day Care,Pollards Hill Day Centre,E02270,Premises Related Expenditure  ,Cleaning and Domestic Supplies,BH09,Communal/Commercial Waste               ,507.22,30/04/2015,R,SHRED-ON-SITE LIMITED         
225,Adult Social Care,OP 65 & Over Day Care,Pollards Hill Day Centre,E02270,Third Party Payments          ,Private Contractors           ,EH02,Miscellaneous Hired Services            ,"1,738.59",14/04/2015,R,PHS GROUP PLC                 
226,Adult Social Care,OP 65 & Over Day Care,Pollards Hill Day Centre,E02270,Third Party Payments          ,Private Contractors           ,EH02,Miscellaneous Hired Services            ,553.14,20/05/2015,R,OCS GROUP UK LTD T/A CANNON   
227,Adult Social Care,OP 65 & Over Day Care,Pollards Hill Day Centre,E02270,Third Party Payments          ,Private Contractors           ,EH02,Miscellaneous Hired Services            ,999.28,14/04/2015,R,PHS GROUP PLC                 
228,Cultural Env Reg&Plan Services,Parks & Open Spaces,E & R Buildings,E02344,Premises Related Expenditure  ,RepairsAlterations&MtceOfBldgs,BA05,DDM - Electrical                        ,747.35,15/05/2015,R,EUROPA NATIONWIDE TECH.SER.LTD
229,Cultural Env Reg&Plan Services,Parks & Open Spaces,Leisure Buildings,E02350,Premises Related Expenditure  ,RepairsAlterations&MtceOfBldgs,BA01,DDM - General Building                  ,510.2,09/04/2015,R,PJ HARVEY & CO LTD            
230,Central Services,SupS DOF,AD RESOURCES,E04061,Supplies & Services           ,Services                      ,DF09,Miscellaneous Fees                      ,"4,180.00",09/04/2015,R,CIPFA BUSINESS LTD            
231,Central Services,SupS DOF,AD RESOURCES,E04061,Supplies & Services           ,Services                      ,DF09,Miscellaneous Fees                      ,"6,285.00",04/03/2015,R,CIPFA BUSINESS LTD            
232,Central Services,SupS Audit and Fraud,Internal Audit&Service Review,E05101,Supplies & Services           ,Services                      ,DF58,Audit fee                               ,"4,556.00",30/04/2015,R,GRANT THORNTON UK LLP         
233,Central Services,SupS Audit and Fraud,Internal Audit&Service Review,E05101,Supplies & Services           ,Services                      ,DF58,Audit fee                               ,"3,536.00",17/04/2015,R,GRANT THORNTON UK LLP         
234,Central Services,SupS  Risk and Insurance,Insurance Premiums & Funding,E05161,Supplies & Services           ,Services                      ,DF74,Insurance Premiums                      ,"258,252.04",16/04/2014,R,ZURICH INSURANCE COMPANY      
235,Central Services,SupS  Risk and Insurance,Insurance Premiums & Funding,E05161,Supplies & Services           ,Services                      ,DF74,Insurance Premiums                      ,532.65,16/04/2015,R,ZURICH INSURANCE COMPANY      
236,Central Services,SupS  Risk and Insurance,Insurance Premiums & Funding,E05161,Supplies & Services           ,Services                      ,DF74,Insurance Premiums                      ,"5,512.00",10/04/2015,R,JLT SPECIALTY LIMITED         
237,Central Services,SupS  Risk and Insurance,Insurance Premiums & Funding,E05161,Supplies & Services           ,Services                      ,DF74,Insurance Premiums                      ,"225,325.06",16/04/2015,R,JLT SPECIALTY LIMITED         
238,Central Services,SupS  Risk and Insurance,Insurance Premiums & Funding,E05161,Supplies & Services           ,Services                      ,DF74,Insurance Premiums                      ,"9,898.32",15/04/2015,R,JLT SPECIALTY LIMITED         
239,Central Services,SupS  Risk and Insurance,Insurance Premiums & Funding,E05161,Supplies & Services           ,Services                      ,DF74,Insurance Premiums                      ,"16,615.50",10/04/2015,R,JLT SPECIALTY LIMITED         
240,Central Services,SupS  Risk and Insurance,Insurance Premiums & Funding,E05161,Supplies & Services           ,Services                      ,DF74,Insurance Premiums                      ,"9,982.92",15/04/2015,R,JLT SPECIALTY LIMITED         
241,Central Services,SupS  Risk and Insurance,Insurance Premiums & Funding,E05161,Supplies & Services           ,Services                      ,DF74,Insurance Premiums                      ,"81,302.00",15/04/2015,R,JLT SPECIALTY LIMITED         
242,Central Services,SupS  Risk and Insurance,Insurance Premiums & Funding,E05161,Supplies & Services           ,Services                      ,DF74,Insurance Premiums                      ,"6,360.00",15/04/2015,R,JLT SPECIALTY LIMITED         
243,Central Services,SupS  Risk and Insurance,Insurance Premiums & Funding,E05161,Supplies & Services           ,Services                      ,DF74,Insurance Premiums                      ,"22,260.00",15/04/2015,R,JLT SPECIALTY LIMITED         
244,Central Services,SupS  Risk and Insurance,Insurance Premiums & Funding,E05161,Supplies & Services           ,Services                      ,DF74,Insurance Premiums                      ,"103,217.50",15/04/2015,R,JLT SPECIALTY LIMITED         
245,Central Services,SupS Corporate Finance,Corporate Accountancy,E06209,Supplies & Services           ,Services                      ,DF03,Consultants                             ,"9,200.00",12/05/2015,R,PUBLIC SECTOR CONSULTANTS     
246,Central Services,SupS Corporate Finance,Corporate Accountancy,E06209,Supplies & Services           ,Services                      ,DF58,Audit Fee                               ,"1,266.00",29/04/2015,R,ERNST & YOUNG LLP             
247,Central Services,SupS Corporate Finance,Corporate Accountancy,E06209,Supplies & Services           ,Services                      ,DF58,Audit Fee                               ,"7,912.00",29/04/2015,R,ERNST & YOUNG LLP             
248,Central Services,SupS Corporate Finance,Corporate Accountancy,E06209,Supplies & Services           ,Services                      ,DF58,Audit Fee                               ,"5,494.00",29/04/2015,R,ERNST & YOUNG LLP             
249,Central Services,SupS Corporate Finance,Corporate Accountancy,E06209,Supplies & Services           ,Services                      ,DF58,Audit Fee                               ,"41,951.00",29/04/2015,R,ERNST & YOUNG LLP             
250,Central Services,SupS Strategic Finance,Business Planning,E06221,Employees                     ,Direct Employee Expenses      ,AA17,Agency Staff & Casual Paymts            ,900,22/04/2015,R,HAYS RECRUITING EXPERTS       
251,Central Services,SupS Strategic Finance,Business Planning,E06221,Employees                     ,Direct Employee Expenses      ,AA17,Agency Staff & Casual Paymts            ,"1,750.00",29/04/2015,R,HAYS RECRUITING EXPERTS       
252,Central Services,SupS Strategic Finance,Business Planning,E06221,Employees                     ,Direct Employee Expenses      ,AA17,Agency Staff & Casual Paymts            ,850,22/04/2015,R,HAYS RECRUITING EXPERTS       
253,Central Services,SupS Strategic Finance,Business Planning,E06221,Employees                     ,Direct Employee Expenses      ,AA17,Agency Staff & Casual Paymts            ,"1,750.00",06/05/2015,R,HAYS RECRUITING EXPERTS       
254,Central Services,SupS Strategic Finance,Business Planning,E06221,Employees                     ,Direct Employee Expenses      ,AA17,Agency Staff & Casual Paymts            ,"1,750.00",20/05/2015,R,HAYS RECRUITING EXPERTS       
255,Central Services,SupS Strategic Finance,Business Planning,E06221,Supplies & Services           ,Comms and Computing           ,DG50,Other IT Expenditure                    ,"4,153.12",09/04/2015,R,COVALENT SOFTWARE             
256,Central Services,SupS Strategic Finance,Treasury & Insurance,E06222,Employees                     ,Direct Employee Expenses      ,AA17,Agency Staff & Casual Paymts            ,"4,700.00",27/04/2015,R,REDACTED
257,Central Services,SupS Strategic Finance,Treasury & Insurance,E06222,Employees                     ,Direct Employee Expenses      ,AA17,Agency Staff & Casual Paymts            ,"4,230.00",19/05/2015,R,REDACTED
258,Central Services,SupS Strategic Finance,Treasury & Insurance,E06222,Supplies & Services           ,Comms and Computing           ,DG02,Software Licences                       ,"8,500.00",16/04/2015,R,SECTOR TREASURY SERVICES LTD  
259,Central Services,GENERATED ACCOUNT,Parking Cash Collect'n Contrct,E06225,Third Party Payments          ,Private Contractors           ,EH02,Miscellaneous Hired Services            ,767.25,31/03/2015,R,BANKING AUTOMATION LTD        
260,Central Services,GENERATED ACCOUNT,Parking Cash Collect'n Contrct,E06225,Third Party Payments          ,Private Contractors           ,EH02,Miscellaneous Hired Services            ,558,30/04/2015,R,BANKING AUTOMATION LTD        
261,Central Services,GENERATED ACCOUNT,Establishments' Cash Collect'n,E06226,Third Party Payments          ,Private Contractors           ,EH02,Miscellaneous Hired Services            ,"8,891.75",30/04/2015,R,BANKING AUTOMATION LTD        
262,Central Services,GENERATED ACCOUNT,Establishments' Cash Collect'n,E06226,Third Party Payments          ,Private Contractors           ,EH02,Miscellaneous Hired Services            ,"9,476.20",31/03/2015,R,BANKING AUTOMATION LTD        
263,Central Services,SupS DOF,Service Accountancy,E06227,Employees                     ,Direct Employee Expenses      ,AA17,Agency Staff & Casual Paymts            ,"9,660.00",18/05/2015,R,REDACTED
264,Central Services,Conducting elections,Election Expenses,E10284,Supplies & Services           ,Equip Furniture/Materials     ,DA03,Hire of Equipment                       ,"1,631.25",08/05/2015,R,EVENT HIRE COMPANY            
265,Central Services,Conducting elections,Election Expenses,E10284,Supplies & Services           ,Equip Furniture/Materials     ,DA03,Hire of Equipment                       ,"1,515.00",11/05/2015,R,EVE TRAKWAY LIMITED           
266,Central Services,Conducting elections,Election Expenses,E10284,Supplies & Services           ,Equip Furniture/Materials     ,DA03,Hire of Equipment                       ,777.5,07/05/2015,R,BARKERS MARQUEE HIRE LTD      
267,Central Services,Conducting elections,Election Expenses,E10284,Supplies & Services           ,Equip Furniture/Materials     ,DA09,Equip-Purchases                         ,"1,418.75",25/02/2015,R,SHAW & SONS LTD               
268,Central Services,Conducting elections,Election Expenses,E10284,Supplies & Services           ,Equip Furniture/Materials     ,DA09,Equip-Purchases                         ,640,15/04/2015,R,THOMAS FATTORINI LTD          
269,Central Services,Conducting elections,Election Expenses,E10284,Supplies & Services           ,Equip Furniture/Materials     ,DA09,Equip-Purchases                         ,624.5,10/04/2015,R,PAKFLATT (UK) LTD             
270,Central Services,Registration of electors,Electoral Registration,E10285,Supplies & Services           ,Comms and Computing           ,DG02,Software Licences                       ,"21,884.39",01/03/2015,R,HALAROSE LIMITED              
271,Central Services,Registration of electors,Electoral Registration,E10285,Supplies & Services           ,Comms and Computing           ,DG04,Postage - General                       ,804.65,17/04/2015,R,FINANCIAL DATA MANAGEMENT PLC 
272,Central Services,Registration of electors,Electoral Registration,E10285,Supplies & Services           ,Comms and Computing           ,DG04,Postage - General                       ,"3,551.00",04/05/2015,R,ROYAL MAIL GROUP LTD          
273,Central Services,Registration of electors,Electoral Registration,E10285,Supplies & Services           ,Comms and Computing           ,DG04,Postage - General                       ,575.67,20/04/2015,R,ROYAL MAIL GROUP LTD          
274,Central Services,Registration of electors,Electoral Registration,E10285,Supplies & Services           ,Comms and Computing           ,DG04,Postage - General                       ,"2,254.56",18/05/2015,R,ROYAL MAIL GROUP LTD          
275,Central Services,Registration of electors,Electoral Registration,E10285,Supplies & Services           ,Comms and Computing           ,DG04,Postage - General                       ,"1,246.52",25/05/2015,R,ROYAL MAIL GROUP LTD          
276,Central Services,SupS Legal,Shared Legal Service,E10288,Employees                     ,Indirect Employee Expenses    ,AB57,External Training Costs                 ,560,27/03/2015,R,CAPITA BUSINESS SERVICES LTD  
277,Central Services,SupS Legal,Shared Legal Service,E10288,Supplies & Services           ,Prntng Stnry Gen Off Exp      ,DE30,General Office Expense                  ,"1,538.64",30/04/2015,R,WINCANTON RECORDS MANAGEMENT  
278,Central Services,SupS Legal,Shared Legal Service,E10288,Supplies & Services           ,Services                      ,DF95,Services from Provider                  ,798.5,25/03/2015,R,REDACTED     
279,Central Services,SupS Legal,Shared Legal Service,E10288,Supplies & Services           ,Services                      ,DF95,Services from Provider                  ,"1,372.50",27/04/2015,R,REDACTED     
280,Central Services,SupS Legal,Shared Legal Service,E10288,Supplies & Services           ,Comms and Computing           ,DG04,Postage - General                       ,500,28/04/2015,R,NEOPOST FINANCE LIMITED       
281,Central Services,SupS Legal,Shared Legal Service,E10288,Supplies & Services           ,Grants and Subscriptions      ,DJ04,Subscriptions                           ,750,20/05/2015,R,LGG                           
282,Central Services,SupS Legal,Richmond Legal,E10289,Supplies & Services           ,Services                      ,DF95,Services from Provider                  ,"5,525.50",28/04/2015,R,REDACTED     
283,Central Services,SupS Legal,Kingston Legal                          ,E10292,Supplies & Services           ,Services                      ,DF95,Services from Provider                  ,"2,053.50",29/04/2015,R,REDACTED     
284,Central Services,SupS Legal,Sutton Legal                            ,E10293,Supplies & Services           ,Services                      ,DF11,Counsel's Fees                          ,"1,800.00",24/04/2015,R,REDACTED     
285,Central Services,SupS Legal,Sutton Legal                            ,E10293,Supplies & Services           ,Services                      ,DF11,Counsel's Fees                          ,520,14/04/2015,R,REDACTED     
286,Central Services,SupS Legal,Sutton Legal                            ,E10293,Supplies & Services           ,Services                      ,DF11,Counsel's Fees                          ,"1,500.00",13/04/2015,R,REDACTED     
287,Central Services,SupS Legal,Sutton Legal                            ,E10293,Supplies & Services           ,Services                      ,DF11,Counsel's Fees                          ,510,13/05/2015,R,REDACTED     
288,Central Services,SupS Legal,Sutton Legal                            ,E10293,Supplies & Services           ,Services                      ,DF11,Counsel's Fees                          ,930,13/05/2015,R,REDACTED     
289,Central Services,SupS Legal,Sutton Legal                            ,E10293,Supplies & Services           ,Services                      ,DF11,Counsel's Fees                          ,675,18/03/2015,R,REDACTED     
290,Central Services,SupS Legal,Sutton Legal                            ,E10293,Supplies & Services           ,Services                      ,DF11,Counsel's Fees                          ,531.75,29/04/2015,R,REDACTED     
291,Central Services,SupS Legal,Sutton Legal                            ,E10293,Supplies & Services           ,Services                      ,DF14,Doctors and Other Fees                  ,652.5,26/04/2015,R,REDACTED     
292,Central Services,SupS Legal,Sutton Legal                            ,E10293,Supplies & Services           ,Services                      ,DF14,Doctors and Other Fees                  ,"2,960.00",27/04/2015,R,NATIO RESOURCING LTD          
293,Central Services,SupS Legal,Sutton Legal                            ,E10293,Supplies & Services           ,Services                      ,DF14,Doctors and Other Fees                  ,"1,722.20",17/05/2015,R,SECECETRA EXPERT SERVICES     
294,Central Services,SupS Legal,Sutton Legal                            ,E10293,Supplies & Services           ,Services                      ,DF95,Services from Provider                  ,"1,125.00",14/05/2015,R,RUSSELL -  COOKE LLP          
295,Central Services,SupS Legal,Achieving for Children (AFC),E10295,Supplies & Services           ,Services                      ,DF11,Counsel's Fees                          ,"1,870.00",30/04/2015,R,REDACTED     
296,Central Services,SupS Legal,Achieving for Children (AFC),E10295,Supplies & Services           ,Services                      ,DF11,Counsel's Fees                          ,"4,912.50",01/12/2014,R,REDACTED     
297,Central Services,SupS Legal,Achieving for Children (AFC),E10295,Supplies & Services           ,Services                      ,DF11,Counsel's Fees                          ,650,24/04/2015,R,REDACTED     
298,Central Services,SupS Legal,Achieving for Children (AFC),E10295,Supplies & Services           ,Services                      ,DF11,Counsel's Fees                          ,"1,025.00",04/05/2015,R,REDACTED     
299,Central Services,SupS Legal,Achieving for Children (AFC),E10295,Supplies & Services           ,Services                      ,DF11,Counsel's Fees                          ,701.67,13/04/2015,R,REDACTED     
300,Central Services,SupS Legal,Achieving for Children (AFC),E10295,Supplies & Services           ,Services                      ,DF11,Counsel's Fees                          ,"1,020.00",13/05/2015,R,REDACTED     
301,Central Services,SupS Legal,Achieving for Children (AFC),E10295,Supplies & Services           ,Services                      ,DF11,Counsel's Fees                          ,500,13/05/2015,R,REDACTED     
302,Central Services,SupS Legal,Achieving for Children (AFC),E10295,Supplies & Services           ,Services                      ,DF14,Doctors and Other Fees                  ,"1,342.00",28/04/2015,R,PHILLIPS & GUPTA LIMITED      
303,Central Services,SupS Legal,Achieving for Children (AFC),E10295,Supplies & Services           ,Services                      ,DF14,Doctors and Other Fees                  ,620.17,13/05/2015,R,PSYCHOLOGY EXPERTS LTD        
304,Central Services,SupS Legal,Achieving for Children (AFC),E10295,Supplies & Services           ,Services                      ,DF95,Services from Provider                  ,"14,182.00",17/03/2015,R,WARD HADAWAY                  
305,Central Services,SupS IT,Social Care Info System (SCI)           ,E14357,Employees                     ,Direct Employee Expenses      ,AA17,Agency Staff & Casual Paymts            ,"7,182.40",01/05/2015,R,REDACTED     
306,Central Services,SupS IT,Social Care Info System (SCI)           ,E14357,Employees                     ,Direct Employee Expenses      ,AA17,Agency Staff & Casual Paymts            ,"2,375.00",19/04/2015,R,HAMPTON'S RESOURCING          
307,Central Services,SupS IT,Social Care Info System (SCI)           ,E14357,Employees                     ,Direct Employee Expenses      ,AA17,Agency Staff & Casual Paymts            ,"1,900.00",05/04/2015,R,HAMPTON'S RESOURCING          
308,Central Services,SupS IT,Social Care Info System (SCI)           ,E14357,Employees                     ,Direct Employee Expenses      ,AA17,Agency Staff & Casual Paymts            ,"1,210.00",22/04/2015,R,HAYS RECRUITING EXPERTS       
309,Central Services,SupS IT,Social Care Info System (SCI)           ,E14357,Employees                     ,Direct Employee Expenses      ,AA17,Agency Staff & Casual Paymts            ,"2,375.00",26/04/2015,R,HAMPTON'S RESOURCING          
310,Central Services,SupS IT,Social Care Info System (SCI)           ,E14357,Employees                     ,Direct Employee Expenses      ,AA17,Agency Staff & Casual Paymts            ,"2,420.00",29/04/2015,R,HAYS RECRUITING EXPERTS       
311,Central Services,SupS IT,Social Care Info System (SCI)           ,E14357,Employees                     ,Direct Employee Expenses      ,AA17,Agency Staff & Casual Paymts            ,"1,815.00",06/05/2015,R,HAYS RECRUITING EXPERTS       
312,Central Services,SupS IT,Social Care Info System (SCI)           ,E14357,Employees                     ,Direct Employee Expenses      ,AA17,Agency Staff & Casual Paymts            ,"2,375.00",03/05/2015,R,HAMPTON'S RESOURCING          
313,Central Services,SupS IT,Social Care Info System (SCI)           ,E14357,Employees                     ,Direct Employee Expenses      ,AA17,Agency Staff & Casual Paymts            ,"2,375.00",17/05/2015,R,HAMPTON'S RESOURCING          
314,Central Services,SupS IT,Social Care Info System (SCI)           ,E14357,Employees                     ,Direct Employee Expenses      ,AA17,Agency Staff & Casual Paymts            ,"1,900.00",12/04/2015,R,HAMPTON'S RESOURCING          
315,Central Services,SupS IT,Social Care Info System (SCI)           ,E14357,Employees                     ,Direct Employee Expenses      ,AA17,Agency Staff & Casual Paymts            ,"7,182.40",01/05/2015,R,REDACTED     
316,Central Services,SupS IT,Social Care Info System (SCI)           ,E14357,Employees                     ,Direct Employee Expenses      ,AA17,Agency Staff & Casual Paymts            ,"2,375.00",10/05/2015,R,HAMPTON'S RESOURCING          
317,Central Services,SupS IT,BI IT Projects,E14360,Employees                     ,Direct Employee Expenses      ,AA17,Agency Staff & Casual Paymts            ,"1,520.00",13/05/2015,R,REDACTED
318,Central Services,SupS IT,BI IT Projects,E14360,Employees                     ,Direct Employee Expenses      ,AA17,Agency Staff & Casual Paymts            ,"1,375.50",06/05/2015,R,BIBBY FACTORS LEICESTER       
319,Central Services,SupS IT,BI IT Projects,E14360,Employees                     ,Direct Employee Expenses      ,AA17,Agency Staff & Casual Paymts            ,"1,900.00",28/04/2015,R,REDACTED
320,Central Services,SupS IT,BI IT Projects,E14360,Employees                     ,Direct Employee Expenses      ,AA17,Agency Staff & Casual Paymts            ,"1,669.50",21/04/2015,R,BIBBY FACTORS LEICESTER       
321,Central Services,SupS IT,BI IT Projects,E14360,Employees                     ,Direct Employee Expenses      ,AA17,Agency Staff & Casual Paymts            ,"1,655.50",29/04/2015,R,BIBBY FACTORS LEICESTER       
322,Central Services,SupS IT,BI IT Projects,E14360,Employees                     ,Direct Employee Expenses      ,AA17,Agency Staff & Casual Paymts            ,"1,520.00",21/04/2015,R,REDACTED
323,Central Services,SupS IT,BI IT Projects,E14360,Employees                     ,Direct Employee Expenses      ,AA17,Agency Staff & Casual Paymts            ,"1,520.00",07/04/2015,R,REDACTED
324,Central Services,SupS IT,Strategy & Quality,E14365,Supplies & Services           ,Services                      ,DF03,Consultants                             ,"2,855.00",28/02/2015,R,LUCION ENVIRONMENTAL LTD      
325,Central Services,SupS IT,Systems & Projects,E14366,Employees                     ,Direct Employee Expenses      ,AA17,Agency Staff & Casual Paymts            ,"1,500.10",08/05/2015,R,REDACTED
326,Central Services,SupS IT,Systems & Projects,E14366,Employees                     ,Direct Employee Expenses      ,AA17,Agency Staff & Casual Paymts            ,"1,157.22",13/05/2015,R,REDACTED
327,Central Services,SupS IT,Systems & Projects,E14366,Employees                     ,Direct Employee Expenses      ,AA17,Agency Staff & Casual Paymts            ,"3,000.20",08/05/2015,R,REDACTED
328,Central Services,SupS IT,Systems & Projects,E14366,Employees                     ,Direct Employee Expenses      ,AA17,Agency Staff & Casual Paymts            ,660,20/04/2015,R,BIBBY FACTORS LEICESTER       
329,Central Services,SupS IT,Systems & Projects,E14366,Employees                     ,Direct Employee Expenses      ,AA17,Agency Staff & Casual Paymts            ,660,11/05/2015,R,BIBBY FACTORS LEICESTER       
330,Central Services,SupS IT,Systems & Projects,E14366,Employees                     ,Direct Employee Expenses      ,AA17,Agency Staff & Casual Paymts            ,"1,100.00",19/05/2015,R,BIBBY FACTORS LEICESTER       
331,Central Services,SupS IT,Systems & Projects,E14366,Employees                     ,Direct Employee Expenses      ,AA17,Agency Staff & Casual Paymts            ,"1,100.00",27/04/2015,R,BIBBY FACTORS LEICESTER       
332,Central Services,SupS IT,Systems & Projects,E14366,Employees                     ,Direct Employee Expenses      ,AA17,Agency Staff & Casual Paymts            ,880,05/05/2015,R,BIBBY FACTORS LEICESTER       
333,Central Services,SupS IT,Systems & Projects,E14366,Employees                     ,Direct Employee Expenses      ,AA17,Agency Staff & Casual Paymts            ,"2,785.90",13/05/2015,R,REDACTED
334,Central Services,SupS IT,Systems & Projects,E14366,Employees                     ,Direct Employee Expenses      ,AA17,Agency Staff & Casual Paymts            ,660,20/04/2015,R,BIBBY FACTORS LEICESTER       
335,Central Services,SupS IT,Systems & Projects,E14366,Employees                     ,Direct Employee Expenses      ,AA17,Agency Staff & Casual Paymts            ,"1,500.10",29/04/2015,R,REDACTED
336,Central Services,SupS IT,Systems & Projects,E14366,Supplies & Services           ,Services                      ,DF03,Consultants                             ,"1,120.00",11/05/2015,R,MARCUS DONALD PEOPLE LTD      
337,Central Services,SupS IT,Systems & Projects,E14366,Supplies & Services           ,Services                      ,DF03,Consultants                             ,"1,400.00",27/04/2015,R,MARCUS DONALD PEOPLE LTD      
338,Central Services,SupS IT,Systems & Projects,E14366,Supplies & Services           ,Services                      ,DF03,Consultants                             ,840,15/04/2015,R,MARCUS DONALD PEOPLE LTD      
339,Central Services,SupS IT,Systems & Projects,E14366,Supplies & Services           ,Services                      ,DF03,Consultants                             ,"1,400.00",18/05/2015,R,MARCUS DONALD PEOPLE LTD      
340,Central Services,SupS IT,Systems & Projects,E14366,Supplies & Services           ,Services                      ,DF03,Consultants                             ,"1,400.00",06/05/2015,R,MARCUS DONALD PEOPLE LTD      
341,Central Services,SupS IT,Systems & Projects,E14366,Supplies & Services           ,Services                      ,DF03,Consultants                             ,"1,400.00",19/04/2015,R,MARCUS DONALD PEOPLE LTD      
342,Central Services,SupS IT,Systems & Projects,E14366,Supplies & Services           ,Services                      ,DF57,Consulting Engineers Fees               ,"1,440.36",18/03/2015,R,CIVICA UK LIMITED             
343,Central Services,SupS IT,Systems & Projects,E14366,Supplies & Services           ,Comms and Computing           ,DG50,Other IT Expenditure                    ,"5,400.00",30/11/2014,R,DUE NORTH LTD                 
344,Central Services,SupS IT,Systems & Projects,E14366,Supplies & Services           ,Comms and Computing           ,DG50,Other IT Expenditure                    ,"7,572.92",09/03/2015,R,TEAMKNOWLEDGE LIMITED         
345,Central Services,SupS IT,Systems & Projects,E14366,Supplies & Services           ,Comms and Computing           ,DG61,Computer Servs Special                  ,"5,874.00",19/05/2015,R,PITNEY BOWES SOFTWARE LTD     
346,Central Services,SupS IT,Systems & Projects,E14366,Supplies & Services           ,Comms and Computing           ,DG61,Computer Servs Special                  ,"26,456.60",27/04/2015,R,CACI LIMITED                  
347,Central Services,SupS IT,Systems & Projects,E14366,Supplies & Services           ,Grants and Subscriptions      ,DJ04,Subscriptions                           ,"1,450.00",27/02/2015,R,IDEA                          
348,Central Services,SupS IT,Operations & Telecomms,E14367,Employees                     ,Direct Employee Expenses      ,AA17,Agency Staff & Casual Paymts            ,"4,200.00",30/04/2015,R,REDACTED
349,Central Services,SupS IT,Operations & Telecomms,E14367,Supplies & Services           ,Comms and Computing           ,DG15,Network Maintenance                     ,"2,830.64",22/04/2015,R,DATA INTEGRATION LTD          
350,Central Services,SupS IT,Operations & Telecomms,E14367,Supplies & Services           ,Comms and Computing           ,DG15,Network Maintenance                     ,"4,500.00",07/05/2015,R,LONDON GRID LTD               
351,Central Services,SupS IT,Operations & Telecomms,E14367,Supplies & Services           ,Comms and Computing           ,DG15,Network Maintenance                     ,"30,321.00",07/05/2015,R,LONDON GRID LTD               
352,Central Services,SupS IT,Operations & Telecomms,E14367,Supplies & Services           ,Comms and Computing           ,DG15,Network Maintenance                     ,"1,967.80",22/04/2015,R,DATA INTEGRATION LTD          
353,Central Services,SupS IT,Operations & Telecomms,E14367,Supplies & Services           ,Comms and Computing           ,DG15,Network Maintenance                     ,"7,500.00",07/05/2015,R,LONDON GRID LTD               
354,Central Services,SupS IT,Operations & Telecomms,E14367,Supplies & Services           ,Comms and Computing           ,DG15,Network Maintenance                     ,"19,905.00",07/05/2015,R,LONDON GRID LTD               
355,Central Services,SupS IT,Operations & Telecomms,E14367,Supplies & Services           ,Comms and Computing           ,DG15,Network Maintenance                     ,"2,000.18",22/04/2015,R,DATA INTEGRATION LTD          
356,Central Services,SupS IT,Operations & Telecomms,E14367,Supplies & Services           ,Comms and Computing           ,DG15,Network Maintenance                     ,"1,000.00",07/05/2015,R,LONDON GRID LTD               
357,Central Services,SupS IT,Operations & Telecomms,E14367,Supplies & Services           ,Comms and Computing           ,DG15,Network Maintenance                     ,"1,167.92",22/04/2015,R,DATA INTEGRATION LTD          
358,Central Services,SupS IT,Operations & Telecomms,E14367,Supplies & Services           ,Comms and Computing           ,DG15,Network Maintenance                     ,"8,295.00",07/05/2015,R,LONDON GRID LTD               
359,Central Services,SupS IT,Operations & Telecomms,E14367,Supplies & Services           ,Comms and Computing           ,DG54,Corporate Telephones                    ,"2,572.48",02/05/2015,R,COLT TELECOMMUNICATIONS       
360,Central Services,SupS IT,Operations & Telecomms,E14367,Supplies & Services           ,Comms and Computing           ,DG54,Corporate Telephones                    ,750.11,28/04/2015,R,VIRGIN MEDIA PAYMENTS LTD     
361,Central Services,SupS IT,Operations & Telecomms,E14367,Supplies & Services           ,Comms and Computing           ,DG54,Corporate Telephones                    ,"1,107.24",29/04/2015,R,O2 (UK) LIMITED               
362,Central Services,SupS IT,Operations & Telecomms,E14367,Supplies & Services           ,Comms and Computing           ,DG54,Corporate Telephones                    ,"2,316.70",04/05/2015,R,T MOBILE (UK)                 
363,Central Services,SupS IT,Distributed Services,E14368,Supplies & Services           ,Comms and Computing           ,DG63,Software Licences - Data                ,868,28/04/2015,R,AMTEC COMPUTER CORPORATION LTD
364,Central Services,SupS IT,No longer used,E14371,Employees                     ,Direct Employee Expenses      ,AA17,Agency Staff & Casual Paymts            ,"2,712.00",29/04/2015,R,HAYS RECRUITING EXPERTS       
365,Central Services,SupS IT,No longer used,E14371,Employees                     ,Direct Employee Expenses      ,AA17,Agency Staff & Casual Paymts            ,"3,390.00",29/04/2015,R,HAYS RECRUITING EXPERTS       
366,Central Services,SupS IT,No longer used,E14371,Employees                     ,Direct Employee Expenses      ,AA17,Agency Staff & Casual Paymts            ,"2,060.00",18/11/2014,R,REDACTED
367,Central Services,SupS IT,No longer used,E14371,Employees                     ,Direct Employee Expenses      ,AA17,Agency Staff & Casual Paymts            ,598,29/04/2015,R,HAYS RECRUITING EXPERTS       
368,Central Services,SupS IT,No longer used,E14371,Employees                     ,Direct Employee Expenses      ,AA17,Agency Staff & Casual Paymts            ,"2,060.00",05/08/2014,R,REDACTED
369,Central Services,SupS IT,No longer used,E14371,Employees                     ,Direct Employee Expenses      ,AA17,Agency Staff & Casual Paymts            ,"1,356.00",29/04/2015,R,HAYS RECRUITING EXPERTS       
370,Central Services,SupS IT,No longer used,E14371,Employees                     ,Direct Employee Expenses      ,AA17,Agency Staff & Casual Paymts            ,"2,060.00",09/12/2014,R,REDACTED
371,Central Services,SupS IT,No longer used,E14371,Employees                     ,Direct Employee Expenses      ,AA17,Agency Staff & Casual Paymts            ,"2,060.00",02/12/2014,R,REDACTED
372,Central Services,SupS IT,No longer used,E14371,Employees                     ,Direct Employee Expenses      ,AA17,Agency Staff & Casual Paymts            ,"11,400.00",07/05/2015,R,MILESTONES COMMUNICATIONS LTD 
373,Central Services,SupS IT,No longer used,E14371,Supplies & Services           ,Services                      ,DF03,Consultants                             ,"7,702.50",27/04/2015,R,V4 SERVICES LIMITED           
374,Central Services,SupS IT,Business Systems - Deptl Supt,E14377,Supplies & Services           ,Comms and Computing           ,DG15,Network Maintenance                     ,"1,114.76",06/05/2015,R,ORACLE CORPORATION UK LIMITED 
375,Cultural Env Reg&Plan Services,Mgt & Support (Env),EAMS (Env Asset Mgt Sys)                ,G00076,Employees                     ,Direct Employee Expenses      ,AA17,Agency Staff & Casual Paymts            ,"6,000.00",31/03/2015,R,REDACTED
376,Cultural Env Reg&Plan Services,Mgt & Support (Env),Senior Mgt. - E.S.C.,G00100,Supplies & Services           ,Services                      ,DF95,Services from Provider                  ,"1,326.00",27/03/2015,R,REDACTED     
377,Cultural Env Reg&Plan Services,Mgt & Support (Env),Senior Mgt. - E.S.C.,G00100,Supplies & Services           ,Grants and Subscriptions      ,DJ04,Subscriptions                           ,"3,489.00",01/04/2015,R,APSE                          
378,Highways & Transport Services,TRAF & HWYS MGMNT & SUPPORT,TRAF & HWYS MGMNT & SUPPORT,G00115,Employees                     ,Indirect Employee Expenses    ,AB02,Recruitment Adverts                     ,500,07/05/2015,R,LANDOR LINKS                  
379,Highways & Transport Services,Hwys/Rds (struct) not split,C'way & F'way Mtce,G00121,Employees                     ,Indirect Employee Expenses    ,AB02,Recruitment Adverts                     ,500,07/05/2015,R,LANDOR LINKS                  
380,Highways & Transport Services,Hwys/Rds (struct) not split,C'way & F'way Mtce,G00121,Employees                     ,Indirect Employee Expenses    ,AB02,Recruitment Adverts                     ,500,07/05/2015,R,LANDOR LINKS                  
381,Highways & Transport Services,Hwys/Rds (struct) not split,C'way & F'way Mtce,G00121,Employees                     ,Indirect Employee Expenses    ,AB02,Recruitment Adverts                     ,500,07/05/2015,R,LANDOR LINKS                  
382,Highways & Transport Services,Hwys/Rds (struct) not split,C'way & F'way Mtce,G00121,Employees                     ,Indirect Employee Expenses    ,AB02,Recruitment Adverts                     ,500,07/05/2015,R,LANDOR LINKS                  
383,Highways & Transport Services,Hwys/Rds (struct) not split,C'way & F'way Mtce,G00121,Supplies & Services           ,Grants and Subscriptions      ,DJ04,Subscriptions                           ,"1,395.00",22/04/2015,R,CIPFA BUSINESS LTD            
384,Highways & Transport Services,Repair prin/oth rds not split,Walk Sheets,G00127,Third Party Payments          ,Private Contractors           ,EH56,Carriageway/Fway Maint                  ,"1,739.17",30/04/2015,R,FM CONWAY LTD                 
385,Highways & Transport Services,Saf mtc prin/oth rds not split,Traffic Signs.,G00160,Third Party Payments          ,Private Contractors           ,EH01,Miscellaneous Agency Services           ,578.89,30/04/2015,R,MAY GURNEY LTD T/A CARTLEDGE  
386,Highways & Transport Services,Transport Plg/Policy/Strategy,CPZ implementation & Consultat,G00211,Third Party Payments          ,Private Contractors           ,EH56,Carriageway/Fway Maint                  ,"5,558.73",30/04/2015,R,FM CONWAY LTD                 
387,Highways & Transport Services,Traffic Management,Tr Man & Accid Sch,G00220,Employees                     ,Indirect Employee Expenses    ,AB02,Recruitment Adverts                     ,500,07/05/2015,R,LANDOR LINKS                  
388,Highways & Transport Services,Traffic Management,Tr Man & Accid Sch,G00220,Supplies & Services           ,Equip Furniture/Materials     ,DA09,Equip-Purchases                         ,"4,665.00",24/04/2015,R,CADLINE LTD                   
389,Highways & Transport Services,Street Lighting.,Street Lighting .,G00260,Premises Related Expenditure  ,Energy Costs                  ,BB02,Electricity                             ,"50,970.08",05/05/2015,R,SCOTTISHPOWER                 
390,Highways & Transport Services,Street Lighting.,Street Lighting .,G00260,Third Party Payments          ,Private Contractors           ,EH01,Miscellaneous Agency Services           ,971.57,21/04/2015,R,MAY GURNEY LTD T/A CARTLEDGE  
391,Highways & Transport Services,Street Lighting.,Street Lighting .,G00260,Third Party Payments          ,Private Contractors           ,EH01,Miscellaneous Agency Services           ,964.44,21/04/2015,R,MAY GURNEY LTD T/A CARTLEDGE  
392,Highways & Transport Services,Street Lighting.,Street Lighting .,G00260,Third Party Payments          ,Private Contractors           ,EH01,Miscellaneous Agency Services           ,"1,437.76",30/04/2015,R,MAY GURNEY LTD T/A CARTLEDGE  
393,Highways & Transport Services,Street Lighting.,Street Lighting .,G00260,Third Party Payments          ,Private Contractors           ,EH01,Miscellaneous Agency Services           ,"13,182.00",30/04/2015,R,MAY GURNEY LTD T/A CARTLEDGE  
394,Highways & Transport Services,Street Lighting.,Street Lighting .,G00260,Third Party Payments          ,Private Contractors           ,EH01,Miscellaneous Agency Services           ,726.38,30/04/2015,R,MAY GURNEY LTD T/A CARTLEDGE  
395,Highways & Transport Services,Street Lighting.,Street Lighting .,G00260,Third Party Payments          ,Private Contractors           ,EH01,Miscellaneous Agency Services           ,"11,107.23",30/04/2015,R,MAY GURNEY LTD T/A CARTLEDGE  
396,Highways & Transport Services,Street Lighting.,Street Lighting .,G00260,Third Party Payments          ,Private Contractors           ,EH01,Miscellaneous Agency Services           ,"3,089.83",30/04/2015,R,MAY GURNEY LTD T/A CARTLEDGE  
397,Highways & Transport Services,Street Lighting.,Street Lighting .,G00260,Third Party Payments          ,Private Contractors           ,EH01,Miscellaneous Agency Services           ,734,28/04/2015,R,UK POWER NETWORKS (OPERATIONS)
398,Highways & Transport Services,Off-street parking,Car Parks (Unloc),G00291,Premises Related Expenditure  ,Energy Costs                  ,BB02,ELECTRICITY                             ,759.15,01/05/2015,R,SCOTTISHPOWER                 
399,Highways & Transport Services,Off-street parking,Car Parks (Unloc),G00291,Third Party Payments          ,Private Contractors           ,EH02,Miscellaneous Hired Services            ,"3,666.00",30/04/2015,R,COBALT TELEPHONE TECHNOLOGIES 
400,Highways & Transport Services,On-street parking,On Street Parking.,G00311,Premises Related Expenditure  ,RepairsAlterations&MtceOfBldgs,BA06,Repairs & Maintenance General           ,923.36,01/05/2015,R,FM CONWAY LTD                 
401,Highways & Transport Services,Parking Enforcement not split,Civil Enforcement Officers,G00330,Supplies & Services           ,Equip Furniture/Materials     ,DA09,Equip-Purchases                         ,"2,778.08",13/03/2015,R,REVEAL MEDIA LTD              
402,Highways & Transport Services,Parking Enforcement not split,Operational Running Costs,G00331,Supplies & Services           ,Equip Furniture/Materials     ,DA09,Equip-Purchases                         ,"3,780.00",23/04/2015,R,PARKEON LTD                   
403,Highways & Transport Services,Parking Enforcement not split,Operational Running Costs,G00331,Supplies & Services           ,Prntng Stnry Gen Off Exp      ,DE01,External Printing                       ,"2,620.80",29/04/2015,R,NAGELS UK LTD                 
404,Highways & Transport Services,Parking Enforcement not split,Operational Running Costs,G00331,Third Party Payments          ,Other Agencies                ,EJ58,Parking Cttee for London                ,"40,000.00",14/05/2015,R,HMCTS                         
405,Highways & Transport Services,Hwys/Rds (struct) not split,NRSWA Permitting (LoPS),G00385,Employees                     ,Indirect Employee Expenses    ,AB02,Recruitment Adverts                     ,500,07/05/2015,R,LANDOR LINKS                  
406,Highways & Transport Services,Hwys/Rds (struct) not split,Footpath Crossings.,G00390,Third Party Payments          ,Private Contractors           ,EH56,Carriageway/Fway Maint                  ,"3,209.04",30/04/2015,R,FM CONWAY LTD                 
407,Highways & Transport Services,Hwys/Rds (struct) not split,Footpath Crossings.,G00390,Third Party Payments          ,Private Contractors           ,EH56,Carriageway/Fway Maint                  ,808.17,08/05/2015,R,FM CONWAY LTD                 
408,Highways & Transport Services,Hwys/Rds (struct) not split,Footpath Crossings.,G00390,Third Party Payments          ,Private Contractors           ,EH56,Carriageway/Fway Maint                  ,"2,655.25",30/04/2015,R,FM CONWAY LTD                 
409,Highways & Transport Services,Hwys/Rds (struct) not split,Footpath Crossings.,G00390,Third Party Payments          ,Private Contractors           ,EH56,Carriageway/Fway Maint                  ,"9,185.83",30/04/2015,R,FM CONWAY LTD                 
410,Highways & Transport Services,Hwys/Rds (struct) not split,Footpath Crossings.,G00390,Third Party Payments          ,Private Contractors           ,EH56,Carriageway/Fway Maint                  ,"1,344.34",30/04/2015,R,FM CONWAY LTD                 
411,Highways & Transport Services,Hwys/Rds (struct) not split,Footpath Crossings.,G00390,Third Party Payments          ,Private Contractors           ,EH56,Carriageway/Fway Maint                  ,703.35,30/04/2015,R,FM CONWAY LTD                 
412,Highways & Transport Services,Hwys/Rds (struct) not split,Footpath Crossings.,G00390,Third Party Payments          ,Private Contractors           ,EH56,Carriageway/Fway Maint                  ,642,28/04/2015,R,UK POWER NETWORKS (OPERATIONS)
413,Highways & Transport Services,Hwys/Rds (struct) not split,Footpath Crossings.,G00390,Third Party Payments          ,Private Contractors           ,EH56,Carriageway/Fway Maint                  ,"6,970.04",30/04/2015,R,FM CONWAY LTD                 
414,Cultural Env Reg&Plan Services,Street Clean - Not highways,Street Cleansing (Inc. Gully),G00492,Supplies & Services           ,Equip Furniture/Materials     ,DA01,Equipment - R & M                       ,"1,153.36",29/04/2015,R,BELL BRUSH                    
415,Cultural Env Reg&Plan Services,Street Clean - Not highways,Street Cleansing (Inc. Gully),G00492,Supplies & Services           ,Clothing Unfrms Laundry       ,DC02,Clothing & Uniforms                     ,"2,296.70",27/04/2015,R,SAFETY MANAGEMENT             
416,Cultural Env Reg&Plan Services,Waste Disposal (not separated),Waste Disposal .,G00550,Third Party Payments          ,Private Contractors           ,EH66,Clinical Waste Disposal                 ,793.53,30/04/2015,R,S.GRUNDON (WASTE) LTD.        
417,Cultural Env Reg&Plan Services,Waste Disposal (not separated),Waste Disposal .,G00550,Third Party Payments          ,Private Contractors           ,EH91,Disposal of Asbestos                    ,"3,016.50",08/05/2015,R,CITY OF LONDON CORPORATION    
418,Cultural Env Reg&Plan Services,Waste Disposal (not separated),Waste Disposal .,G00550,Third Party Payments          ,Private Contractors           ,EH96,GULLY DISPOSAL                          ,"1,603.13",30/04/2015,R,CORY ENVIRONMENTAL LIMITED    
419,Cultural Env Reg&Plan Services,Civic Amenity Sites,Garth Road Site,G00580,Premises Related Expenditure  ,Energy Costs                  ,BB02,Electricity                             ,"1,481.00",31/03/2015,R,SCOTTISHPOWER                 
420,Cultural Env Reg&Plan Services,Civic Amenity Sites,Garth Road Site,G00580,Premises Related Expenditure  ,Energy Costs                  ,BB02,Electricity                             ,873.06,31/03/2015,R,SCOTTISHPOWER                 
421,Cultural Env Reg&Plan Services,Civic Amenity Sites,Garth Road Site,G00580,Third Party Payments          ,Private Contractors           ,EH01,MISCELLANEOUS AGENCY SERVICES           ,"1,276.00",27/04/2015,R,KINGSTON CORPORATION          
422,Cultural Env Reg&Plan Services,Public Health,Dog Control.,G00620,Third Party Payments          ,Private Contractors           ,EH02,Miscellaneous Hired Services            ,"3,307.10",11/05/2015,R,NOAH'S ARK ENVIRONMENTAL SERV.
423,Cultural Env Reg&Plan Services,Recycling (Collection),Recycling Activities,G00640,Supplies & Services           ,Equip Furniture/Materials     ,DA32,Wheeled Bins                            ,"10,764.60",27/04/2015,R,STRAIGHT PLC                  
424,Cultural Env Reg&Plan Services,Recycling (Collection),Garden Waste Service,G00647,Supplies & Services           ,Clothing Unfrms Laundry       ,DC02,Clothing & Uniforms                     ,750,27/04/2015,R,SAFETY MANAGEMENT             
425,Cultural Env Reg&Plan Services,Recycling (Collection),Food Waste Service,G00648,Supplies & Services           ,Clothing Unfrms Laundry       ,DC02,Clothing & Uniforms                     ,750,27/04/2015,R,SAFETY MANAGEMENT             
426,Cultural Env Reg&Plan Services,Recycling (Collection),WCSS Recycl Encourgmnt&Incentv          ,G00650,Supplies & Services           ,Equip Furniture/Materials     ,DA09,Equip-Purchases                         ,620,11/03/2015,R,TOTAL MERCHANDISE LTD         
427,Cultural Env Reg&Plan Services,Household Waste Collection,Refuse Collection (Operations),G00661,Transport Related Expenditure ,Direct Transport Costs        ,CA52,Reps Vehicles Ins Claims                ,"1,500.00",27/04/2015,R,S.E.T.S SERVICES              
428,Cultural Env Reg&Plan Services,Household Waste Collection,Refuse Collection (Operations),G00661,Supplies & Services           ,Equip Furniture/Materials     ,DA01,Equipment - R & M                       ,"1,500.00",29/04/2015,R,BELL BRUSH                    
429,Cultural Env Reg&Plan Services,Household Waste Collection,Refuse Collection (Operations),G00661,Supplies & Services           ,Equip Furniture/Materials     ,DA03,Hire of Equipment                       ,"1,390.00",29/04/2015,R,COMCIR RADIO COMMUNICATIONS LT
430,Cultural Env Reg&Plan Services,Household Waste Collection,Refuse Collection (Operations),G00661,Supplies & Services           ,Clothing Unfrms Laundry       ,DC02,Clothing & Uniforms                     ,"2,713.00",27/04/2015,R,SAFETY MANAGEMENT             
431,Cultural Env Reg&Plan Services,Trade Waste Collection,Commercial Waste Collection,G00665,Supplies & Services           ,Equip Furniture/Materials     ,DA32,Wheeled Bins                            ,924,07/05/2015,R,UK CONTAINER MAINTENANCE LTD  
432,Cultural Env Reg&Plan Services,Trade Waste Collection,Commercial Waste Collection,G00665,Supplies & Services           ,Equip Furniture/Materials     ,DA32,Wheeled Bins                            ,"2,479.50",06/05/2015,R,UK CONTAINER MAINTENANCE LTD  
433,Cultural Env Reg&Plan Services,Household Waste Collection,Phase C Procurement                     ,G00667,Third Party Payments          ,Private Contractors           ,EH11,Agency Staff Clerk of Works             ,"213,050.00",27/04/2015,R,KINGSTON CORPORATION          
434,Cultural Env Reg&Plan Services,Inspect/Enforce (Consumer P),Trading Standards,G00690,Supplies & Services           ,Grants and Subscriptions      ,DJ04,Subscriptions                           ,705,26/03/2015,R,LEXIS NEXIS                   
435,Cultural Env Reg&Plan Services,Inspect/Enforce (Consumer P),Trading Standards,G00690,Supplies & Services           ,Grants and Subscriptions      ,DJ04,Subscriptions                           ,874.99,29/04/2015,R,LEXIS NEXIS                   
436,Cultural Env Reg&Plan Services,Inspect/Enforce (Consumer P),Trading Standards,G00690,Supplies & Services           ,Grants and Subscriptions      ,DJ04,Subscriptions                           ,"1,500.00",02/04/2015,R,LOTSA CIC                     
437,Cultural Env Reg&Plan Services,Inspect/Enforce (Consumer P),Trading Standards,G00690,Supplies & Services           ,Grants and Subscriptions      ,DJ04,Subscriptions                           ,"1,675.00",20/05/2015,R,ALTIA SOLUTIONS               
438,Cultural Env Reg&Plan Services,Inspect/Enforce (Consumer P),Trading Standards,G00690,Supplies & Services           ,Grants and Subscriptions      ,DJ04,Subscriptions                           ,695,26/03/2015,R,LEXIS NEXIS                   
439,Cultural Env Reg&Plan Services,Inspect/Enforce (Consumer P),Trading Standards,G00690,Supplies & Services           ,Grants and Subscriptions      ,DJ04,Subscriptions                           ,824.01,29/04/2015,R,LEXIS NEXIS                   
440,Cultural Env Reg&Plan Services,Housing Standards,Housing/Env,G00730,Supplies & Services           ,Equip Furniture/Materials     ,DA09,Equip-Purchases                         ,"5,121.00",01/05/2015,R,KINGS COLLEGE LONDON ENV GROUP
441,Cultural Env Reg&Plan Services,Housing Standards,Housing/Env,G00730,Supplies & Services           ,Equip Furniture/Materials     ,DA09,Equip-Purchases                         ,"7,197.00",21/05/2015,R,ENVIRONMENTAL RESEARCH GROUP  
442,Cultural Env Reg&Plan Services,Housing Standards,Housing/Env,G00730,Supplies & Services           ,Equip Furniture/Materials     ,DA09,Equip-Purchases                         ,"3,535.00",22/05/2015,R,ENVIRO TECHNOLOGY SERVICES PLC
443,Cultural Env Reg&Plan Services,Housing Standards,Housing/Env,G00730,Supplies & Services           ,Services                      ,DF03,Consultants                             ,500,16/04/2015,R,STM ENVIRONMENTAL CONSULTANTS 
444,Cultural Env Reg&Plan Services,Housing Standards,Housing/Env,G00730,Supplies & Services           ,Services                      ,DF03,Consultants                             ,520,26/03/2015,R,REDACTED     
445,Cultural Env Reg&Plan Services,Mgt & Support (Env),Waste Management,G00900,Supplies & Services           ,Services                      ,DF95,Services from Provider                  ,750,28/05/2015,R,REDACTED     
446,Cultural Env Reg&Plan Services,Inspect/Enforce (Consumer P),Reg. Serv - Shared Mgnt Costs           ,G01000,Employees                     ,Direct Employee Expenses      ,AA96,SALARY SACRIFICE (TEACHERS)             ,821.67,12/05/2015,R,F.W.EVANS CYCLES (UK) LTD.    
447,Central Services,SupS Env and Regen,LBR - Trading Standards                 ,G01001,Supplies & Services           ,Grants and Subscriptions      ,DJ04,Subscriptions                           ,"1,500.00",02/04/2015,R,LOTSA CIC                     
448,Central Services,Grants - Voluntary Groups,Vestry Hall,G19290,Employees                     ,Direct Employee Expenses      ,AA17,Agency Staff & Casual Paymts            ,605.01,31/03/2015,R,REDACTED
449,Central Services,Grants - Voluntary Groups,Vestry Hall,G19290,Employees                     ,Direct Employee Expenses      ,AA17,Agency Staff & Casual Paymts            ,"5,347.61",10/05/2015,R,REDACTED
450,Central Services,Grants - Voluntary Groups,Vestry Hall,G19290,Premises Related Expenditure  ,Energy Costs                  ,BB02,Electricity                             ,718.01,01/05/2015,R,SCOTTISHPOWER                 
451,Highways & Transport Services,Transport Plg/Policy/Strategy,Transport Planning,H01070,Employees                     ,Indirect Employee Expenses    ,AB02,Recruitment Adverts                     ,500,07/05/2015,R,LANDOR LINKS                  
452,Cultural Env Reg&Plan Services,DC Advice Apps & Reg not split,Development Control,H01130,Supplies & Services           ,Services                      ,DF02,Misc Advertising/Publicity              ,512.16,24/04/2015,R,NEWSQUEST (LONDON)LTD         
453,Cultural Env Reg&Plan Services,DC Advice Apps & Reg not split,Development Control,H01130,Supplies & Services           ,Services                      ,DF11,Counsel's fees                          ,"2,200.00",21/04/2015,R,REDACTED     
454,Cultural Env Reg&Plan Services,DC Advice Apps & Reg not split,Development Control,H01130,Supplies & Services           ,Comms and Computing           ,DG09,Computer Purchases - Misc               ,750,24/04/2015,R,NORTHGATE INFORMATION SOLUTION
455,Cultural Env Reg&Plan Services,DC Advice Apps & Reg not split,Development Control,H01130,Customer and client receipts  ,Fees                          ,RB03,Miscellaneous Fees S                    ,990,29/05/2015,R,HOLDEN AND PARTNERS           
456,Cultural Env Reg&Plan Services,Economic Dev (Not separated),LABGI-BUSINESS SUPPORT SERVICE,H01219,Third Party Payments          ,Private Contractors           ,EH10,Contract Payments                       ,"50,000.00",29/04/2015,R,MERTON CHAMBER OF COMMERCE    
457,Cultural Env Reg&Plan Services,Economic Dev (Not separated),Capt Ambition-Suburban Opprt Z,H01231,Third Party Payments          ,Private Contractors           ,EH10,Contract Payments                       ,700,31/10/2014,R,STUDIO WEAVE LTD              
458,CS -Oth Operating Inc & Expend,T/A Vehicle Maintenance etc,Transport-Contract Hire,J01374,Employees                     ,Direct Employee Expenses      ,AA17,Agency Staff & Casual Paymts            ,"8,100.00",30/04/2015,R,REDACTED
459,CS -Oth Operating Inc & Expend,T/A Vehicle Maintenance etc,Transport-Contract Hire,J01374,Premises Related Expenditure  ,Energy Costs                  ,BB02,Electricity                             ,507.8,01/05/2015,R,SCOTTISHPOWER                 
460,CS -Oth Operating Inc & Expend,T/A Vehicle Maintenance etc,Transport-Contract Hire,J01374,Transport Related Expenditure ,Direct Transport Costs        ,CA01,Petrol Derv & Oil                       ,"34,279.83",11/05/2015,R,HARVEST ENERGY LIMITED        
461,CS -Oth Operating Inc & Expend,T/A Vehicle Maintenance etc,Transport-Contract Hire,J01374,Transport Related Expenditure ,Direct Transport Costs        ,CA52,Reps Vehicles Ins Claims                ,500,30/04/2015,R,FLEETSPEED COACHWORKS LTD.    
462,CS -Oth Operating Inc & Expend,T/A Vehicle Maintenance etc,Transport-Contract Hire,J01374,Transport Related Expenditure ,Contract Hire and Op Leasing  ,CC53,Plant Hire for MRCS                     ,875,06/05/2015,R,GULLIVER'S TRUCK HIRE LTD.    
463,CS -Oth Operating Inc & Expend,T/A Vehicle Maintenance etc,Transport-Contract Hire,J01374,Transport Related Expenditure ,Contract Hire and Op Leasing  ,CC53,Plant Hire for MRCS                     ,610,05/05/2015,R,PFB HIRE LTD                  
464,CS -Oth Operating Inc & Expend,T/A Vehicle Maintenance etc,Transport-Contract Hire,J01374,Transport Related Expenditure ,Contract Hire and Op Leasing  ,CC53,Plant Hire for MRCS                     ,550,29/04/2015,R,PFB HIRE LTD                  
465,CS -Oth Operating Inc & Expend,T/A Vehicle Maintenance etc,Transport-Contract Hire,J01374,Transport Related Expenditure ,Contract Hire and Op Leasing  ,CC53,Plant Hire for MRCS                     ,875,18/05/2015,R,GULLIVER'S TRUCK HIRE LTD.    
466,CS -Oth Operating Inc & Expend,T/A Vehicle Maintenance etc,Transport-Contract Hire,J01374,Transport Related Expenditure ,Contract Hire and Op Leasing  ,CC53,Plant Hire for MRCS                     ,610,21/04/2015,R,PFB HIRE LTD                  
467,CS -Oth Operating Inc & Expend,T/A Vehicle Maintenance etc,Transport-Contract Hire,J01374,Transport Related Expenditure ,Contract Hire and Op Leasing  ,CC53,Plant Hire for MRCS                     ,550,06/05/2015,R,PFB HIRE LTD                  
468,CS -Oth Operating Inc & Expend,T/A Vehicle Maintenance etc,Transport-Contract Hire,J01374,Transport Related Expenditure ,Contract Hire and Op Leasing  ,CC53,Plant Hire for MRCS                     ,720,14/04/2015,R,PFB HIRE LTD                  
469,CS -Oth Operating Inc & Expend,T/A Vehicle Maintenance etc,Transport-Contract Hire,J01374,Transport Related Expenditure ,Contract Hire and Op Leasing  ,CC53,Plant Hire for MRCS                     ,550,16/04/2015,R,PFB HIRE LTD                  
470,CS -Oth Operating Inc & Expend,T/A Vehicle Maintenance etc,Transport-Contract Hire,J01374,Transport Related Expenditure ,Contract Hire and Op Leasing  ,CC53,Plant Hire for MRCS                     ,875,27/04/2015,R,GULLIVER'S TRUCK HIRE LTD.    
471,CS -Oth Operating Inc & Expend,T/A Vehicle Maintenance etc,Transport-Contract Hire,J01374,Transport Related Expenditure ,Contract Hire and Op Leasing  ,CC53,Plant Hire for MRCS                     ,610,14/04/2015,R,PFB HIRE LTD                  
472,CS -Oth Operating Inc & Expend,T/A Vehicle Maintenance etc,Transport-Contract Hire,J01374,Transport Related Expenditure ,Contract Hire and Op Leasing  ,CC53,Plant Hire for MRCS                     ,610,12/05/2015,R,PFB HIRE LTD                  
473,CS -Oth Operating Inc & Expend,T/A Vehicle Maintenance etc,Transport-Contract Hire,J01374,Transport Related Expenditure ,Contract Hire and Op Leasing  ,CC53,Plant Hire for MRCS                     ,550,23/04/2015,R,PFB HIRE LTD                  
474,CS -Oth Operating Inc & Expend,T/A Vehicle Maintenance etc,Transport-Contract Hire,J01374,Transport Related Expenditure ,Contract Hire and Op Leasing  ,CC53,Plant Hire for MRCS                     ,720,21/04/2015,R,PFB HIRE LTD                  
475,CS -Oth Operating Inc & Expend,T/A Vehicle Maintenance etc,Transport-Contract Hire,J01374,Transport Related Expenditure ,Contract Hire and Op Leasing  ,CC53,Plant Hire for MRCS                     ,875,20/04/2015,R,GULLIVER'S TRUCK HIRE LTD.    
476,CS -Oth Operating Inc & Expend,T/A Vehicle Maintenance etc,Transport-Contract Hire,J01374,Transport Related Expenditure ,Contract Hire and Op Leasing  ,CC53,Plant Hire for MRCS                     ,875,11/05/2015,R,GULLIVER'S TRUCK HIRE LTD.    
477,CS -Oth Operating Inc & Expend,T/A Vehicle Maintenance etc,Transport-Contract Hire,J01374,Transport Related Expenditure ,Contract Hire and Op Leasing  ,CC53,Plant Hire for MRCS                     ,720,21/04/2015,R,PFB HIRE LTD                  
478,CS -Oth Operating Inc & Expend,T/A Vehicle Maintenance etc,Transport-Contract Hire,J01374,Transport Related Expenditure ,Contract Hire and Op Leasing  ,CC53,Plant Hire for MRCS                     ,726,30/04/2015,R,REDACTED     
479,CS -Oth Operating Inc & Expend,T/A Vehicle Maintenance etc,Transport-Contract Hire,J01374,Transport Related Expenditure ,Contract Hire and Op Leasing  ,CC53,Plant Hire for MRCS                     ,"2,090.00",27/04/2015,R,MUNIHIRE LIMITED              
480,CS -Oth Operating Inc & Expend,T/A Vehicle Maintenance etc,Transport-Contract Hire,J01374,Transport Related Expenditure ,Contract Hire and Op Leasing  ,CC53,Plant Hire for MRCS                     ,610,28/04/2015,R,PFB HIRE LTD                  
481,CS -Oth Operating Inc & Expend,T/A Vehicle Maintenance etc,Transport-Contract Hire,J01374,Transport Related Expenditure ,Contract Hire and Op Leasing  ,CC53,Plant Hire for MRCS                     ,726,30/04/2015,R,REDACTED     
482,CS -Oth Operating Inc & Expend,T/A Vehicle Maintenance etc,Transport-Contract Hire,J01374,Transport Related Expenditure ,Contract Hire and Op Leasing  ,CC53,Plant Hire for MRCS                     ,720,14/04/2015,R,PFB HIRE LTD                  
483,CS -Oth Operating Inc & Expend,T/A Vehicle Maintenance etc,Transport-Contract Hire,J01374,Transport Related Expenditure ,Contract Hire and Op Leasing  ,CC53,Plant Hire for MRCS                     ,720,28/04/2015,R,PFB HIRE LTD                  
484,CS -Oth Operating Inc & Expend,T/A Vehicle Maintenance etc,Transport-Contract Hire,J01374,Transport Related Expenditure ,Contract Hire and Op Leasing  ,CC53,Plant Hire for MRCS                     ,720,28/04/2015,R,PFB HIRE LTD                  
485,CS -Oth Operating Inc & Expend,T/A Vehicle Maintenance etc,Transport-Contract Hire,J01374,Transport Related Expenditure ,Contract Hire and Op Leasing  ,CC53,Plant Hire for MRCS                     ,550,12/05/2015,R,PFB HIRE LTD                  
486,CS -Oth Operating Inc & Expend,T/A Vehicle Maintenance etc,Transport-Contract Hire,J01374,Transport Related Expenditure ,Contract Hire and Op Leasing  ,CC56,Plant Hire for Leisure                  ,"1,755.00",30/04/2015,R,REDACTED     
487,CS -Oth Operating Inc & Expend,T/A Vehicle Maintenance etc,Transport-Contract Hire,J01374,Transport Related Expenditure ,Contract Hire and Op Leasing  ,CC57,Pland Hire for Housing                  ,940,30/04/2015,R,REDACTED     
488,CS -Oth Operating Inc & Expend,T/A Vehicle Maintenance etc,Transport-Contract Hire,J01374,Transport Related Expenditure ,Contract Hire and Op Leasing  ,CC59,HIRING TRANSPORT OPERATIONS             ,"1,452.00",30/04/2015,R,BURNT TREE VEHICLE RENTAL     
489,CS -Oth Operating Inc & Expend,T/A Vehicle Maintenance etc,Transport-Contract Hire,J01374,Transport Related Expenditure ,Contract Hire and Op Leasing  ,CC59,HIRING TRANSPORT OPERATIONS             ,"2,238.32",30/04/2015,R,REDACTED     
490,CS -Oth Operating Inc & Expend,T/A Vehicle Maintenance etc,Transport-Contract Hire,J01374,Transport Related Expenditure ,Contract Hire and Op Leasing  ,CC59,HIRING TRANSPORT OPERATIONS             ,"1,452.00",30/04/2015,R,BURNT TREE VEHICLE RENTAL     
491,CS -Oth Operating Inc & Expend,T/A Vehicle Maintenance etc,Transport-Contract Hire,J01374,Transport Related Expenditure ,Contract Hire and Op Leasing  ,CC59,HIRING TRANSPORT OPERATIONS             ,"1,452.00",30/04/2015,R,BURNT TREE VEHICLE RENTAL     
492,CS -Oth Operating Inc & Expend,T/A Vehicle Maintenance etc,Transport-Contract Hire,J01374,Transport Related Expenditure ,Contract Hire and Op Leasing  ,CC64,HIRING TRANSPORT SEN CABS               ,"1,768.00",30/04/2015,R,CAPITAL CARS                  
493,CS -Oth Operating Inc & Expend,T/A Vehicle Maintenance etc,Transport-Contract Hire,J01374,Transport Related Expenditure ,Contract Hire and Op Leasing  ,CC64,HIRING TRANSPORT SEN CABS               ,"1,258.40",30/04/2015,R,SHERWOOD TRANSPORT GROUP      
494,CS -Oth Operating Inc & Expend,T/A Vehicle Maintenance etc,Transport-Contract Hire,J01374,Transport Related Expenditure ,Contract Hire and Op Leasing  ,CC64,HIRING TRANSPORT SEN CABS               ,608,01/05/2015,R,CHEAM STATION CARS            
495,CS -Oth Operating Inc & Expend,T/A Vehicle Maintenance etc,Transport-Contract Hire,J01374,Transport Related Expenditure ,Contract Hire and Op Leasing  ,CC64,HIRING TRANSPORT SEN CABS               ,920,01/05/2015,R,CHEAM STATION CARS            
496,CS -Oth Operating Inc & Expend,T/A Vehicle Maintenance etc,Transport-Contract Hire,J01374,Transport Related Expenditure ,Contract Hire and Op Leasing  ,CC64,HIRING TRANSPORT SEN CABS               ,"1,092.00",30/04/2015,R,NVCAR HIRE LTD                
497,CS -Oth Operating Inc & Expend,T/A Vehicle Maintenance etc,Transport-Contract Hire,J01374,Transport Related Expenditure ,Contract Hire and Op Leasing  ,CC64,HIRING TRANSPORT SEN CABS               ,"1,092.00",30/04/2015,R,KINGSTON ACCESSIBILITY TRAN LT
498,CS -Oth Operating Inc & Expend,T/A Vehicle Maintenance etc,Transport-Contract Hire,J01374,Transport Related Expenditure ,Contract Hire and Op Leasing  ,CC64,HIRING TRANSPORT SEN CABS               ,"1,296.00",30/04/2015,R,SILVERBURN FINANCE (UK) LTD   
499,CS -Oth Operating Inc & Expend,T/A Vehicle Maintenance etc,Transport-Contract Hire,J01374,Transport Related Expenditure ,Contract Hire and Op Leasing  ,CC64,HIRING TRANSPORT SEN CABS               ,"1,673.00",30/04/2015,R,KINGSTON ACCESSIBILITY TRAN LT
500,CS -Oth Operating Inc & Expend,T/A Vehicle Maintenance etc,Transport-Contract Hire,J01374,Transport Related Expenditure ,Contract Hire and Op Leasing  ,CC64,HIRING TRANSPORT SEN CABS               ,"1,180.00",30/04/2015,R,NVCAR HIRE LTD                
501,CS -Oth Operating Inc & Expend,T/A Vehicle Maintenance etc,Transport-Contract Hire,J01374,Transport Related Expenditure ,Contract Hire and Op Leasing  ,CC64,HIRING TRANSPORT SEN CABS               ,"1,316.00",30/04/2015,R,CAPITAL CARS                  
502,CS -Oth Operating Inc & Expend,T/A Vehicle Maintenance etc,Transport-Contract Hire,J01374,Transport Related Expenditure ,Contract Hire and Op Leasing  ,CC64,HIRING TRANSPORT SEN CABS               ,676,30/04/2015,R,NVCAR HIRE LTD                
503,CS -Oth Operating Inc & Expend,T/A Vehicle Maintenance etc,Transport-Contract Hire,J01374,Transport Related Expenditure ,Contract Hire and Op Leasing  ,CC64,HIRING TRANSPORT SEN CABS               ,"1,196.00",30/04/2015,R,CAPITAL CARS                  
504,CS -Oth Operating Inc & Expend,T/A Vehicle Maintenance etc,Transport-Contract Hire,J01374,Transport Related Expenditure ,Contract Hire and Op Leasing  ,CC64,HIRING TRANSPORT SEN CABS               ,980,30/04/2015,R,SILVERBURN FINANCE (UK) LTD   
505,CS -Oth Operating Inc & Expend,T/A Vehicle Maintenance etc,Transport-Contract Hire,J01374,Transport Related Expenditure ,Contract Hire and Op Leasing  ,CC64,HIRING TRANSPORT SEN CABS               ,"2,002.00",30/04/2015,R,BRUNSWICK CARS LTD            
506,CS -Oth Operating Inc & Expend,T/A Vehicle Maintenance etc,Transport-Contract Hire,J01374,Transport Related Expenditure ,Contract Hire and Op Leasing  ,CC64,HIRING TRANSPORT SEN CABS               ,812,30/04/2015,R,SILVERBURN FINANCE (UK) LTD   
507,CS -Oth Operating Inc & Expend,T/A Vehicle Maintenance etc,Transport-Contract Hire,J01374,Transport Related Expenditure ,Contract Hire and Op Leasing  ,CC64,HIRING TRANSPORT SEN CABS               ,"1,106.00",30/04/2015,R,SHERWOOD TRANSPORT GROUP      
508,CS -Oth Operating Inc & Expend,T/A Vehicle Maintenance etc,Transport-Contract Hire,J01374,Transport Related Expenditure ,Contract Hire and Op Leasing  ,CC64,HIRING TRANSPORT SEN CABS               ,"1,648.92",30/04/2015,R,KINGSTON ACCESSIBILITY TRAN LT
509,CS -Oth Operating Inc & Expend,T/A Vehicle Maintenance etc,Transport-Contract Hire,J01374,Transport Related Expenditure ,Contract Hire and Op Leasing  ,CC64,HIRING TRANSPORT SEN CABS               ,"1,860.00",30/04/2015,R,NVCAR HIRE LTD                
510,CS -Oth Operating Inc & Expend,T/A Vehicle Maintenance etc,Transport-Contract Hire,J01374,Transport Related Expenditure ,Contract Hire and Op Leasing  ,CC64,HIRING TRANSPORT SEN CABS               ,612,30/04/2015,R,NVCAR HIRE LTD                
511,CS -Oth Operating Inc & Expend,T/A Vehicle Maintenance etc,Transport-Contract Hire,J01374,Transport Related Expenditure ,Contract Hire and Op Leasing  ,CC64,HIRING TRANSPORT SEN CABS               ,910,30/04/2015,R,PREMIER CARS                  
512,CS -Oth Operating Inc & Expend,T/A Vehicle Maintenance etc,Transport-Contract Hire,J01374,Transport Related Expenditure ,Contract Hire and Op Leasing  ,CC64,HIRING TRANSPORT SEN CABS               ,"1,120.00",30/04/2015,R,CAPITAL CARS                  
513,CS -Oth Operating Inc & Expend,T/A Vehicle Maintenance etc,Transport-Contract Hire,J01374,Transport Related Expenditure ,Contract Hire and Op Leasing  ,CC64,HIRING TRANSPORT SEN CABS               ,"1,144.00",30/04/2015,R,SILVERBURN FINANCE (UK) LTD   
514,CS -Oth Operating Inc & Expend,T/A Vehicle Maintenance etc,Transport-Contract Hire,J01374,Transport Related Expenditure ,Contract Hire and Op Leasing  ,CC64,HIRING TRANSPORT SEN CABS               ,"2,470.00",30/04/2015,R,BARCLAYS ASSET & SALES FINANCE
515,CS -Oth Operating Inc & Expend,T/A Vehicle Maintenance etc,Transport-Contract Hire,J01374,Transport Related Expenditure ,Contract Hire and Op Leasing  ,CC64,HIRING TRANSPORT SEN CABS               ,"2,219.00",30/04/2015,R,SHERWOOD TRANSPORT GROUP      
516,CS -Oth Operating Inc & Expend,T/A Vehicle Maintenance etc,Transport-Contract Hire,J01374,Transport Related Expenditure ,Contract Hire and Op Leasing  ,CC64,HIRING TRANSPORT SEN CABS               ,"1,725.00",29/04/2015,R,WALLINGTON CARS & COURIERS LTD
517,CS -Oth Operating Inc & Expend,T/A Vehicle Maintenance etc,Transport-Contract Hire,J01374,Transport Related Expenditure ,Contract Hire and Op Leasing  ,CC64,HIRING TRANSPORT SEN CABS               ,"1,287.00",30/04/2015,R,SHERWOOD TRANSPORT GROUP      
518,CS -Oth Operating Inc & Expend,T/A Vehicle Maintenance etc,Transport-Contract Hire,J01374,Transport Related Expenditure ,Contract Hire and Op Leasing  ,CC64,HIRING TRANSPORT SEN CABS               ,760,30/04/2015,R,SILVERBURN FINANCE (UK) LTD   
519,CS -Oth Operating Inc & Expend,T/A Vehicle Maintenance etc,Transport-Contract Hire,J01374,Transport Related Expenditure ,Contract Hire and Op Leasing  ,CC64,HIRING TRANSPORT SEN CABS               ,665,30/04/2015,R,NVCAR HIRE LTD                
520,CS -Oth Operating Inc & Expend,T/A Vehicle Maintenance etc,Transport-Contract Hire,J01374,Transport Related Expenditure ,Contract Hire and Op Leasing  ,CC64,HIRING TRANSPORT SEN CABS               ,"1,248.00",05/05/2015,R,BARCLAYS ASSET & SALES FINANCE
521,CS -Oth Operating Inc & Expend,T/A Vehicle Maintenance etc,Transport-Contract Hire,J01374,Transport Related Expenditure ,Contract Hire and Op Leasing  ,CC64,HIRING TRANSPORT SEN CABS               ,550,30/04/2015,R,CAPITAL CARS                  
522,CS -Oth Operating Inc & Expend,T/A Vehicle Maintenance etc,Transport-Contract Hire,J01374,Transport Related Expenditure ,Contract Hire and Op Leasing  ,CC64,HIRING TRANSPORT SEN CABS               ,"1,163.50",30/04/2015,R,SHERWOOD TRANSPORT GROUP      
523,CS -Oth Operating Inc & Expend,T/A Vehicle Maintenance etc,Transport-Contract Hire,J01374,Transport Related Expenditure ,Contract Hire and Op Leasing  ,CC64,HIRING TRANSPORT SEN CABS               ,"1,344.00",30/04/2015,R,BRUNSWICK CARS LTD            
524,CS -Oth Operating Inc & Expend,T/A Vehicle Maintenance etc,Transport-Contract Hire,J01374,Transport Related Expenditure ,Contract Hire and Op Leasing  ,CC64,HIRING TRANSPORT SEN CABS               ,"1,666.00",30/04/2015,R,BRUNSWICK CARS LTD            
525,CS -Oth Operating Inc & Expend,T/A Vehicle Maintenance etc,Transport-Contract Hire,J01374,Transport Related Expenditure ,Contract Hire and Op Leasing  ,CC64,HIRING TRANSPORT SEN CABS               ,"1,470.00",30/04/2015,R,SHERWOOD TRANSPORT GROUP      
526,CS -Oth Operating Inc & Expend,T/A Vehicle Maintenance etc,Transport-Contract Hire,J01374,Transport Related Expenditure ,Contract Hire and Op Leasing  ,CC64,HIRING TRANSPORT SEN CABS               ,840,01/05/2015,R,CHEAM STATION CARS            
527,CS -Oth Operating Inc & Expend,T/A Vehicle Maintenance etc,Transport-Contract Hire,J01374,Transport Related Expenditure ,Contract Hire and Op Leasing  ,CC64,HIRING TRANSPORT SEN CABS               ,"2,240.00",29/04/2015,R,WALLINGTON CARS & COURIERS LTD
528,CS -Oth Operating Inc & Expend,T/A Vehicle Maintenance etc,Transport-Contract Hire,J01374,Transport Related Expenditure ,Contract Hire and Op Leasing  ,CC64,HIRING TRANSPORT SEN CABS               ,650,01/05/2015,R,CHEAM STATION CARS            
529,CS -Oth Operating Inc & Expend,T/A Vehicle Maintenance etc,Transport-Contract Hire,J01374,Transport Related Expenditure ,Contract Hire and Op Leasing  ,CC64,HIRING TRANSPORT SEN CABS               ,872.1,30/04/2015,R,SHERWOOD TRANSPORT GROUP      
530,CS -Oth Operating Inc & Expend,T/A Vehicle Maintenance etc,Transport-Contract Hire,J01374,Transport Related Expenditure ,Contract Hire and Op Leasing  ,CC64,HIRING TRANSPORT SEN CABS               ,840,30/04/2015,R,NVCAR HIRE LTD                
531,CS -Oth Operating Inc & Expend,T/A Vehicle Maintenance etc,Transport-Contract Hire,J01374,Transport Related Expenditure ,Contract Hire and Op Leasing  ,CC64,HIRING TRANSPORT SEN CABS               ,"1,404.00",05/05/2015,R,A STAR TRANSPORT LIMITED      
532,CS -Oth Operating Inc & Expend,T/A Vehicle Maintenance etc,Transport-Contract Hire,J01374,Transport Related Expenditure ,Contract Hire and Op Leasing  ,CC64,HIRING TRANSPORT SEN CABS               ,"1,257.00",30/04/2015,R,A STAR TRANSPORT LIMITED      
533,CS -Oth Operating Inc & Expend,T/A Vehicle Maintenance etc,Transport-Contract Hire,J01374,Transport Related Expenditure ,Contract Hire and Op Leasing  ,CC64,HIRING TRANSPORT SEN CABS               ,"1,560.00",30/04/2015,R,NVCAR HIRE LTD                
534,CS -Oth Operating Inc & Expend,T/A Vehicle Maintenance etc,Transport-Contract Hire,J01374,Transport Related Expenditure ,Contract Hire and Op Leasing  ,CC64,HIRING TRANSPORT SEN CABS               ,"1,176.00",30/04/2015,R,CAPITAL CARS                  
535,CS -Oth Operating Inc & Expend,T/A Vehicle Maintenance etc,Transport-Contract Hire,J01374,Transport Related Expenditure ,Contract Hire and Op Leasing  ,CC64,HIRING TRANSPORT SEN CABS               ,936,30/04/2015,R,CAPITAL CARS                  
536,CS -Oth Operating Inc & Expend,T/A Vehicle Maintenance etc,Transport-Contract Hire,J01374,Transport Related Expenditure ,Contract Hire and Op Leasing  ,CC64,HIRING TRANSPORT SEN CABS               ,"2,267.72",30/04/2015,R,KINGSTON ACCESSIBILITY TRAN LT
537,CS -Oth Operating Inc & Expend,T/A Vehicle Maintenance etc,Transport-Contract Hire,J01374,Transport Related Expenditure ,Contract Hire and Op Leasing  ,CC64,HIRING TRANSPORT SEN CABS               ,"1,680.00",30/04/2015,R,NVCAR HIRE LTD                
538,CS -Oth Operating Inc & Expend,T/A Vehicle Maintenance etc,Transport-Contract Hire,J01374,Transport Related Expenditure ,Contract Hire and Op Leasing  ,CC64,HIRING TRANSPORT SEN CABS               ,989.33,30/04/2015,R,SILVERBURN FINANCE (UK) LTD   
539,CS -Oth Operating Inc & Expend,T/A Vehicle Maintenance etc,Transport-Contract Hire,J01374,Transport Related Expenditure ,Contract Hire and Op Leasing  ,CC64,HIRING TRANSPORT SEN CABS               ,"2,210.00",30/04/2015,R,BARCLAYS ASSET & SALES FINANCE
540,CS -Oth Operating Inc & Expend,T/A Vehicle Maintenance etc,Transport-Contract Hire,J01374,Transport Related Expenditure ,Contract Hire and Op Leasing  ,CC64,HIRING TRANSPORT SEN CABS               ,805.5,30/04/2015,R,SHERWOOD TRANSPORT GROUP      
541,CS -Oth Operating Inc & Expend,T/A Vehicle Maintenance etc,Transport-Contract Hire,J01374,Transport Related Expenditure ,Contract Hire and Op Leasing  ,CC64,HIRING TRANSPORT SEN CABS               ,720,30/04/2015,R,CAPITAL CARS                  
542,CS -Oth Operating Inc & Expend,T/A Vehicle Maintenance etc,Transport-Contract Hire,J01374,Transport Related Expenditure ,Contract Hire and Op Leasing  ,CC64,HIRING TRANSPORT SEN CABS               ,"1,170.00",30/04/2015,R,NVCAR HIRE LTD                
543,CS -Oth Operating Inc & Expend,T/A Vehicle Maintenance etc,Transport-Contract Hire,J01374,Transport Related Expenditure ,Contract Hire and Op Leasing  ,CC64,HIRING TRANSPORT SEN CABS               ,"1,976.52",30/04/2015,R,KINGSTON ACCESSIBILITY TRAN LT
544,CS -Oth Operating Inc & Expend,T/A Vehicle Maintenance etc,Transport-Contract Hire,J01374,Transport Related Expenditure ,Contract Hire and Op Leasing  ,CC64,HIRING TRANSPORT SEN CABS               ,"2,548.00",30/04/2015,R,NVCAR HIRE LTD                
545,CS -Oth Operating Inc & Expend,T/A Vehicle Maintenance etc,Transport-Contract Hire,J01374,Transport Related Expenditure ,Contract Hire and Op Leasing  ,CC64,HIRING TRANSPORT SEN CABS               ,"1,232.14",30/04/2015,R,KINGSTON ACCESSIBILITY TRAN LT
546,CS -Oth Operating Inc & Expend,T/A Vehicle Maintenance etc,Transport-Contract Hire,J01374,Transport Related Expenditure ,Contract Hire and Op Leasing  ,CC64,HIRING TRANSPORT SEN CABS               ,"1,225.00",30/04/2015,R,NVCAR HIRE LTD                
547,CS -Oth Operating Inc & Expend,T/A Vehicle Maintenance etc,Transport-Contract Hire,J01374,Transport Related Expenditure ,Contract Hire and Op Leasing  ,CC64,HIRING TRANSPORT SEN CABS               ,"1,386.00",30/04/2015,R,SHERWOOD TRANSPORT GROUP      
548,CS -Oth Operating Inc & Expend,T/A Vehicle Maintenance etc,Transport-Contract Hire,J01374,Transport Related Expenditure ,Contract Hire and Op Leasing  ,CC64,HIRING TRANSPORT SEN CABS               ,"1,755.00",30/04/2015,R,SHERWOOD TRANSPORT GROUP      
549,CS -Oth Operating Inc & Expend,T/A Vehicle Maintenance etc,Transport-Contract Hire,J01374,Transport Related Expenditure ,Contract Hire and Op Leasing  ,CC64,HIRING TRANSPORT SEN CABS               ,"1,416.00",30/04/2015,R,KINGSTON ACCESSIBILITY TRAN LT
550,CS -Oth Operating Inc & Expend,T/A Vehicle Maintenance etc,Transport-Contract Hire,J01374,Transport Related Expenditure ,Contract Hire and Op Leasing  ,CC64,HIRING TRANSPORT SEN CABS               ,"1,299.74",30/04/2015,R,KINGSTON ACCESSIBILITY TRAN LT
551,CS -Oth Operating Inc & Expend,T/A Vehicle Maintenance etc,Transport-Contract Hire,J01374,Transport Related Expenditure ,Contract Hire and Op Leasing  ,CC64,HIRING TRANSPORT SEN CABS               ,"1,316.00",30/04/2015,R,CAPITAL CARS                  
552,CS -Oth Operating Inc & Expend,T/A Vehicle Maintenance etc,Transport-Contract Hire,J01374,Transport Related Expenditure ,Contract Hire and Op Leasing  ,CC64,HIRING TRANSPORT SEN CABS               ,544.5,30/04/2015,R,BRUNSWICK CARS LTD            
553,CS -Oth Operating Inc & Expend,T/A Vehicle Maintenance etc,Transport-Contract Hire,J01374,Transport Related Expenditure ,Contract Hire and Op Leasing  ,CC64,HIRING TRANSPORT SEN CABS               ,835,30/04/2015,R,PREMIER CARS                  
554,CS -Oth Operating Inc & Expend,T/A Vehicle Maintenance etc,Transport-Contract Hire,J01374,Transport Related Expenditure ,Contract Hire and Op Leasing  ,CC64,HIRING TRANSPORT SEN CABS               ,707,30/04/2015,R,NVCAR HIRE LTD                
555,CS -Oth Operating Inc & Expend,T/A Vehicle Maintenance etc,Transport-Contract Hire,J01374,Transport Related Expenditure ,Contract Hire and Op Leasing  ,CC64,HIRING TRANSPORT SEN CABS               ,"1,890.00",30/04/2015,R,NVCAR HIRE LTD                
556,CS -Oth Operating Inc & Expend,T/A Vehicle Maintenance etc,Transport-Contract Hire,J01374,Transport Related Expenditure ,Contract Hire and Op Leasing  ,CC64,HIRING TRANSPORT SEN CABS               ,"1,768.00",05/05/2015,R,CAPITAL CARS                  
557,CS -Oth Operating Inc & Expend,T/A Vehicle Maintenance etc,Transport-Contract Hire,J01374,Transport Related Expenditure ,Contract Hire and Op Leasing  ,CC64,HIRING TRANSPORT SEN CABS               ,980,30/04/2015,R,NVCAR HIRE LTD                
558,CS -Oth Operating Inc & Expend,T/A Vehicle Maintenance etc,Transport-Contract Hire,J01374,Transport Related Expenditure ,Contract Hire and Op Leasing  ,CC64,HIRING TRANSPORT SEN CABS               ,"1,260.00",30/04/2015,R,KINGSTON ACCESSIBILITY TRAN LT
559,CS -Oth Operating Inc & Expend,T/A Vehicle Maintenance etc,Transport-Contract Hire,J01374,Transport Related Expenditure ,Contract Hire and Op Leasing  ,CC64,HIRING TRANSPORT SEN CABS               ,"1,344.00",30/04/2015,R,PREMIER CARS                  
560,CS -Oth Operating Inc & Expend,T/A Vehicle Maintenance etc,Transport-Contract Hire,J01374,Transport Related Expenditure ,Contract Hire and Op Leasing  ,CC64,HIRING TRANSPORT SEN CABS               ,628,30/04/2015,R,GALPINS SERVICE               
561,CS -Oth Operating Inc & Expend,T/A Vehicle Maintenance etc,Transport-Contract Hire,J01374,Transport Related Expenditure ,Contract Hire and Op Leasing  ,CC64,HIRING TRANSPORT SEN CABS               ,"2,098.60",30/04/2015,R,KINGSTON ACCESSIBILITY TRAN LT
562,CS -Oth Operating Inc & Expend,T/A Vehicle Maintenance etc,Transport-Contract Hire,J01374,Transport Related Expenditure ,Contract Hire and Op Leasing  ,CC64,HIRING TRANSPORT SEN CABS               ,"1,596.00",30/04/2015,R,CAPITAL CARS                  
563,CS -Oth Operating Inc & Expend,T/A Vehicle Maintenance etc,Transport-Contract Hire,J01374,Transport Related Expenditure ,Contract Hire and Op Leasing  ,CC64,HIRING TRANSPORT SEN CABS               ,952,30/04/2015,R,GALPINS SERVICE               
564,CS -Oth Operating Inc & Expend,T/A Vehicle Maintenance etc,Transport-Contract Hire,J01374,Transport Related Expenditure ,Contract Hire and Op Leasing  ,CC64,HIRING TRANSPORT SEN CABS               ,"1,260.00",30/04/2015,R,SHERWOOD TRANSPORT GROUP      
565,CS -Oth Operating Inc & Expend,T/A Vehicle Maintenance etc,Transport-Contract Hire,J01374,Transport Related Expenditure ,Contract Hire and Op Leasing  ,CC64,HIRING TRANSPORT SEN CABS               ,"1,091.72",30/04/2015,R,KINGSTON ACCESSIBILITY TRAN LT
566,CS -Oth Operating Inc & Expend,T/A Vehicle Maintenance etc,Transport-Contract Hire,J01374,Transport Related Expenditure ,Contract Hire and Op Leasing  ,CC64,HIRING TRANSPORT SEN CABS               ,"2,352.00",30/04/2015,R,SILVERBURN FINANCE (UK) LTD   
567,CS -Oth Operating Inc & Expend,T/A Vehicle Maintenance etc,Transport-Contract Hire,J01374,Transport Related Expenditure ,Contract Hire and Op Leasing  ,CC64,HIRING TRANSPORT SEN CABS               ,944,30/04/2015,R,CAPITAL CARS                  
568,CS -Oth Operating Inc & Expend,T/A Vehicle Maintenance etc,Transport-Contract Hire,J01374,Transport Related Expenditure ,Contract Hire and Op Leasing  ,CC64,HIRING TRANSPORT SEN CABS               ,"2,100.00",30/04/2015,R,BARCLAYS ASSET & SALES FINANCE
569,CS -Oth Operating Inc & Expend,T/A Vehicle Maintenance etc,Transport-Contract Hire,J01374,Transport Related Expenditure ,Contract Hire and Op Leasing  ,CC64,HIRING TRANSPORT SEN CABS               ,756,30/04/2015,R,NVCAR HIRE LTD                
570,CS -Oth Operating Inc & Expend,T/A Vehicle Maintenance etc,Transport-Contract Hire,J01374,Transport Related Expenditure ,Contract Hire and Op Leasing  ,CC64,HIRING TRANSPORT SEN CABS               ,936,30/04/2015,R,NVCAR HIRE LTD                
571,CS -Oth Operating Inc & Expend,T/A Vehicle Maintenance etc,Transport-Contract Hire,J01374,Transport Related Expenditure ,Contract Hire and Op Leasing  ,CC64,HIRING TRANSPORT SEN CABS               ,"1,359.54",30/04/2015,R,KINGSTON ACCESSIBILITY TRAN LT
572,CS -Oth Operating Inc & Expend,T/A Vehicle Maintenance etc,Transport-Contract Hire,J01374,Transport Related Expenditure ,Contract Hire and Op Leasing  ,CC64,HIRING TRANSPORT SEN CABS               ,816,30/04/2015,R,CAPITAL CARS                  
573,CS -Oth Operating Inc & Expend,T/A Vehicle Maintenance etc,Transport-Contract Hire,J01374,Transport Related Expenditure ,Contract Hire and Op Leasing  ,CC64,HIRING TRANSPORT SEN CABS               ,"1,976.00",30/04/2015,R,BARCLAYS ASSET & SALES FINANCE
574,CS -Oth Operating Inc & Expend,T/A Vehicle Maintenance etc,Transport-Contract Hire,J01374,Transport Related Expenditure ,Contract Hire and Op Leasing  ,CC64,HIRING TRANSPORT SEN CABS               ,810,30/04/2015,R,NVCAR HIRE LTD                
575,CS -Oth Operating Inc & Expend,T/A Vehicle Maintenance etc,Transport-Contract Hire,J01374,Transport Related Expenditure ,Contract Hire and Op Leasing  ,CC64,HIRING TRANSPORT SEN CABS               ,560,30/04/2015,R,GALPINS SERVICE               
576,CS -Oth Operating Inc & Expend,T/A Vehicle Maintenance etc,Transport-Contract Hire,J01374,Transport Related Expenditure ,Contract Hire and Op Leasing  ,CC64,HIRING TRANSPORT SEN CABS               ,"1,592.92",30/04/2015,R,KINGSTON ACCESSIBILITY TRAN LT
577,CS -Oth Operating Inc & Expend,T/A Vehicle Maintenance etc,Transport-Contract Hire,J01374,Transport Related Expenditure ,Contract Hire and Op Leasing  ,CC64,HIRING TRANSPORT SEN CABS               ,935,30/04/2015,R,PREMIER CARS                  
578,CS -Oth Operating Inc & Expend,T/A Vehicle Maintenance etc,Transport-Contract Hire,J01374,Transport Related Expenditure ,Contract Hire and Op Leasing  ,CC64,HIRING TRANSPORT SEN CABS               ,"3,375.00",30/04/2015,R,SHERWOOD TRANSPORT GROUP      
579,CS -Oth Operating Inc & Expend,T/A Vehicle Maintenance etc,Transport-Contract Hire,J01374,Transport Related Expenditure ,Contract Hire and Op Leasing  ,CC64,HIRING TRANSPORT SEN CABS               ,"2,025.00",29/04/2015,R,WALLINGTON CARS & COURIERS LTD
580,CS -Oth Operating Inc & Expend,T/A Vehicle Maintenance etc,Transport-Contract Hire,J01374,Transport Related Expenditure ,Contract Hire and Op Leasing  ,CC64,HIRING TRANSPORT SEN CABS               ,"1,470.00",30/04/2015,R,SHERWOOD TRANSPORT GROUP      
581,CS -Oth Operating Inc & Expend,T/A Vehicle Maintenance etc,Transport-Contract Hire,J01374,Transport Related Expenditure ,Contract Hire and Op Leasing  ,CC64,HIRING TRANSPORT SEN CABS               ,"1,092.00",30/04/2015,R,CAPITAL CARS                  
582,CS -Oth Operating Inc & Expend,T/A Vehicle Maintenance etc,Transport-Contract Hire,J01374,Transport Related Expenditure ,Contract Hire and Op Leasing  ,CC64,HIRING TRANSPORT SEN CABS               ,"1,344.00",30/04/2015,R,CAPITAL CARS                  
583,CS -Oth Operating Inc & Expend,T/A Vehicle Maintenance etc,Transport-Contract Hire,J01374,Transport Related Expenditure ,Contract Hire and Op Leasing  ,CC64,HIRING TRANSPORT SEN CABS               ,"2,088.52",30/04/2015,R,KINGSTON ACCESSIBILITY TRAN LT
584,CS -Oth Operating Inc & Expend,T/A Vehicle Maintenance etc,Transport-Contract Hire,J01374,Transport Related Expenditure ,Contract Hire and Op Leasing  ,CC64,HIRING TRANSPORT SEN CABS               ,"1,378.00",30/04/2015,R,CAPITAL CARS                  
585,CS -Oth Operating Inc & Expend,T/A Vehicle Maintenance etc,Transport-Contract Hire,J01374,Transport Related Expenditure ,Contract Hire and Op Leasing  ,CC64,HIRING TRANSPORT SEN CABS               ,"1,750.00",30/04/2015,R,BARCLAYS ASSET & SALES FINANCE
586,CS -Oth Operating Inc & Expend,T/A Vehicle Maintenance etc,Transport-Contract Hire,J01374,Transport Related Expenditure ,Contract Hire and Op Leasing  ,CC64,HIRING TRANSPORT SEN CABS               ,"1,134.00",30/04/2015,R,BRUNSWICK CARS LTD            
587,CS -Oth Operating Inc & Expend,T/A Vehicle Maintenance etc,Transport-Contract Hire,J01374,Transport Related Expenditure ,Contract Hire and Op Leasing  ,CC64,HIRING TRANSPORT SEN CABS               ,832,30/04/2015,R,A STAR TRANSPORT LIMITED      
588,CS -Oth Operating Inc & Expend,T/A Vehicle Maintenance etc,Transport-Contract Hire,J01374,Transport Related Expenditure ,Contract Hire and Op Leasing  ,CC64,HIRING TRANSPORT SEN CABS               ,"1,820.00",30/04/2015,R,CAPITAL CARS                  
589,CS -Oth Operating Inc & Expend,T/A Vehicle Maintenance etc,Transport-Contract Hire,J01374,Transport Related Expenditure ,Contract Hire and Op Leasing  ,CC64,HIRING TRANSPORT SEN CABS               ,"1,092.00",30/04/2015,R,A STAR TRANSPORT LIMITED      
590,CS -Oth Operating Inc & Expend,T/A Vehicle Maintenance etc,Transport-Contract Hire,J01374,Transport Related Expenditure ,Contract Hire and Op Leasing  ,CC64,HIRING TRANSPORT SEN CABS               ,"1,144.00",30/04/2015,R,CAPITAL CARS                  
591,CS -Oth Operating Inc & Expend,T/A Vehicle Maintenance etc,Transport-Contract Hire,J01374,Transport Related Expenditure ,Contract Hire and Op Leasing  ,CC64,HIRING TRANSPORT SEN CABS               ,"1,690.00",30/04/2015,R,BARCLAYS ASSET & SALES FINANCE
592,CS -Oth Operating Inc & Expend,T/A Vehicle Maintenance etc,Transport-Contract Hire,J01374,Transport Related Expenditure ,Contract Hire and Op Leasing  ,CC64,HIRING TRANSPORT SEN CABS               ,"1,134.00",30/04/2015,R,CAPITAL CARS                  
593,CS -Oth Operating Inc & Expend,T/A Vehicle Maintenance etc,Transport-Contract Hire,J01374,Transport Related Expenditure ,Contract Hire and Op Leasing  ,CC64,HIRING TRANSPORT SEN CABS               ,"1,560.00",30/04/2015,R,CAPITAL CARS                  
594,CS -Oth Operating Inc & Expend,T/A Vehicle Maintenance etc,Transport-Contract Hire,J01374,Transport Related Expenditure ,Contract Hire and Op Leasing  ,CC64,HIRING TRANSPORT SEN CABS               ,"2,508.52",30/04/2015,R,KINGSTON ACCESSIBILITY TRAN LT
595,CS -Oth Operating Inc & Expend,T/A Vehicle Maintenance etc,Transport-Contract Hire,J01374,Transport Related Expenditure ,Contract Hire and Op Leasing  ,CC64,HIRING TRANSPORT SEN CABS               ,864,30/04/2015,R,NVCAR HIRE LTD                
596,CS -Oth Operating Inc & Expend,T/A Vehicle Maintenance etc,Transport-Contract Hire,J01374,Transport Related Expenditure ,Contract Hire and Op Leasing  ,CC64,HIRING TRANSPORT SEN CABS               ,591,30/04/2015,R,CAPITAL CARS                  
597,CS -Oth Operating Inc & Expend,T/A Vehicle Maintenance etc,Transport-Contract Hire,J01374,Transport Related Expenditure ,Contract Hire and Op Leasing  ,CC64,HIRING TRANSPORT SEN CABS               ,585,30/04/2015,R,SILVERBURN FINANCE (UK) LTD   
598,CS -Oth Operating Inc & Expend,T/A Vehicle Maintenance etc,Transport-Contract Hire,J01374,Transport Related Expenditure ,Contract Hire and Op Leasing  ,CC64,HIRING TRANSPORT SEN CABS               ,"1,064.00",05/05/2015,R,CAPITAL CARS                  
599,CS -Oth Operating Inc & Expend,T/A Vehicle Maintenance etc,Transport-Contract Hire,J01374,Transport Related Expenditure ,Contract Hire and Op Leasing  ,CC64,HIRING TRANSPORT SEN CABS               ,"1,250.00",30/04/2015,R,NVCAR HIRE LTD                
600,CS -Oth Operating Inc & Expend,T/A Vehicle Maintenance etc,Transport-Contract Hire,J01374,Transport Related Expenditure ,Contract Hire and Op Leasing  ,CC64,HIRING TRANSPORT SEN CABS               ,840,01/05/2015,R,CHEAM STATION CARS            
601,CS -Oth Operating Inc & Expend,T/A Vehicle Maintenance etc,Transport-Contract Hire,J01374,Transport Related Expenditure ,Contract Hire and Op Leasing  ,CC64,HIRING TRANSPORT SEN CABS               ,"1,352.00",01/05/2015,R,CHEAM STATION CARS            
602,CS -Oth Operating Inc & Expend,T/A Vehicle Maintenance etc,Transport-Contract Hire,J01374,Transport Related Expenditure ,Contract Hire and Op Leasing  ,CC64,HIRING TRANSPORT SEN CABS               ,"1,027.00",30/04/2015,R,SHERWOOD TRANSPORT GROUP      
603,CS -Oth Operating Inc & Expend,T/A Vehicle Maintenance etc,Transport-Contract Hire,J01374,Transport Related Expenditure ,Contract Hire and Op Leasing  ,CC64,HIRING TRANSPORT SEN CABS               ,"2,660.00",30/04/2015,R,SHERWOOD TRANSPORT GROUP      
604,CS -Oth Operating Inc & Expend,T/A Vehicle Maintenance etc,Transport-Contract Hire,J01374,Transport Related Expenditure ,Contract Hire and Op Leasing  ,CC64,HIRING TRANSPORT SEN CABS               ,"1,300.00",30/04/2015,R,CAPITAL CARS                  
605,CS -Oth Operating Inc & Expend,T/A Vehicle Maintenance etc,Transport-Contract Hire,J01374,Transport Related Expenditure ,Contract Hire and Op Leasing  ,CC64,HIRING TRANSPORT SEN CABS               ,"1,012.00",30/04/2015,R,CAPITAL CARS                  
606,CS -Oth Operating Inc & Expend,T/A Vehicle Maintenance etc,Transport-Contract Hire,J01374,Transport Related Expenditure ,Contract Hire and Op Leasing  ,CC64,HIRING TRANSPORT SEN CABS               ,"1,792.00",30/04/2015,R,A STAR TRANSPORT LIMITED      
607,CS -Oth Operating Inc & Expend,T/A Vehicle Maintenance etc,Transport-Contract Hire,J01374,Transport Related Expenditure ,Contract Hire and Op Leasing  ,CC64,HIRING TRANSPORT SEN CABS               ,"1,820.00",30/04/2015,R,CAPITAL CARS                  
608,CS -Oth Operating Inc & Expend,T/A Vehicle Maintenance etc,Transport-Contract Hire,J01374,Transport Related Expenditure ,Contract Hire and Op Leasing  ,CC64,HIRING TRANSPORT SEN CABS               ,"1,028.30",30/04/2015,R,SILVERBURN FINANCE (UK) LTD   
609,CS -Oth Operating Inc & Expend,T/A Vehicle Maintenance etc,Transport-Contract Hire,J01374,Transport Related Expenditure ,Contract Hire and Op Leasing  ,CC64,HIRING TRANSPORT SEN CABS               ,700,29/04/2015,R,WALLINGTON CARS & COURIERS LTD
610,CS -Oth Operating Inc & Expend,T/A Vehicle Maintenance etc,Transport-Contract Hire,J01374,Transport Related Expenditure ,Contract Hire and Op Leasing  ,CC64,HIRING TRANSPORT SEN CABS               ,"1,344.00",30/04/2015,R,CAPITAL CARS                  
611,CS -Oth Operating Inc & Expend,T/A Vehicle Maintenance etc,Transport-Contract Hire,J01374,Transport Related Expenditure ,Contract Hire and Op Leasing  ,CC64,HIRING TRANSPORT SEN CABS               ,"2,054.00",30/04/2015,R,BARCLAYS ASSET & SALES FINANCE
612,CS -Oth Operating Inc & Expend,T/A Vehicle Maintenance etc,Transport-Contract Hire,J01374,Transport Related Expenditure ,Contract Hire and Op Leasing  ,CC64,HIRING TRANSPORT SEN CABS               ,"1,282.50",30/04/2015,R,SHERWOOD TRANSPORT GROUP      
613,CS -Oth Operating Inc & Expend,T/A Vehicle Maintenance etc,Transport-Contract Hire,J01374,Transport Related Expenditure ,Contract Hire and Op Leasing  ,CC64,HIRING TRANSPORT SEN CABS               ,842.4,30/04/2015,R,KINGSTON ACCESSIBILITY TRAN LT
614,CS -Oth Operating Inc & Expend,T/A Vehicle Maintenance etc,Transport-Contract Hire,J01374,Transport Related Expenditure ,Contract Hire and Op Leasing  ,CC64,HIRING TRANSPORT SEN CABS               ,"1,008.00",30/04/2015,R,CAPITAL CARS                  
615,CS -Oth Operating Inc & Expend,T/A Vehicle Maintenance etc,Transport-Contract Hire,J01374,Transport Related Expenditure ,Contract Hire and Op Leasing  ,CC64,HIRING TRANSPORT SEN CABS               ,"2,758.00",30/04/2015,R,BRUNSWICK CARS LTD            
616,CS -Oth Operating Inc & Expend,T/A Vehicle Maintenance etc,Transport-Contract Hire,J01374,Transport Related Expenditure ,Contract Hire and Op Leasing  ,CC64,HIRING TRANSPORT SEN CABS               ,"1,430.00",30/04/2015,R,SHERWOOD TRANSPORT GROUP      
617,CS -Oth Operating Inc & Expend,T/A Vehicle Maintenance etc,Transport-Contract Hire,J01374,Transport Related Expenditure ,Contract Hire and Op Leasing  ,CC64,HIRING TRANSPORT SEN CABS               ,"2,067.00",30/04/2015,R,SHERWOOD TRANSPORT GROUP      
618,CS -Oth Operating Inc & Expend,T/A Vehicle Maintenance etc,Transport-Contract Hire,J01374,Transport Related Expenditure ,Contract Hire and Op Leasing  ,CC67,HIRING TRANSPORT H&SS CAB ADULTS        ,630,28/02/2015,R,CAPITAL CARS                  
619,CS -Oth Operating Inc & Expend,T/A Vehicle Maintenance etc,Transport-Contract Hire,J01374,Transport Related Expenditure ,Contract Hire and Op Leasing  ,CC67,HIRING TRANSPORT H&SS CAB ADULTS        ,736,30/04/2015,R,SILVERBURN FINANCE (UK) LTD   
620,CS -Oth Operating Inc & Expend,T/A Vehicle Maintenance etc,Transport-Contract Hire,J01374,Transport Related Expenditure ,Contract Hire and Op Leasing  ,CC67,HIRING TRANSPORT H&SS CAB ADULTS        ,"1,152.00",30/04/2015,R,NVCAR HIRE LTD                
621,CS -Oth Operating Inc & Expend,T/A Vehicle Maintenance etc,Transport-Contract Hire,J01374,Transport Related Expenditure ,Contract Hire and Op Leasing  ,CC67,HIRING TRANSPORT H&SS CAB ADULTS        ,"1,665.00",30/04/2015,R,SHERWOOD TRANSPORT GROUP      
622,CS -Oth Operating Inc & Expend,T/A Vehicle Maintenance etc,Transport-Contract Hire,J01374,Transport Related Expenditure ,Contract Hire and Op Leasing  ,CC67,HIRING TRANSPORT H&SS CAB ADULTS        ,799.76,30/04/2015,R,KINGSTON ACCESSIBILITY TRAN LT
623,CS -Oth Operating Inc & Expend,T/A Vehicle Maintenance etc,Transport-Contract Hire,J01374,Transport Related Expenditure ,Contract Hire and Op Leasing  ,CC67,HIRING TRANSPORT H&SS CAB ADULTS        ,660,30/04/2015,R,A STAR TRANSPORT LIMITED      
624,CS -Oth Operating Inc & Expend,T/A Vehicle Maintenance etc,Transport-Contract Hire,J01374,Transport Related Expenditure ,Contract Hire and Op Leasing  ,CC67,HIRING TRANSPORT H&SS CAB ADULTS        ,799,30/04/2015,R,CAPITAL CARS                  
625,CS -Oth Operating Inc & Expend,T/A Vehicle Maintenance etc,Transport-Contract Hire,J01374,Transport Related Expenditure ,Contract Hire and Op Leasing  ,CC67,HIRING TRANSPORT H&SS CAB ADULTS        ,774,30/04/2015,R,SILVERBURN FINANCE (UK) LTD   
626,CS -Oth Operating Inc & Expend,T/A Vehicle Maintenance etc,Transport-Contract Hire,J01374,Transport Related Expenditure ,Contract Hire and Op Leasing  ,CC67,HIRING TRANSPORT H&SS CAB ADULTS        ,736,30/04/2015,R,CAPITAL CARS                  
627,CS -Oth Operating Inc & Expend,T/A Vehicle Maintenance etc,Transport-Contract Hire,J01374,Transport Related Expenditure ,Contract Hire and Op Leasing  ,CC67,HIRING TRANSPORT H&SS CAB ADULTS        ,"1,706.60",30/04/2015,R,KINGSTON ACCESSIBILITY TRAN LT
628,CS -Oth Operating Inc & Expend,T/A Vehicle Maintenance etc,Transport-Contract Hire,J01374,Transport Related Expenditure ,Contract Hire and Op Leasing  ,CC67,HIRING TRANSPORT H&SS CAB ADULTS        ,"1,216.00",01/05/2015,R,CHEAM STATION CARS            
629,CS -Oth Operating Inc & Expend,T/A Vehicle Maintenance etc,Transport-Contract Hire,J01374,Transport Related Expenditure ,Contract Hire and Op Leasing  ,CC68,HIRING TRANSPORT SEN COLLEGES CABS      ,600,30/04/2015,R,NVCAR HIRE LTD                
630,CS -Oth Operating Inc & Expend,T/A Vehicle Maintenance etc,Transport-Contract Hire,J01374,Transport Related Expenditure ,Contract Hire and Op Leasing  ,CC68,HIRING TRANSPORT SEN COLLEGES CABS      ,"1,100.00",30/04/2015,R,PREMIER CARS                  
631,CS -Oth Operating Inc & Expend,T/A Vehicle Maintenance etc,Transport-Contract Hire,J01374,Transport Related Expenditure ,Contract Hire and Op Leasing  ,CC68,HIRING TRANSPORT SEN COLLEGES CABS      ,569.5,30/04/2015,R,PREMIER CARS                  
632,CS -Oth Operating Inc & Expend,T/A Vehicle Maintenance etc,Transport-Contract Hire,J01374,Transport Related Expenditure ,Contract Hire and Op Leasing  ,CC68,HIRING TRANSPORT SEN COLLEGES CABS      ,553.6,30/04/2015,R,SILVERBURN FINANCE (UK) LTD   
633,CS -Oth Operating Inc & Expend,T/A Vehicle Maintenance etc,Transport-Contract Hire,J01374,Transport Related Expenditure ,Contract Hire and Op Leasing  ,CC68,HIRING TRANSPORT SEN COLLEGES CABS      ,830,30/04/2015,R,KINGSTON ACCESSIBILITY TRAN LT
634,CS -Oth Operating Inc & Expend,T/A Vehicle Maintenance etc,Transport-Contract Hire,J01374,Transport Related Expenditure ,Contract Hire and Op Leasing  ,CC68,HIRING TRANSPORT SEN COLLEGES CABS      ,"1,710.54",30/04/2015,R,KINGSTON ACCESSIBILITY TRAN LT
635,CS -Oth Operating Inc & Expend,T/A Vehicle Maintenance etc,Transport-Contract Hire,J01374,Transport Related Expenditure ,Contract Hire and Op Leasing  ,CC68,HIRING TRANSPORT SEN COLLEGES CABS      ,"1,396.00",30/04/2015,R,PREMIER CARS                  
636,CS -Oth Operating Inc & Expend,T/A Vehicle Maintenance etc,Transport-Contract Hire,J01374,Transport Related Expenditure ,Contract Hire and Op Leasing  ,CC68,HIRING TRANSPORT SEN COLLEGES CABS      ,"1,800.00",30/04/2015,R,BARCLAYS ASSET & SALES FINANCE
637,CS -Oth Operating Inc & Expend,T/A Vehicle Maintenance etc,Transport-Workshop,J01376,Transport Related Expenditure ,Contract Hire and Op Leasing  ,CC60,Vehicle Hire for LB Sutton              ,"1,596.00",29/04/2015,R,CALVERTON FACTORS LTD         
638,CS -Oth Operating Inc & Expend,T/A Vehicle Maintenance etc,Transport-Workshop,J01376,Transport Related Expenditure ,Contract Hire and Op Leasing  ,CC60,Vehicle Hire for LB Sutton              ,"4,216.00",30/04/2015,R,BARCLAYS ASSET & SALES FINANCE
639,CS -Oth Operating Inc & Expend,T/A Vehicle Maintenance etc,Transport-Workshop,J01376,Transport Related Expenditure ,Contract Hire and Op Leasing  ,CC60,Vehicle Hire for LB Sutton              ,"2,128.00",30/04/2015,R,CAPITAL CARS                  
640,CS -Oth Operating Inc & Expend,T/A Vehicle Maintenance etc,Transport-Workshop,J01376,Transport Related Expenditure ,Contract Hire and Op Leasing  ,CC60,Vehicle Hire for LB Sutton              ,"1,764.00",30/04/2015,R,BARCLAYS ASSET & SALES FINANCE
641,CS -Oth Operating Inc & Expend,T/A Vehicle Maintenance etc,Transport-Workshop,J01376,Transport Related Expenditure ,Contract Hire and Op Leasing  ,CC65,Vehicle Hire for Education              ,810,30/04/2015,R,CAPITAL CARS                  
642,CS -Oth Operating Inc & Expend,T/A Vehicle Maintenance etc,Vehicle Workshops,J01378,Employees                     ,Direct Employee Expenses      ,AA17,Agency Staff & Casual Paymts            ,"1,330.00",15/04/2015,R,REDACTED     
643,CS -Oth Operating Inc & Expend,T/A Vehicle Maintenance etc,Vehicle Workshops,J01378,Employees                     ,Direct Employee Expenses      ,AA17,Agency Staff & Casual Paymts            ,665,20/05/2015,R,REDACTED     
644,CS -Oth Operating Inc & Expend,T/A Vehicle Maintenance etc,Vehicle Workshops,J01378,Employees                     ,Direct Employee Expenses      ,AA17,Agency Staff & Casual Paymts            ,"1,820.00",22/04/2015,R,REDACTED     
645,CS -Oth Operating Inc & Expend,T/A Vehicle Maintenance etc,Vehicle Workshops,J01378,Employees                     ,Direct Employee Expenses      ,AA17,Agency Staff & Casual Paymts            ,"1,168.13",06/05/2015,R,REDACTED     
646,CS -Oth Operating Inc & Expend,T/A Vehicle Maintenance etc,Vehicle Workshops,J01378,Employees                     ,Direct Employee Expenses      ,AA17,Agency Staff & Casual Paymts            ,630,29/04/2015,R,REDACTED     
647,CS -Oth Operating Inc & Expend,T/A Vehicle Maintenance etc,Vehicle Workshops,J01378,Transport Related Expenditure ,Direct Transport Costs        ,CA02,Tyres                                   ,880,24/04/2015,R,MORDEN TYRE SERVICES LTD      
648,CS -Oth Operating Inc & Expend,T/A Vehicle Maintenance etc,Vehicle Workshops,J01378,Transport Related Expenditure ,Direct Transport Costs        ,CA02,Tyres                                   ,880,07/05/2015,R,MORDEN TYRE SERVICES LTD      
649,CS -Oth Operating Inc & Expend,T/A Vehicle Maintenance etc,Vehicle Workshops,J01378,Transport Related Expenditure ,Direct Transport Costs        ,CA02,Tyres                                   ,510,29/04/2015,R,MORDEN TYRE SERVICES LTD      
650,CS -Oth Operating Inc & Expend,T/A Vehicle Maintenance etc,Vehicle Workshops,J01378,Transport Related Expenditure ,Direct Transport Costs        ,CA02,Tyres                                   ,"1,395.00",07/05/2015,R,MORDEN TYRE SERVICES LTD      
651,CS -Oth Operating Inc & Expend,T/A Vehicle Maintenance etc,Vehicle Workshops,J01378,Transport Related Expenditure ,Direct Transport Costs        ,CA02,Tyres                                   ,"1,205.00",01/05/2015,R,MORDEN TYRE SERVICES LTD      
652,CS -Oth Operating Inc & Expend,T/A Vehicle Maintenance etc,Vehicle Workshops,J01378,Transport Related Expenditure ,Direct Transport Costs        ,CA02,Tyres                                   ,660,29/04/2015,R,MORDEN TYRE SERVICES LTD      
653,CS -Oth Operating Inc & Expend,T/A Vehicle Maintenance etc,Vehicle Workshops,J01378,Transport Related Expenditure ,Direct Transport Costs        ,CA02,Tyres                                   ,"1,725.00",29/04/2015,R,MORDEN TYRE SERVICES LTD      
654,CS -Oth Operating Inc & Expend,T/A Vehicle Maintenance etc,Vehicle Workshops,J01378,Transport Related Expenditure ,Direct Transport Costs        ,CA55,Specialist Maint. (Off Site)            ,602.06,30/04/2015,R,KINGSLEY COMM COMPONENTS LTD  
655,CS -Oth Operating Inc & Expend,T/A Vehicle Maintenance etc,Vehicle Workshops,J01378,Transport Related Expenditure ,Direct Transport Costs        ,CA55,Specialist Maint. (Off Site)            ,720,08/05/2015,R,THE GEARBOX SHOP              
656,CS -Oth Operating Inc & Expend,T/A Vehicle Maintenance etc,Vehicle Workshops,J01378,Transport Related Expenditure ,Direct Transport Costs        ,CA55,Specialist Maint. (Off Site)            ,"2,047.52",05/05/2015,R,DENNIS EAGLE LIMITED          
657,CS -Oth Operating Inc & Expend,T/A Vehicle Maintenance etc,Vehicle Workshops,J01378,Transport Related Expenditure ,Direct Transport Costs        ,CA55,Specialist Maint. (Off Site)            ,577.42,30/04/2015,R,KINGSLEY COMM COMPONENTS LTD  
658,CS -Oth Operating Inc & Expend,T/A Vehicle Maintenance etc,Vehicle Workshops,J01378,Transport Related Expenditure ,Direct Transport Costs        ,CA55,Specialist Maint. (Off Site)            ,"3,927.41",23/04/2015,R,REDACTED     
659,CS -Oth Operating Inc & Expend,T/A Vehicle Maintenance etc,Vehicle Workshops,J01378,Transport Related Expenditure ,Direct Transport Costs        ,CA55,Specialist Maint. (Off Site)            ,609.56,30/04/2015,R,KINGSLEY COMM COMPONENTS LTD  
660,CS -Oth Operating Inc & Expend,T/A Vehicle Maintenance etc,Vehicle Workshops,J01378,Transport Related Expenditure ,Direct Transport Costs        ,CA55,Specialist Maint. (Off Site)            ,"1,033.62",15/05/2015,R,GVS HIRE LTD                  
661,CS -Oth Operating Inc & Expend,T/A Vehicle Maintenance etc,Vehicle Workshops,J01378,Transport Related Expenditure ,Direct Transport Costs        ,CA55,Specialist Maint. (Off Site)            ,577.42,30/04/2015,R,KINGSLEY COMM COMPONENTS LTD  
662,CS -Oth Operating Inc & Expend,T/A Vehicle Maintenance etc,Vehicle Workshops,J01378,Transport Related Expenditure ,Direct Transport Costs        ,CA56,Specialist Maint. (On Site)             ,715.06,18/05/2015,R,MITCHELL POWER SYSTEMS        
663,CS -Oth Operating Inc & Expend,T/A Vehicle Maintenance etc,Vehicle Workshops,J01378,Transport Related Expenditure ,Direct Transport Costs        ,CA56,Specialist Maint. (On Site)             ,920.46,15/05/2015,R,GVS HIRE LTD                  
664,CS -Oth Operating Inc & Expend,T/A Vehicle Maintenance etc,Vehicle Workshops,J01378,Transport Related Expenditure ,Direct Transport Costs        ,CA72,Vehicle Parts                           ,805.68,27/04/2015,R,JOHNSTON SWEEPERS LIMITED     
665,CS -Oth Operating Inc & Expend,T/A Vehicle Maintenance etc,Vehicle Workshops,J01378,Transport Related Expenditure ,Direct Transport Costs        ,CA72,Vehicle Parts                           ,652.4,06/05/2015,R,GEESINK NORBA                 
666,CS -Oth Operating Inc & Expend,T/A Vehicle Maintenance etc,Vehicle Workshops,J01378,Transport Related Expenditure ,Direct Transport Costs        ,CA72,Vehicle Parts                           ,"2,554.36",06/05/2015,R,DENNIS EAGLE LIMITED          
667,CS -Oth Operating Inc & Expend,T/A Vehicle Maintenance etc,Vehicle Workshops,J01378,Transport Related Expenditure ,Direct Transport Costs        ,CA72,Vehicle Parts                           ,"1,300.00",06/05/2015,R,GEESINK NORBA                 
668,CS -Oth Operating Inc & Expend,T/A Vehicle Maintenance etc,Vehicle Workshops,J01378,Transport Related Expenditure ,Direct Transport Costs        ,CA72,Vehicle Parts                           ,927.27,06/05/2015,R,GEESINK NORBA                 
669,CS -Oth Operating Inc & Expend,T/A Vehicle Maintenance etc,Vehicle Workshops,J01378,Transport Related Expenditure ,Direct Transport Costs        ,CA72,Vehicle Parts                           ,821.35,21/05/2015,R,ROSSETTS COMMERCIALS          
670,CS -Oth Operating Inc & Expend,T/A Vehicle Maintenance etc,Vehicle Workshops,J01378,Transport Related Expenditure ,Direct Transport Costs        ,CA72,Vehicle Parts                           ,578.2,15/05/2015,R,WASTEPARTS UK LTD             
671,CS -Oth Operating Inc & Expend,T/A Vehicle Maintenance etc,Vehicle Workshops,J01378,Transport Related Expenditure ,Direct Transport Costs        ,CA72,Vehicle Parts                           ,"1,570.84",11/05/2015,R,DENNIS EAGLE LIMITED          
672,CS -Oth Operating Inc & Expend,T/A Vehicle Maintenance etc,Vehicle Workshops,J01378,Transport Related Expenditure ,Direct Transport Costs        ,CA72,Vehicle Parts                           ,594,22/05/2015,R,FIRST PARTS SOLUTIONS         
673,CS -Oth Operating Inc & Expend,T/A Vehicle Maintenance etc,Vehicle Workshops,J01378,Transport Related Expenditure ,Direct Transport Costs        ,CA73,Vehicle Consumables                     ,800.78,05/05/2015,R,COMMERCIAL & PLANT LTD        
674,CS -Oth Operating Inc & Expend,T/A Vehicle Maintenance etc,Vehicle Workshops,J01378,Transport Related Expenditure ,Contract Hire and Op Leasing  ,CC53,Plant Hire for MRCS                     ,"1,045.00",30/04/2015,R,B&T PLANT HIRE LTD            
675,CS -Oth Operating Inc & Expend,T/A Vehicle Maintenance etc,Vehicle Workshops,J01378,Supplies & Services           ,Equip Furniture/Materials     ,DA01,Equipment - R & M                       ,813.34,25/04/2015,R,SUNLIGHT SERVICE GROUP LTD    
676,Cultural Env Reg&Plan Services,Mgt & Support (Env),Estates Mgt,J01420,Supplies & Services           ,Services                      ,DF03,CONSULTANTS                             ,"3,400.00",15/04/2015,R,ALLSOP LLP                    
677,CS -Oth Operating Inc & Expend,Extraordinary Items & PY Adj.,Housing Shops,J01533,Premises Related Expenditure  ,RepairsAlterations&MtceOfBldgs,BA01,DDM - GENERAL BUILDING                  ,"40,596.08",05/05/2015,R,MAGUIRE BROTHERS LTD          
678,CS -Oth Operating Inc & Expend,Extraordinary Items & PY Adj.,Housing Shops,J01533,Premises Related Expenditure  ,RepairsAlterations&MtceOfBldgs,BA01,DDM - GENERAL BUILDING                  ,"4,500.00",28/05/2015,R,WORKSHOP 305                  
679,CS -Oth Operating Inc & Expend,Extraordinary Items & PY Adj.,South Mitcham Comm Assoc,J08071,Premises Related Expenditure  ,RepairsAlterations&MtceOfBldgs,BA01,DDM - General Building                  ,"3,812.50",06/05/2015,R,SALTASH ENTERPRISES LTD       
680,Childrens & Education Services,Statutory & Regulatory Duties,Senior Mngt & Support Services,K01005,Employees                     ,Direct Employee Expenses      ,AA17,Agency Staff & Casual Paymts            ,"14,480.00",31/03/2015,R,PENNA PLC                     
681,Childrens & Education Services,Statutory & Regulatory Duties,Senior Mngt & Support Services,K01005,Employees                     ,Direct Employee Expenses      ,AA17,Agency Staff & Casual Paymts            ,"4,700.00",31/03/2015,R,REDACTED
682,Childrens & Education Services,Statutory & Regulatory Duties,Senior Mngt & Support Services,K01005,Employees                     ,Direct Employee Expenses      ,AA17,Agency Staff & Casual Paymts            ,"9,200.00",30/04/2015,R,REDACTED
683,Childrens & Education Services,Statutory & Regulatory Duties,Senior Mngt & Support Services,K01005,Employees                     ,Indirect Employee Expenses    ,AB02,Recruitment Adverts                     ,"1,333.33",01/05/2015,R,HAYS RECRUITING EXPERTS       
684,Childrens & Education Services,Statutory & Regulatory Duties,Senior Mngt & Support Services,K01005,Employees                     ,Indirect Employee Expenses    ,AB02,Recruitment Adverts                     ,"1,750.00",01/05/2015,R,HAYS RECRUITING EXPERTS       
685,Childrens & Education Services,Statutory & Regulatory Duties,Senior Mngt & Support Services,K01005,Employees                     ,Indirect Employee Expenses    ,AB02,Recruitment Adverts                     ,"3,083.33",01/05/2015,R,HAYS RECRUITING EXPERTS       
686,Childrens & Education Services,Statutory & Regulatory Duties,Senior Mngt & Support Services,K01005,Employees                     ,Indirect Employee Expenses    ,AB02,Recruitment Adverts                     ,"3,083.33",01/05/2015,R,HAYS RECRUITING EXPERTS       
687,Childrens & Education Services,Statutory & Regulatory Duties,Senior Mngt & Support Services,K01005,Supplies & Services           ,Services                      ,DF11,Counsel's Fees                          ,"5,240.00",21/05/2015,R,REDACTED     
688,Childrens & Education Services,Statutory & Regulatory Duties,Senior Mngt & Support Services,K01005,Supplies & Services           ,Services                      ,DF11,Counsel's Fees                          ,520,27/04/2015,R,REDACTED     
689,Childrens & Education Services,Statutory & Regulatory Duties,Senior Mngt & Support Services,K01005,Supplies & Services           ,Services                      ,DF11,Counsel's Fees                          ,"1,920.00",14/04/2015,R,REDACTED     
690,Childrens & Education Services,Statutory & Regulatory Duties,Senior Mngt & Support Services,K01005,Supplies & Services           ,Services                      ,DF11,Counsel's Fees                          ,"1,920.00",14/04/2015,R,REDACTED     
691,Childrens & Education Services,Statutory & Regulatory Duties,Senior Mngt & Support Services,K01005,Supplies & Services           ,Services                      ,DF14,Doctors and Other Fees                  ,614.2,06/05/2015,R,N&S CONSULTANTS LTD           
692,Childrens & Education Services,Statutory & Regulatory Duties,Central Administration,K01008,Supplies & Services           ,Grants and Subscriptions      ,DJ04,Subscriptions                           ,"5,800.00",20/05/2015,R,LONDON COUNCILS               
693,Childrens & Education Services,Support for Cult. & Related Ed,Merton Music Foundation,K01090,Supplies & Services           ,Grants and Subscriptions      ,DJ01,Grants                                  ,"46,000.00",30/03/2015,R,MERTON MUSIC FOUNDATION       
694,Childrens & Education Services,Statutory & Regulatory Duties,Schools IT Support,K02008,Supplies & Services           ,Comms and Computing           ,DG50,Other IT Expenditure                    ,"1,249.00",14/05/2015,R,ATOMWIDE LTD                  
695,Childrens & Education Services,Statutory & Regulatory Duties,Schools IT Support,K02008,Supplies & Services           ,Comms and Computing           ,DG50,Other IT Expenditure                    ,875,14/05/2015,R,ATOMWIDE LTD                  
696,Childrens & Education Services,Statutory & Regulatory Duties,Schools IT Support,K02008,Supplies & Services           ,Comms and Computing           ,DG50,Other IT Expenditure                    ,"1,025.00",24/04/2015,R,ATOMWIDE LTD                  
697,Childrens & Education Services,Statutory & Regulatory Duties,Schools IT Support,K02008,Supplies & Services           ,Comms and Computing           ,DG50,Other IT Expenditure                    ,725,24/04/2015,R,ATOMWIDE LTD                  
698,Childrens & Education Services,Statutory & Regulatory Duties,Schools IT Support,K02008,Supplies & Services           ,Comms and Computing           ,DG50,Other IT Expenditure                    ,725,24/04/2015,R,ATOMWIDE LTD                  
699,Childrens & Education Services,Statutory & Regulatory Duties,Schools IT Support,K02008,Supplies & Services           ,Comms and Computing           ,DG50,Other IT Expenditure                    ,"1,025.00",24/04/2015,R,ATOMWIDE LTD                  
700,Childrens & Education Services,Statutory & Regulatory Duties,Schools IT Support,K02008,Supplies & Services           ,Comms and Computing           ,DG50,Other IT Expenditure                    ,575,24/04/2015,R,ATOMWIDE LTD                  
701,Childrens & Education Services,Statutory & Regulatory Duties,Schools IT Support,K02008,Supplies & Services           ,Comms and Computing           ,DG50,Other IT Expenditure                    ,800,12/05/2015,R,ATOMWIDE LTD                  
702,Childrens & Education Services,Statutory & Regulatory Duties,Schools IT Support,K02008,Supplies & Services           ,Comms and Computing           ,DG50,Other IT Expenditure                    ,"1,025.00",24/04/2015,R,ATOMWIDE LTD                  
703,Childrens & Education Services,Statutory & Regulatory Duties,Schools IT Support,K02008,Supplies & Services           ,Comms and Computing           ,DG50,Other IT Expenditure                    ,"2,100.00",12/05/2015,R,ATOMWIDE LTD                  
704,Childrens & Education Services,Statutory & Regulatory Duties,Schools IT Support,K02008,Supplies & Services           ,Comms and Computing           ,DG50,Other IT Expenditure                    ,500,24/04/2015,R,ATOMWIDE LTD                  
705,Childrens & Education Services,Statutory & Regulatory Duties,Schools IT Support,K02008,Supplies & Services           ,Comms and Computing           ,DG50,Other IT Expenditure                    ,"1,249.00",24/02/2015,R,ATOMWIDE LTD                  
706,Childrens & Education Services,Statutory & Regulatory Duties,Schools IT Support,K02008,Supplies & Services           ,Comms and Computing           ,DG50,Other IT Expenditure                    ,"1,025.00",24/04/2015,R,ATOMWIDE LTD                  
707,Childrens & Education Services,Statutory & Regulatory Duties,Schools IT Support,K02008,Supplies & Services           ,Comms and Computing           ,DG50,Other IT Expenditure                    ,"1,025.00",24/04/2015,R,ATOMWIDE LTD                  
708,Childrens & Education Services,Asset Management,PFI Unitary Charges,K03023,Third Party Payments          ,Private Contractors           ,EH02,Miscellaneous Hired Services            ,"1,028.15",14/04/2015,R,NEWSCHOOLS (MERTON) LIMITED   
709,Childrens & Education Services,Asset Management,PFI Unitary Charges,K03023,Third Party Payments          ,Private Contractors           ,EH02,Miscellaneous Hired Services            ,"47,965.71",09/04/2015,R,NEWSCHOOLS (MERTON) LIMITED   
710,Childrens & Education Services,Asset Management,PFI Unitary Charges,K03023,Third Party Payments          ,Private Contractors           ,EH02,Miscellaneous Hired Services            ,"20,255.76",14/04/2015,R,NEWSCHOOLS (MERTON) LIMITED   
711,Childrens & Education Services,Asset Management,PFI Unitary Charges,K03023,Third Party Payments          ,Private Contractors           ,EH02,Miscellaneous Hired Services            ,656.66,09/04/2015,R,NEWSCHOOLS (MERTON) LIMITED   
712,Childrens & Education Services,Asset Management,PFI Unitary Charges,K03023,Third Party Payments          ,Private Contractors           ,EH02,Miscellaneous Hired Services            ,"1,111.46",09/04/2015,R,NEWSCHOOLS (MERTON) LIMITED   
713,Childrens & Education Services,Asset Management,PFI Unitary Charges,K03023,Third Party Payments          ,Private Contractors           ,EH02,Miscellaneous Hired Services            ,"-52,685.89",13/05/2015,R,NEWSCHOOLS (MERTON) LIMITED   
714,Childrens & Education Services,Asset Management,PFI Unitary Charges,K03023,Third Party Payments          ,Private Contractors           ,EH02,Miscellaneous Hired Services            ,"1,256.18",09/04/2015,R,NEWSCHOOLS (MERTON) LIMITED   
715,Childrens & Education Services,Asset Management,PFI Unitary Charges,K03023,Third Party Payments          ,Private Contractors           ,EH02,Miscellaneous Hired Services            ,"18,273.79",30/04/2015,R,NEWSCHOOLS (MERTON) LIMITED   
716,Childrens & Education Services,Asset Management,PFI Unitary Charges,K03023,Third Party Payments          ,Private Contractors           ,EH02,Miscellaneous Hired Services            ,590.6,09/04/2015,R,NEWSCHOOLS (MERTON) LIMITED   
717,Childrens & Education Services,Statutory & Regulatory Duties,Head of Special Educatn Needs,K04017,Supplies & Services           ,Services                      ,DF09,Miscellaneous Fees                      ,750,08/05/2015,R,GLOBAL MEDIATION LTD          
718,Childrens & Education Services,Statutory & Regulatory Duties,Head of Special Educatn Needs,K04017,Supplies & Services           ,Services                      ,DF09,Miscellaneous Fees                      ,"1,320.00",07/05/2015,R,GLOBAL MEDIATION LTD          
719,Childrens & Education Services,Education Psychology Service,Education Psychology.,K04018,Employees                     ,Direct Employee Expenses      ,AA17,Agency Staff & Casual Paymts            ,"2,000.00",07/05/2015,R,REDACTED     
720,Childrens & Education Services,Education Psychology Service,Education Psychology.,K04018,Employees                     ,Direct Employee Expenses      ,AA17,Agency Staff & Casual Paymts            ,"1,200.00",14/05/2015,R,REDACTED     
721,Childrens & Education Services,Education Psychology Service,Education Psychology.,K04018,Employees                     ,Direct Employee Expenses      ,AA17,Agency Staff & Casual Paymts            ,"5,600.00",22/05/2015,R,REDACTED     
722,Childrens & Education Services,Education Psychology Service,Education Psychology.,K04018,Employees                     ,Direct Employee Expenses      ,AA17,Agency Staff & Casual Paymts            ,"1,000.00",13/05/2015,R,REDACTED
723,Childrens & Education Services,Education Psychology Service,Education Psychology.,K04018,Employees                     ,Direct Employee Expenses      ,AA17,Agency Staff & Casual Paymts            ,"1,200.00",25/04/2015,R,REDACTED     
724,Childrens & Education Services,Education Psychology Service,Education Psychology.,K04018,Employees                     ,Direct Employee Expenses      ,AA17,Agency Staff & Casual Paymts            ,"1,200.00",17/04/2015,R,REDACTED     
725,Childrens & Education Services,Education Psychology Service,Education Psychology.,K04018,Employees                     ,Direct Employee Expenses      ,AA17,Agency Staff & Casual Paymts            ,"1,200.00",21/05/2015,R,REDACTED     
726,Childrens & Education Services,Education Psychology Service,Education Psychology.,K04018,Supplies & Services           ,Equip Furniture/Materials     ,DA09,Equip-Purchases                         ,"1,521.04",09/02/2015,R,PYRAMID EDUCAT CONSULT. UK LTD
727,Childrens & Education Services,Support for SEN Pupils,Statementing-Transport,K04023,Employees                     ,Direct Employee Expenses      ,AA17,Agency Staff & Casual Paymts            ,"1,187.50",19/05/2015,R,REDACTED
728,Childrens & Education Services,Support for SEN Pupils,Statementing-Transport,K04023,Transport Related Expenditure ,Public Transport              ,CD50,Home Sch/Coll Trans(Trav Exps)          ,540,04/05/2015,R,REDACTED     
729,Childrens & Education Services,Support for SEN Pupils,Statementing-Transport,K04023,Transport Related Expenditure ,Public Transport              ,CD50,Home Sch/Coll Trans(Trav Exps)          ,880,06/05/2015,R,LONDON BOROUGH OF CROYDON     
730,Childrens & Education Services,Support for SEN Pupils,Statementing-Transport,K04023,Transport Related Expenditure ,Public Transport              ,CD50,Home Sch/Coll Trans(Trav Exps)          ,500,04/05/2015,R,REDACTED     
731,Childrens & Education Services,Support for SEN Pupils,Statementing-Transport,K04023,Transport Related Expenditure ,Public Transport              ,CD50,Home Sch/Coll Trans(Trav Exps)          ,516.2,28/04/2015,R,REDACTED     
732,Childrens & Education Services,Nursery schools,GSSG Central Administration,K05400,Supplies & Services           ,Comms and Computing           ,DG14,Telephones - Mobile                     ,796,12/05/2015,R,EVERYTHING EVERYWHERE         
733,Childrens & Education Services,GENERATED ACCOUNT,Mitcham MAT (Premises),K05412,Premises Related Expenditure  ,RepairsAlterations&MtceOfBldgs,BA05,DDM - Electrical                        ,630,20/04/2015,R,ACCESS ASSURED                
734,Childrens & Education Services,GENERATED ACCOUNT,Mitcham MAT (Premises),K05412,Premises Related Expenditure  ,Cleaning and Domestic Supplies,BH06,Clinical Waste                          ,780,14/04/2014,R,PHS GROUP PLC                 
735,Childrens & Education Services,GENERATED ACCOUNT,Wimbledon MAT,K05414,Supplies & Services           ,Equip Furniture/Materials     ,DA09,Equip-Purchases                         ,730.03,23/02/2015,R,GLS EDUCATIONAL SUPPLIES LTD  
736,Childrens & Education Services,GENERATED ACCOUNT,Wimbledon MAT,K05414,Supplies & Services           ,Services                      ,DF30,Activities Programme                    ,900,19/05/2015,R,PRE SCHOOL LEARNING ALLIANCE  
737,Childrens & Education Services,Nursery schools,Lavender CC Non Childcare,K05415,Supplies & Services           ,Services                      ,DF30,Activities Programme                    ,720,04/03/2015,R,PRE SCHOOL LEARNING ALLIANCE  
738,Childrens & Education Services,Nursery schools,Lavender CC Non Childcare,K05415,Supplies & Services           ,Services                      ,DF30,Activities Programme                    ,"2,160.00",19/05/2015,R,PRE SCHOOL LEARNING ALLIANCE  
739,Childrens & Education Services,Nursery schools,E.Years-Intergenerational Cntr,K05416,Premises Related Expenditure  ,RepairsAlterations&MtceOfBldgs,BA01,DDM - General Building                  ,765,23/04/2015,R,SUNA SUPPLIES LTD.            
740,Childrens & Education Services,Nursery schools,E.Years-Intergenerational Cntr,K05416,Premises Related Expenditure  ,RepairsAlterations&MtceOfBldgs,BA29,Build Maint Mgt Fees                    ,"1,200.00",08/05/2015,R,HARRIS PRIMARY ACADEMY MERTON 
741,Childrens & Education Services,Nursery schools,E.Years-Intergenerational Cntr,K05416,Premises Related Expenditure  ,Energy Costs                  ,BB02,Electricity                             ,520.6,30/04/2015,R,SCOTTISHPOWER                 
742,Childrens & Education Services,Nursery schools,EY-Support Separating Parents,K05417,Supplies & Services           ,Services                      ,DF03,Consultants                             ,"2,234.40",02/05/2015,R,REDACTED     
743,Childrens & Education Services,Oth U5s Provn Not Prim or Spec,EY - Adventure Playground,K05422,Premises Related Expenditure  ,Energy Costs                  ,BB02,Electricity                             ,520.61,30/04/2015,R,SCOTTISHPOWER                 
744,Childrens & Education Services,Vocational - Adult Education,AE-Neighbourhood Learning,K06043,Supplies & Services           ,Services                      ,DF30,Activities Programme                    ,862.5,03/12/2014,R,ST MARKS FAMILY CENTRE        
745,Childrens & Education Services,Vocational - Adult Education,AE-Neighbourhood Learning,K06043,Supplies & Services           ,Services                      ,DF30,Activities Programme                    ,682.35,28/04/2015,R,SS PETER & PAUL RC PRIMARY SCH
746,Childrens & Education Services,Vocational - Adult Education,MAE-Bldgs Repairs & Maintenanc,K06048,Premises Related Expenditure  ,Water Services                ,BE01,Use of Water (Metered)                  ,"2,987.54",20/04/2015,R,THAMES WATER UTILITIES LTD.   
747,Childrens & Education Services,Vocational - Adult Education,AE-Adult Education Main,K06049,Premises Related Expenditure  ,Energy Costs                  ,BB02,Electricity                             ,"1,116.55",01/05/2015,R,SCOTTISHPOWER                 
748,Childrens & Education Services,Vocational - Adult Education,AE-Adult Education Main,K06049,Premises Related Expenditure  ,Cleaning and Domestic Supplies,BH01,Cleaning Materials                      ,519.54,22/04/2015,R,THAMESMEAD BUSINESS SER LTD   
749,Childrens & Education Services,Vocational - Adult Education,AE-Adult Education Main,K06049,Premises Related Expenditure  ,Cleaning and Domestic Supplies,BH03,Cleaning Services                       ,"2,828.41",30/04/2015,R,JULIUS RUTHERFOORD & CO LTD   
750,Childrens & Education Services,Vocational - Adult Education,AE-Adult Education Main,K06049,Supplies & Services           ,Services                      ,DF02,Misc Advertising/Publicity              ,"8,145.00",29/04/2015,R,HOTCOURSES                    
751,Childrens & Education Services,Vocational - Adult Education,AE-Adult Education Main,K06049,Supplies & Services           ,Comms and Computing           ,DG02,Software Licences                       ,"1,125.00",29/04/2015,R,PLUS BUSINESS SYSTEMS LIMITED 
752,Childrens & Education Services,Vocational - Adult Education,AE-Adult Education Main,K06049,Supplies & Services           ,Comms and Computing           ,DG02,Software Licences                       ,"1,350.00",29/04/2015,R,PLUS BUSINESS SYSTEMS LIMITED 
753,Childrens & Education Services,Vocational - Adult Education,AE-Adult Education Main,K06049,Supplies & Services           ,Comms and Computing           ,DG02,Software Licences                       ,"5,312.50",29/04/2015,R,PLUS BUSINESS SYSTEMS LIMITED 
754,Childrens & Education Services,Vocational - Adult Education,AE-Adult Education Main,K06049,Supplies & Services           ,Grants and Subscriptions      ,DJ04,Subscriptions                           ,"1,000.00",05/05/2015,R,TCMD LTD                      
755,Childrens & Education Services,Vocational - Adult Education,AE-Learner Support Fund-Access,K06050,Supplies & Services           ,Services                      ,DF09,Miscellaneous Fees                      ,"1,080.00",30/04/2015,R,REDACTED     
756,Childrens & Education Services,Youth Centres (Residential),Youth Service,K06053,Supplies & Services           ,Expenses                      ,DH12,Young Peoples Expenses                  ,900,28/04/2015,R,YOUTH FUN DAYS                
757,Childrens & Education Services,Youth Centres (Residential),Duke of Edinburgh Awrds,K06055,Supplies & Services           ,Expenses                      ,DH12,Young Peoples Expenses                  ,562.5,01/05/2015,R,ROUGH EDGE                    
758,Childrens & Education Services,Youth Centres (Residential),Pollards Hll Yth Ctre,K06065,Supplies & Services           ,Expenses                      ,DH12,Young Peoples Expenses                  ,"2,037.92",28/04/2015,R,YOUTH FUN DAYS                
759,Childrens & Education Services,Youth Centres (Residential),PAYP Moving Forward in Life,K06092,Employees                     ,Direct Employee Expenses      ,AA17,Agency Staff & Casual Payments          ,707.5,27/04/2015,R,REDACTED     
760,Childrens & Education Services,Youth Centres (Residential),PAYP Moving Forward in Life,K06092,Premises Related Expenditure  ,Rents                         ,BC01,Miscellaneous Rent                      ,"6,750.00",03/03/2015,R,GOLDPLAZA (MITCHAM) LIMITED   
761,Childrens & Education Services,Asset Management,S106 Bid,K08077,Premises Related Expenditure  ,RepairsAlterations&MtceOfBldgs,BA06,Repairs & Maintenance General           ,"8,000.00",08/05/2015,R,EXTRASPACE (NI) LTD           
762,Childrens & Education Services,Asset Management,S106 Bid,K08077,Premises Related Expenditure  ,RepairsAlterations&MtceOfBldgs,BA79,Security of Premises                    ,"1,242.90",15/05/2015,R,SIGHT & SOUND                 
763,Childrens & Education Services,Asset Management,S106 Bid,K08077,Premises Related Expenditure  ,Rents                         ,BC01,Miscellaneous Rents                     ,"3,714.23",05/05/2015,R,BOSHIRE LTD                   
764,Childrens & Education Services,Asset Management,S106 Bid,K08077,Supplies & Services           ,Services                      ,DF09,Miscellaneous Fees                      ,"3,820.00",19/02/2015,R,JOHN COBB CONSULTING LTD      
765,Childrens & Education Services,Asset Management,Centre Commissioned Servs,K08078,Supplies & Services           ,Grants and Subscriptions      ,DJ01,Grants                                  ,"2,850.00",18/05/2015,R,CARERS SUPPORT MERTON         
766,Childrens & Education Services,Asset Management,Centre Commissioned Servs,K08078,Supplies & Services           ,Grants and Subscriptions      ,DJ01,Grants                                  ,"9,875.00",22/04/2015,R,MERTON VOLUNTARY SERV COUNCIL 
767,Childrens & Education Services,Asset Management,Centre Commissioned Servs,K08078,Supplies & Services           ,Grants and Subscriptions      ,DJ01,Grants                                  ,"15,000.00",11/05/2015,R,GRENFELL HOUSING ASSOCIATION  
768,Childrens & Education Services,Asset Management,Centre Commissioned Servs,K08078,Supplies & Services           ,Grants and Subscriptions      ,DJ01,Grants                                  ,"6,330.00",22/04/2015,R,MERTON VOLUNTARY SERV COUNCIL 
769,Childrens & Education Services,Asset Management,Centre Commissioned Servs,K08078,Supplies & Services           ,Grants and Subscriptions      ,DJ01,Grants                                  ,"6,101.00",22/04/2015,R,JIGSAW4U                      
770,Childrens & Education Services,Asset Management,Centre Commissioned Servs,K08078,Supplies & Services           ,Grants and Subscriptions      ,DJ01,Grants                                  ,"18,750.00",18/05/2015,R,CARERS SUPPORT MERTON         
771,Childrens & Education Services,Asset Management,Centre Commissioned Servs,K08078,Supplies & Services           ,Grants and Subscriptions      ,DJ01,Grants                                  ,"6,093.75",20/04/2015,R,PRE SCHOOL LEARNING ALLIANCE  
772,Childrens & Education Services,Asset Management,Centre Commissioned Servs,K08078,Supplies & Services           ,Grants and Subscriptions      ,DJ01,Grants                                  ,"7,312.50",28/04/2015,R,COMMONSIDE COMMUNITY DEV TRUST
773,Childrens & Education Services,Asset Management,Centre Commissioned Servs,K08078,Supplies & Services           ,Grants and Subscriptions      ,DJ01,Grants                                  ,"7,321.50",22/04/2015,R,JIGSAW4U                      
774,Childrens & Education Services,Asset Management,Centre Commissioned Servs,K08078,Supplies & Services           ,Grants and Subscriptions      ,DJ01,Grants                                  ,"24,056.00",20/04/2015,R,HOME-START MERTON             
775,Childrens & Education Services,Asset Management,Centre Commissioned Servs,K08078,Supplies & Services           ,Grants and Subscriptions      ,DJ01,Grants                                  ,"4,500.00",18/05/2015,R,CARERS SUPPORT MERTON         
776,Childrens & Education Services,Asset Management,Centre Commissioned Servs,K08078,Supplies & Services           ,Grants and Subscriptions      ,DJ01,Grants                                  ,"2,500.00",18/05/2015,R,CARERS SUPPORT MERTON         
777,Childrens & Education Services,Asset Management,Centre Commissioned Servs,K08078,Supplies & Services           ,Grants and Subscriptions      ,DJ01,Grants                                  ,"2,329.25",18/05/2015,R,CARERS SUPPORT MERTON         
778,Childrens & Education Services,Asset Management,Stouthall,K09082,Premises Related Expenditure  ,Ground Maintenance Costs      ,BL03,Maintenance of Grounds                  ,"1,000.00",30/04/2015,R,A Y LANDSCAPES LTD            
779,Childrens & Education Services,Sch Meals & Milk-Not Delegated,Free School Meals,K90002,Premises Related Expenditure  ,RepairsAlterations&MtceOfBldgs,BA01,DDM - General Building                  ,698,24/04/2015,R,DF20 LTD                      
780,Childrens & Education Services,Pupil Referral Units,Hospital Tuition,K90008,Third Party Payments          ,Other Local Authorities       ,EB54,Hospital Tuition                        ,"3,300.00",02/04/2015,R,OAKVIEW SCHOOL                
781,Childrens & Education Services,Facilitating School Improvemnt,Virtual Schools - Home Tutors,K90015,Employees                     ,Direct Employee Expenses      ,AA17,Agency Staff & Casual Paymts            ,552.25,30/04/2015,R,REDACTED
782,Childrens & Education Services,Facilitating School Improvemnt,Virtual Schools - PEA's,K90016,Supplies & Services           ,Expenses                      ,DH12,Young Peoples Expenses                  ,"4,650.00",23/04/2015,R,FAIRWAY SCHL & CHILDREN'S CTR 
783,Childrens & Education Services,Support for SEN Pupils,Non-Delegated Statements,K90024,Employees                     ,Direct Employee Expenses      ,AA17,Agency Staff & Casual Paymts            ,"1,400.00",01/05/2015,R,REDACTED     
784,Childrens & Education Services,Support for SEN Pupils,Non-Delegated Statements,K90024,Supplies & Services           ,Services                      ,DF09,Miscellaneous Fees                      ,660,12/05/2015,R,COLLINGHAM COLLEGE            
785,Childrens & Education Services,Support for SEN Pupils,Non-Delegated Statements,K90024,Supplies & Services           ,Services                      ,DF09,Miscellaneous Fees                      ,"5,512.00",15/04/2015,R,CLIFTON HILL SCHOOL           
786,Childrens & Education Services,Support for SEN Pupils,Non-Delegated Statements,K90024,Supplies & Services           ,Services                      ,DF09,Miscellaneous Fees                      ,"1,360.00",18/05/2015,R,RIVER COUNSELLING AGENCY      
787,Childrens & Education Services,Support for SEN Pupils,Non-Delegated Statements,K90024,Supplies & Services           ,Services                      ,DF09,Miscellaneous Fees                      ,"1,540.00",05/05/2015,R,RIVER COUNSELLING AGENCY      
788,Childrens & Education Services,Support for SEN Pupils,Non-Delegated Statements,K90024,Supplies & Services           ,Services                      ,DF09,Miscellaneous Fees                      ,750,16/04/2015,R,IFIELD COMMUNITY COLLEGE      
789,Childrens & Education Services,Support for SEN Pupils,Non-Delegated Statements,K90024,Supplies & Services           ,Services                      ,DF09,Miscellaneous Fees                      ,"1,680.00",27/04/2015,R,RIVER COUNSELLING AGENCY      
790,Childrens & Education Services,Support for SEN Pupils,Non-Delegated Statements,K90024,Supplies & Services           ,Services                      ,DF09,Miscellaneous Fees                      ,539.88,30/04/2015,R,DEEPSTORE LTD                 
791,Childrens & Education Services,Support for SEN Pupils,Non-Delegated Statements,K90024,Supplies & Services           ,Services                      ,DF09,Miscellaneous Fees                      ,940,11/05/2015,R,RIVER COUNSELLING AGENCY      
792,Childrens & Education Services,Support for SEN Pupils,Non-Delegated Statements,K90024,Third Party Payments          ,Other Local Authorities       ,EB48,OLA PAYMENTS-STATEMENTS                 ,"1,926.64",14/05/2015,R,BROADWATER PRIMARY SCH        
793,Childrens & Education Services,Support for SEN Pupils,Non-Delegated Statements,K90024,Third Party Payments          ,Other Local Authorities       ,EB48,OLA PAYMENTS-STATEMENTS                 ,"2,136.60",14/05/2015,R,CATERHAM HIGH SCHOOL          
794,Childrens & Education Services,Support for SEN Pupils,Non-Delegated Statements,K90024,Third Party Payments          ,Other Local Authorities       ,EB50,OLA-Payments - Day Schools              ,"263,583.00",16/04/2015,R,ROYAL BOR'GH KINGSTON U THAMES
795,Childrens & Education Services,Support for SEN Pupils,Non-Delegated Statements,K90024,Third Party Payments          ,Other Local Authorities       ,EB50,OLA-Payments - Day Schools              ,"3,849.99",20/05/2015,R,WANDLE VALLEY SCHOOL          
796,Childrens & Education Services,Support for SEN Pupils,Non-Delegated Statements,K90024,Third Party Payments          ,Other Local Authorities       ,EB50,OLA-Payments - Day Schools              ,"23,416.00",26/05/2015,R,BEDELSFORD SCHOOL             
797,Childrens & Education Services,Support for SEN Pupils,Non-Delegated Statements,K90024,Third Party Payments          ,Other Local Authorities       ,EB50,OLA-Payments - Day Schools              ,"23,416.00",26/05/2015,R,BEDELSFORD SCHOOL             
798,Childrens & Education Services,Support for SEN Pupils,Non-Delegated Statements,K90024,Third Party Payments          ,Other Local Authorities       ,EB50,OLA-Payments - Day Schools              ,"5,863.94",01/05/2015,R,THE LIVITY SCHOOL             
799,Childrens & Education Services,Support for SEN Pupils,Non-Delegated Statements,K90024,Third Party Payments          ,Other Establishments          ,EG01,Alternative SEN Provision               ,542.5,30/04/2015,R,HA TUTORS LTD                 
800,Childrens & Education Services,Support for SEN Pupils,Non-Delegated Statements,K90024,Third Party Payments          ,Other Establishments          ,EG01,Alternative SEN Provision               ,850,30/04/2015,R,HA TUTORS LTD                 
801,Childrens & Education Services,Support for SEN Pupils,Non-Delegated Statements,K90024,Third Party Payments          ,Other Establishments          ,EG01,Alternative SEN Provision               ,"1,759.00",30/04/2015,R,REDACTED     
802,Childrens & Education Services,Support for SEN Pupils,Non-Delegated Statements,K90024,Third Party Payments          ,Other Establishments          ,EG01,Alternative SEN Provision               ,"1,090.00",30/04/2015,R,FLEET EDUCATION SERVICES LTD  
803,Childrens & Education Services,Support for SEN Pupils,Non-Delegated Statements,K90024,Third Party Payments          ,Other Establishments          ,EG01,Alternative SEN Provision               ,"1,200.00",30/04/2015,R,FLEET EDUCATION SERVICES LTD  
804,Childrens & Education Services,Support for SEN Pupils,Non-Delegated Statements,K90024,Third Party Payments          ,Other Establishments          ,EG01,Alternative SEN Provision               ,"1,137.50",30/04/2015,R,HA TUTORS LTD                 
805,Childrens & Education Services,Support for SEN Pupils,Non-Delegated Statements,K90024,Third Party Payments          ,Other Establishments          ,EG01,Alternative SEN Provision               ,"3,088.75",30/04/2015,R,HA TUTORS LTD                 
806,Childrens & Education Services,Support for SEN Pupils,Non-Delegated Statements,K90024,Third Party Payments          ,Other Establishments          ,EG50,Ind Day Schs Payments                   ,"13,098.00",17/04/2015,R,THE CHILDRENS TRUST           
807,Childrens & Education Services,Support for SEN Pupils,Non-Delegated Statements,K90024,Third Party Payments          ,Other Establishments          ,EG50,Ind Day Schs Payments                   ,"25,535.00",01/04/2015,R,ST JOSEPHS SCHOOL             
808,Childrens & Education Services,Support for SEN Pupils,Non-Delegated Statements,K90024,Third Party Payments          ,Other Establishments          ,EG50,Ind Day Schs Payments                   ,"10,315.77",15/05/2015,R,FACE YOUTH                    
809,Childrens & Education Services,Support for SEN Pupils,Non-Delegated Statements,K90024,Third Party Payments          ,Other Establishments          ,EG50,Ind Day Schs Payments                   ,"6,692.00",27/04/2015,R,THE LINK PRIMARY DAY SCHOOL   
810,Childrens & Education Services,Support for SEN Pupils,Non-Delegated Statements,K90024,Third Party Payments          ,Other Establishments          ,EG50,Ind Day Schs Payments                   ,"6,692.00",27/04/2015,R,THE LINK PRIMARY DAY SCHOOL   
811,Childrens & Education Services,Support for SEN Pupils,Non-Delegated Statements,K90024,Third Party Payments          ,Other Establishments          ,EG50,Ind Day Schs Payments                   ,"5,666.00",20/04/2015,R,PARAYHOUSE SCHOOL             
812,Childrens & Education Services,Support for SEN Pupils,Non-Delegated Statements,K90024,Third Party Payments          ,Other Establishments          ,EG50,Ind Day Schs Payments                   ,"47,810.00",31/03/2015,R,PAPILLON HOUSE SCHOOL         
813,Childrens & Education Services,Support for SEN Pupils,Non-Delegated Statements,K90024,Third Party Payments          ,Other Establishments          ,EG50,Ind Day Schs Payments                   ,"13,684.19",14/04/2015,R,FACE YOUTH                    
814,Childrens & Education Services,Support for SEN Pupils,Non-Delegated Statements,K90024,Third Party Payments          ,Other Establishments          ,EG50,Ind Day Schs Payments                   ,"13,684.19",14/04/2015,R,FACE YOUTH                    
815,Childrens & Education Services,Behavioural Support,Sensory Team,K90026,Supplies & Services           ,Equip Furniture/Materials     ,DA09,Equip-Purchases                         ,840,29/04/2015,R,PHONAK UK                     
816,Childrens & Education Services,Admissions & Planning Sch Prov,Retained Schools Budgets,K90030,Supplies & Services           ,Prntng Stnry Gen Off Exp      ,DE22,Marketing                               ,"8,500.00",30/04/2015,R,GREBOT DONNELLY  ASSOCIAT. LTD
817,Childrens & Education Services,Admissions & Planning Sch Prov,Retained Schools Budgets,K90030,Supplies & Services           ,Prntng Stnry Gen Off Exp      ,DE22,Marketing                               ,"2,645.00",30/04/2015,R,GREBOT DONNELLY  ASSOCIAT. LTD
818,Childrens & Education Services,Admissions & Planning Sch Prov,Retained Schools Budgets,K90030,Supplies & Services           ,Expenses                      ,DH17,Advances                                ,500,01/04/2015,R,SCHOOLS FUNDING NETWORK       
819,Childrens & Education Services,Admissions & Planning Sch Prov,Retained Schools Budgets,K90030,Supplies & Services           ,Expenses                      ,DH17,Advances                                ,"2,500.00",01/04/2015,R,SCHOOLS FUNDING NETWORK       
820,Childrens & Education Services,Del. Ind Secondary Sch Budgets,Schools Delegated Budget,K90032,Supplies & Services           ,Services                      ,DF09,Miscellaneous Fees                      ,"9,600.00",01/05/2015,R,DEPARTMENT FOR EDUCATION      
821,Childrens & Education Services,Facilitating School Improvemnt,SSQ CORE OFFER (DSG),K90040,Supplies & Services           ,Expenses                      ,DH02,Conferences                             ,"15,000.00",13/05/2015,R,LONDON BOROUGH OF SUTTON      
822,Childrens & Education Services,Nursery schools,EARLY YEARS NURSERY GRANTS,K90042,Supplies & Services           ,Grants and Subscriptions      ,DJ57,Nursery Grant Payment-4yr olds          ,777.6,06/05/2015,R,REDACTED     
823,Childrens & Education Services,Nursery schools,EARLY YEARS NURSERY GRANTS,K90042,Supplies & Services           ,Grants and Subscriptions      ,DJ57,Nursery Grant Payment-4yr olds          ,"1,143.36",06/05/2015,R,SACRED HEART FUN CLUB         
824,Childrens & Education Services,Nursery schools,EARLY YEARS NURSERY GRANTS,K90042,Supplies & Services           ,Grants and Subscriptions      ,DJ57,Nursery Grant Payment-4yr olds          ,777.6,19/05/2015,R,REDACTED     
825,Childrens & Education Services,Oth U5s Provn Not Prim or Spec,DAVID NICHOLAS CRECHE,K90045,Supplies & Services           ,Equip Furniture/Materials     ,DA70,Milk and Meals                          ,577.2,14/04/2015,R,ISS COLLECTIONS LTD           
826,Childrens & Education Services,Nursery schools,EARLY YEARS FUNDING,K90046,Premises Related Expenditure  ,RepairsAlterations&MtceOfBldgs,BA79,Security of Premises                    ,"2,421.90",01/05/2015,R,SIGHT & SOUND                 
827,Childrens & Education Services,Support for SEN Pupils,ART SEN Residential (DSG),K90050,Third Party Payments          ,Other Establishments          ,EG51,Ind Resid Schs Payments                 ,"25,163.19",30/03/2015,R,THE MULBERRY BUSH ORGANISATION
828,Childrens & Education Services,Support for SEN Pupils,ART SEN Residential (DSG),K90050,Third Party Payments          ,Other Establishments          ,EG51,Ind Resid Schs Payments                 ,"14,945.00",20/04/2015,R,SEAFIELDS LTD                 
829,Childrens & Education Services,Nursery schools,2Year Old Offer                         ,K90051,Supplies & Services           ,Grants and Subscriptions      ,DJ58,Nursery Grant Payment-3yr olds          ,"1,555.20",05/05/2015,R,REDACTED     
830,Childrens & Education Services,Nursery schools,2Year Old Offer                         ,K90051,Supplies & Services           ,Grants and Subscriptions      ,DJ58,Nursery Grant Payment-3yr olds          ,777.6,06/05/2015,R,REDACTED     
831,Childrens & Education Services,Support for SEN Pupils,Non-Maintained Post 16 SEN              ,K90052,Third Party Payments          ,Other Establishments          ,EG53,Ind Specialist Providers                ,"13,631.22",30/04/2015,R,WESC FOUNDATION               
832,Childrens & Education Services,Support for SEN Pupils,Non-Maintained Post 16 SEN              ,K90052,Third Party Payments          ,Other Establishments          ,EG53,Ind Specialist Providers                ,"18,837.00",13/04/2015,R,CAMBIAN WHINFELL SCHOOL       
833,Childrens & Education Services,Support for SEN Pupils,Non-Maintained Post 16 SEN              ,K90052,Third Party Payments          ,Other Establishments          ,EG53,Ind Specialist Providers                ,"105,987.00",20/04/2015,R,NASH COLLEGE                  
834,Childrens & Education Services,Support for SEN Pupils,Non-Maintained Post 16 SEN              ,K90052,Third Party Payments          ,Other Establishments          ,EG54,FE Colleges                             ,"5,691.00",30/04/2015,R,ESHER COLLEGE                 
835,Cultural Env Reg&Plan Services,Library DoS not split,Libraries Service-Civic Centre,L50001,Premises Related Expenditure  ,RepairsAlterations&MtceOfBldgs,BA79,Security of Premises                    ,"1,287.36",01/05/2015,R,SIGHT & SOUND                 
836,Cultural Env Reg&Plan Services,Library DoS not split,Libraries Service-Civic Centre,L50001,Premises Related Expenditure  ,RepairsAlterations&MtceOfBldgs,BA79,Security of Premises                    ,"5,304.25",01/05/2015,R,SIGHT & SOUND                 
837,Cultural Env Reg&Plan Services,Library DoS not split,Libraries Service-Civic Centre,L50001,Supplies & Services           ,Services                      ,DF03,Consultants                             ,"4,830.70",31/03/2015,R,ACTIVIST GROUP                
838,Cultural Env Reg&Plan Services,Library DoS not split,Media Fund,L83081,Supplies & Services           ,Equip Furniture/Materials     ,DA62,Ethnic Books                            ,511.74,22/04/2015,R,REDACTED     
839,Cultural Env Reg&Plan Services,Library DoS not split,Media Fund,L83081,Supplies & Services           ,Comms and Computing           ,DG72,On Line Resources                       ,"1,000.00",25/03/2015,R,W.F. HOWES LTD.               
840,Cultural Env Reg&Plan Services,Library DoS not split,Media Fund,L83081,Supplies & Services           ,Comms and Computing           ,DG72,On Line Resources                       ,"2,788.61",25/03/2015,R,W.F. HOWES LTD.               
841,Housing Services,Bed / breakfast accommodation,TEMPORARY ACCOMMODATION,N47160,Third Party Payments          ,Private Contractors           ,EH01,Miscellaneous Agency Services           ,"2,170.00",08/04/2015,R,CREST MANOR LTD               
842,Housing Services,Bed / breakfast accommodation,TEMPORARY ACCOMMODATION,N47160,Third Party Payments          ,Private Contractors           ,EH01,Miscellaneous Agency Services           ,828,30/04/2015,R,SW LONDON LETTINGS LTD        
843,Housing Services,Bed / breakfast accommodation,TEMPORARY ACCOMMODATION,N47160,Third Party Payments          ,Private Contractors           ,EH01,Miscellaneous Agency Services           ,"1,080.00",30/04/2015,R,SW LONDON LETTINGS LTD        
844,Housing Services,Bed / breakfast accommodation,TEMPORARY ACCOMMODATION,N47160,Third Party Payments          ,Private Contractors           ,EH01,Miscellaneous Agency Services           ,665,01/05/2015,R,KINDLY PROPERTIES             
845,Housing Services,Bed / breakfast accommodation,TEMPORARY ACCOMMODATION,N47160,Third Party Payments          ,Private Contractors           ,EH01,Miscellaneous Agency Services           ,600,30/04/2015,R,EURO HOTELS ( WEMBLEY) LTD    
846,Housing Services,Bed / breakfast accommodation,TEMPORARY ACCOMMODATION,N47160,Third Party Payments          ,Private Contractors           ,EH01,Miscellaneous Agency Services           ,"1,950.00",30/04/2015,R,SW LONDON LETTINGS LTD        
847,Housing Services,Bed / breakfast accommodation,TEMPORARY ACCOMMODATION,N47160,Third Party Payments          ,Private Contractors           ,EH01,Miscellaneous Agency Services           ,"1,080.00",30/04/2015,R,SW LONDON LETTINGS LTD        
848,Housing Services,Bed / breakfast accommodation,TEMPORARY ACCOMMODATION,N47160,Third Party Payments          ,Private Contractors           ,EH01,Miscellaneous Agency Services           ,"1,950.00",01/05/2015,R,ASSETGROVE LETTINGS LTD       
849,Housing Services,Bed / breakfast accommodation,TEMPORARY ACCOMMODATION,N47160,Third Party Payments          ,Private Contractors           ,EH01,Miscellaneous Agency Services           ,632,01/05/2015,R,RENT CONNECT LLP              
850,Housing Services,Bed / breakfast accommodation,TEMPORARY ACCOMMODATION,N47160,Third Party Payments          ,Private Contractors           ,EH01,Miscellaneous Agency Services           ,"2,010.00",30/04/2015,R,SW LONDON LETTINGS LTD        
851,Housing Services,Bed / breakfast accommodation,TEMPORARY ACCOMMODATION,N47160,Third Party Payments          ,Private Contractors           ,EH01,Miscellaneous Agency Services           ,"1,080.00",30/04/2015,R,SW LONDON LETTINGS LTD        
852,Housing Services,Bed / breakfast accommodation,TEMPORARY ACCOMMODATION,N47160,Third Party Payments          ,Private Contractors           ,EH01,Miscellaneous Agency Services           ,"1,500.00",01/04/2015,R,FASTMOVE PROPERTIES           
853,Housing Services,Bed / breakfast accommodation,TEMPORARY ACCOMMODATION,N47160,Third Party Payments          ,Private Contractors           ,EH01,Miscellaneous Agency Services           ,"1,610.00",01/04/2015,R,HYTYME B&B                    
854,Housing Services,Bed / breakfast accommodation,TEMPORARY ACCOMMODATION,N47160,Third Party Payments          ,Private Contractors           ,EH01,Miscellaneous Agency Services           ,952.25,20/03/2015,R,SPEAR                         
855,Housing Services,Bed / breakfast accommodation,TEMPORARY ACCOMMODATION,N47160,Third Party Payments          ,Private Contractors           ,EH01,Miscellaneous Agency Services           ,960,01/03/2015,R,FASTMOVE PROPERTIES           
856,Housing Services,Bed / breakfast accommodation,TEMPORARY ACCOMMODATION,N47160,Third Party Payments          ,Private Contractors           ,EH01,Miscellaneous Agency Services           ,665,01/05/2015,R,KINDLY PROPERTIES             
857,Housing Services,Bed / breakfast accommodation,TEMPORARY ACCOMMODATION,N47160,Third Party Payments          ,Private Contractors           ,EH01,Miscellaneous Agency Services           ,"5,100.00",05/05/2015,R,HB PROPERTY SERVICES          
858,Housing Services,Bed / breakfast accommodation,TEMPORARY ACCOMMODATION,N47160,Third Party Payments          ,Private Contractors           ,EH01,Miscellaneous Agency Services           ,"2,100.00",01/04/2015,R,FASTMOVE PROPERTIES           
859,Housing Services,Bed / breakfast accommodation,TEMPORARY ACCOMMODATION,N47160,Third Party Payments          ,Private Contractors           ,EH01,Miscellaneous Agency Services           ,"2,250.00",30/04/2015,R,SW LONDON LETTINGS LTD        
860,Housing Services,Bed / breakfast accommodation,TEMPORARY ACCOMMODATION,N47160,Third Party Payments          ,Private Contractors           ,EH01,Miscellaneous Agency Services           ,"1,500.00",01/05/2015,R,STENFORD PROPERTY LTD         
861,Housing Services,Bed / breakfast accommodation,TEMPORARY ACCOMMODATION,N47160,Third Party Payments          ,Private Contractors           ,EH01,Miscellaneous Agency Services           ,"2,252.00",01/04/2015,R,HYTYME B&B                    
862,Housing Services,Bed / breakfast accommodation,TEMPORARY ACCOMMODATION,N47160,Third Party Payments          ,Private Contractors           ,EH01,Miscellaneous Agency Services           ,"1,230.00",30/04/2015,R,SW LONDON LETTINGS LTD        
863,Housing Services,Bed / breakfast accommodation,TEMPORARY ACCOMMODATION,N47160,Third Party Payments          ,Private Contractors           ,EH01,Miscellaneous Agency Services           ,"1,500.00",30/04/2015,R,EURO HOTELS (THORNTON HEATH)  
864,Housing Services,Bed / breakfast accommodation,TEMPORARY ACCOMMODATION,N47160,Third Party Payments          ,Private Contractors           ,EH01,Miscellaneous Agency Services           ,"14,790.00",01/05/2015,R,CREST MANOR LTD               
865,Housing Services,Bed / breakfast accommodation,TEMPORARY ACCOMMODATION,N47160,Third Party Payments          ,Private Contractors           ,EH01,Miscellaneous Agency Services           ,"1,650.00",28/04/2015,R,CROMWOOD HOUSING              
866,Housing Services,Bed / breakfast accommodation,TEMPORARY ACCOMMODATION,N47160,Third Party Payments          ,Private Contractors           ,EH01,Miscellaneous Agency Services           ,"68,584.80",30/04/2015,R,VENTURE HOUSING(LONDON)LTD    
867,Housing Services,Bed / breakfast accommodation,TEMPORARY ACCOMMODATION,N47160,Third Party Payments          ,Private Contractors           ,EH01,Miscellaneous Agency Services           ,656,30/04/2015,R,SW LONDON LETTINGS LTD        
868,Housing Services,Bed / breakfast accommodation,TEMPORARY ACCOMMODATION,N47160,Third Party Payments          ,Private Contractors           ,EH01,Miscellaneous Agency Services           ,"4,150.00",01/05/2015,R,SK HOUSING LTD                
869,Housing Services,Bed / breakfast accommodation,TEMPORARY ACCOMMODATION,N47160,Third Party Payments          ,Private Contractors           ,EH01,Miscellaneous Agency Services           ,702,01/04/2015,R,FASTMOVE PROPERTIES           
870,Housing Services,Bed / breakfast accommodation,TEMPORARY ACCOMMODATION,N47160,Third Party Payments          ,Private Contractors           ,EH01,Miscellaneous Agency Services           ,861,30/04/2015,R,SW LONDON LETTINGS LTD        
871,Housing Services,Bed / breakfast accommodation,Homelessness Prevention,N47171,Transfer Payments             ,Housing Benefits              ,FA11,Sanctuary Scheme Rent Rescue            ,"3,000.00",27/05/2015,R,REDACTED     
872,Housing Services,Bed / breakfast accommodation,Homelessness Prevention,N47171,Transfer Payments             ,Housing Benefits              ,FA11,Sanctuary Scheme Rent Rescue            ,"3,000.00",22/05/2015,R,MERTON PRIORY HOMES (RENT)    
873,Housing Services,Bed / breakfast accommodation,Homelessness Prevention,N47171,Transfer Payments             ,Housing Benefits              ,FA11,Sanctuary Scheme Rent Rescue            ,"1,215.93",05/05/2015,R,REDACTED     
874,Housing Services,Bed / breakfast accommodation,Homelessness Prevention,N47171,Transfer Payments             ,Housing Benefits              ,FA11,Sanctuary Scheme Rent Rescue            ,"1,100.00",05/05/2015,R,SOUTH LONDON ESTATE LTD       
875,Housing Services,Bed / breakfast accommodation,Homelessness Prevention,N47171,Transfer Payments             ,Housing Benefits              ,FA11,Sanctuary Scheme Rent Rescue            ,"2,460.00",17/03/2015,R,PJ HARVEY & CO LTD            
876,Housing Services,Bed / breakfast accommodation,Homelessness Prevention,N47171,Transfer Payments             ,Housing Benefits              ,FA12,Rent Deposits                           ,"4,625.63",27/05/2015,R,REDACTED     
877,Housing Services,Bed / breakfast accommodation,Homelessness Prevention,N47171,Transfer Payments             ,Housing Benefits              ,FA12,Rent Deposits                           ,"4,000.00",05/05/2015,R,REDACTED     
878,Housing Services,Bed / breakfast accommodation,Homelessness Prevention,N47171,Transfer Payments             ,Housing Benefits              ,FA12,Rent Deposits                           ,"4,000.00",05/05/2015,R,GREYSTOCK PROPERTIES          
879,Housing Services,Hsg Dept Supp Staff & Costs,Housing Needs & Enablg-central,N51000,Supplies & Services           ,Services                      ,DF14,Doctors and other fees                  ,"1,119.39",01/05/2015,R,REDACTED     
880,Housing Services,Hsg Dept Supp Staff & Costs,Housing Needs & Enablg-central,N51000,Supplies & Services           ,Comms and Computing           ,DG02,Software Licences                       ,"11,788.91",02/03/2015,R,CAPITA BUSINESS SERVICES LTD  
881,Housing Services,Housing Strategy.,Housing Strategy,N53000,Supplies & Services           ,Grants and Subscriptions      ,DJ04,Subscriptions                           ,663.6,23/04/2015,R,LONDON BOROUGH OF CAMDEN      
882,Housing Services,Housing Strategy.,Housing Strategy,N53000,Supplies & Services           ,Grants and Subscriptions      ,DJ04,Subscriptions                           ,"1,980.00",22/04/2015,R,CACI LIMITED                  
883,Housing Services,Housing Strategy.,Housing Strategy,N53000,Supplies & Services           ,Grants and Subscriptions      ,DJ04,Subscriptions                           ,"2,000.00",22/04/2015,R,CACI LIMITED                  
884,Highways & Transport Services,Saf mtc prin/oth rds not split,Highways GM Contract                    ,P04006,Premises Related Expenditure  ,Ground Maintenance Costs      ,BL50,Nature Conservation                     ,"13,263.90",17/04/2015,R,COMPLETE WEED CONTROL         
885,Highways & Transport Services,Saf mtc prin/oth rds not split,Highways GM Contract                    ,P04006,Premises Related Expenditure  ,Ground Maintenance Costs      ,BL50,Nature Conservation                     ,"3,359.88",12/11/2014,R,BARKLANDS TREE SPECIALISTS    
886,Highways & Transport Services,Saf mtc prin/oth rds not split,Highways GM Contract                    ,P04006,Premises Related Expenditure  ,Ground Maintenance Costs      ,BL50,Nature Conservation                     ,"11,988.11",20/10/2014,R,BARKLANDS TREE SPECIALISTS    
887,Highways & Transport Services,Saf mtc prin/oth rds not split,Highways GM Contract                    ,P04006,Premises Related Expenditure  ,Ground Maintenance Costs      ,BL50,Nature Conservation                     ,"1,282.50",13/04/2015,R,BARKLANDS TREE SPECIALISTS    
888,Highways & Transport Services,Saf mtc prin/oth rds not split,Highways GM Contract                    ,P04006,Premises Related Expenditure  ,Ground Maintenance Costs      ,BL50,Nature Conservation                     ,"6,810.00",18/03/2015,R,TRANSF'M L/SCAPE DESIGN & CONS
889,Highways & Transport Services,Saf mtc prin/oth rds not split,Highways GM Contract                    ,P04006,Premises Related Expenditure  ,Ground Maintenance Costs      ,BL50,Nature Conservation                     ,"1,800.00",11/05/2015,R,BARKLANDS TREE SPECIALISTS    
890,Highways & Transport Services,Saf mtc prin/oth rds not split,Highways GM Contract                    ,P04006,Premises Related Expenditure  ,Ground Maintenance Costs      ,BL50,Nature Conservation                     ,"1,312.50",22/05/2015,R,BARKLANDS TREE SPECIALISTS    
891,Highways & Transport Services,Saf mtc prin/oth rds not split,Highways GM Contract                    ,P04006,Premises Related Expenditure  ,Ground Maintenance Costs      ,BL50,Nature Conservation                     ,"2,338.35",31/10/2014,R,BARKLANDS TREE SPECIALISTS    
892,Highways & Transport Services,Saf mtc prin/oth rds not split,Highways GM Contract                    ,P04006,Premises Related Expenditure  ,Ground Maintenance Costs      ,BL50,Nature Conservation                     ,"1,000.00",13/04/2015,R,BARKLANDS TREE SPECIALISTS    
893,Highways & Transport Services,Saf mtc prin/oth rds not split,Highways GM Contract                    ,P04006,Premises Related Expenditure  ,Ground Maintenance Costs      ,BL50,Nature Conservation                     ,"1,528.57",22/05/2015,R,BARKLANDS TREE SPECIALISTS    
894,Highways & Transport Services,Saf mtc prin/oth rds not split,Highways GM Contract                    ,P04006,Premises Related Expenditure  ,Ground Maintenance Costs      ,BL50,Nature Conservation                     ,"1,541.66",13/04/2015,R,BARKLANDS TREE SPECIALISTS    
895,Cultural Env Reg&Plan Services,Parks & Open Spaces,Park Utilities                          ,P04007,Premises Related Expenditure  ,Energy Costs                  ,BB02,Electricity                             ,650.24,25/03/2015,R,SCOTTISHPOWER                 
896,Cultural Env Reg&Plan Services,Parks & Open Spaces,Park Utilities                          ,P04007,Premises Related Expenditure  ,Energy Costs                  ,BB02,Electricity                             ,"1,172.88",08/05/2015,R,SCOTTISHPOWER                 
897,Cultural Env Reg&Plan Services,Parks & Open Spaces,Park Utilities                          ,P04007,Premises Related Expenditure  ,Energy Costs                  ,BB02,Electricity                             ,"1,951.33",20/03/2015,R,SCOTTISHPOWER                 
898,Cultural Env Reg&Plan Services,Parks & Open Spaces,Park Utilities                          ,P04007,Premises Related Expenditure  ,Energy Costs                  ,BB02,Electricity                             ,856.94,24/04/2015,R,NPOWER                        
899,Cultural Env Reg&Plan Services,Parks & Open Spaces,Park Utilities                          ,P04007,Premises Related Expenditure  ,Energy Costs                  ,BB02,Electricity                             ,832.09,08/05/2015,R,NPOWER                        
900,Cultural Env Reg&Plan Services,Parks & Open Spaces,Park Utilities                          ,P04007,Premises Related Expenditure  ,Energy Costs                  ,BB02,Electricity                             ,669.26,01/05/2015,R,SCOTTISHPOWER                 
901,Cultural Env Reg&Plan Services,Parks & Open Spaces,Park Utilities                          ,P04007,Premises Related Expenditure  ,Energy Costs                  ,BB02,Electricity                             ,550.27,15/05/2015,R,SCOTTISHPOWER                 
902,Cultural Env Reg&Plan Services,Parks & Open Spaces,Park Utilities                          ,P04007,Premises Related Expenditure  ,Energy Costs                  ,BB03,Gas (incl. Butane)                      ,558.44,07/04/2015,R,GAZPROM MARKETING&TRADING LTD 
903,Cultural Env Reg&Plan Services,Parks & Open Spaces,Park Utilities                          ,P04007,Premises Related Expenditure  ,Energy Costs                  ,BB03,Gas (incl. Butane)                      ,940.21,07/04/2015,R,GAZPROM MARKETING&TRADING LTD 
904,Cultural Env Reg&Plan Services,Parks & Open Spaces,Park Utilities                          ,P04007,Premises Related Expenditure  ,Energy Costs                  ,BB03,Gas (incl. Butane)                      ,703.36,07/04/2015,R,GAZPROM MARKETING&TRADING LTD 
905,Cultural Env Reg&Plan Services,Parks & Open Spaces,Park Utilities                          ,P04007,Premises Related Expenditure  ,Water Services                ,BE01,Use of Water (Metered)                  ,"1,178.61",28/04/2015,R,THAMES WATER UTILITIES LTD    
906,Cultural Env Reg&Plan Services,Parks & Open Spaces,Park Utilities                          ,P04007,Premises Related Expenditure  ,Water Services                ,BE01,Use of Water (Metered)                  ,528.61,05/05/2015,R,THAMES WATER UTILITIES LTD    
907,Cultural Env Reg&Plan Services,Parks & Open Spaces,Park Utilities                          ,P04007,Premises Related Expenditure  ,Water Services                ,BE01,Use of Water (Metered)                  ,"1,662.52",11/05/2015,R,THAMES WATER UTILITIES LTD    
908,Cultural Env Reg&Plan Services,Parks & Open Spaces,Park Utilities                          ,P04007,Premises Related Expenditure  ,Water Services                ,BE01,Use of Water (Metered)                  ,894.14,07/04/2015,R,THAMES WATER UTILITIES LTD    
909,Cultural Env Reg&Plan Services,Parks & Open Spaces,Park Utilities                          ,P04007,Premises Related Expenditure  ,Water Services                ,BE01,Use of Water (Metered)                  ,668.69,30/04/2015,R,THAMES WATER UTILITIES LTD    
910,Cultural Env Reg&Plan Services,Sports Dev & Community Rec,OLYMPICS&PARA LOOK&FEEL FUND,P04810,Supplies & Services           ,Expenses                      ,DH50,Special Projects                        ,"2,000.00",11/05/2015,R,TOOTING & MITCHAM COMM SPORTS 
911,Cultural Env Reg&Plan Services,Sports Dev & Community Rec,OLYMPICS&PARA LOOK&FEEL FUND,P04810,Third Party Payments          ,Private Contractors           ,EH02,Miscellaneous Hired Services            ,"10,975.10",28/04/2015,R,FULHAM FOOTBALL CLUB FOUNDAT. 
912,Cultural Env Reg&Plan Services,Parks & Open Spaces,"Pks,Rec Grds (Unloc)",P05005,Premises Related Expenditure  ,RepairsAlterations&MtceOfBldgs,BA06,REPAIRS & MAINTENANCE GENERAL           ,995,18/05/2015,R,JUST METAL UK LTD             
913,Cultural Env Reg&Plan Services,Parks & Open Spaces,"Pks,Rec Grds (Unloc)",P05005,Premises Related Expenditure  ,RepairsAlterations&MtceOfBldgs,BA06,REPAIRS & MAINTENANCE GENERAL           ,685,18/05/2015,R,JUST METAL UK LTD             
914,Cultural Env Reg&Plan Services,Parks & Open Spaces,"Pks,Rec Grds (Unloc)",P05005,Premises Related Expenditure  ,RepairsAlterations&MtceOfBldgs,BA06,REPAIRS & MAINTENANCE GENERAL           ,725,18/05/2015,R,JUST METAL UK LTD             
915,Cultural Env Reg&Plan Services,Parks & Open Spaces,"Pks,Rec Grds (Unloc)",P05005,Premises Related Expenditure  ,RepairsAlterations&MtceOfBldgs,BA06,REPAIRS & MAINTENANCE GENERAL           ,"1,050.00",20/04/2015,R,HERCULES WIMBLEDON ATHELETICS 
916,Cultural Env Reg&Plan Services,Parks & Open Spaces,"Pks,Rec Grds (Unloc)",P05005,Premises Related Expenditure  ,Ground Maintenance Costs      ,BL50,TREE WORK & CONSERVATION                ,"1,900.00",18/05/2015,R,REDACTED     
917,Cultural Env Reg&Plan Services,Parks & Open Spaces,"Pks,Rec Grds (Unloc)",P05005,Premises Related Expenditure  ,Ground Maintenance Costs      ,BL51,Playground Maintenance                  ,"2,999.00",11/02/2015,R,PROLUDIC LTD                  
918,Cultural Env Reg&Plan Services,Parks & Open Spaces,Morden Rec Ground,P05031,Supplies & Services           ,Services                      ,DF03,Consultants                             ,"4,200.00",14/04/2015,R,REDACTED     
919,Cultural Env Reg&Plan Services,Parks & Open Spaces,Morden Rec Ground,P05031,Supplies & Services           ,Services                      ,DF03,Consultants                             ,"1,075.00",14/05/2015,R,REDACTED     
